Capital or Revenue,Directorate,SERCOP High Level Category,SERCOP Detailed Category,Transaction Number,Date,Service Area,Expenses Type,Amount,Supplier Name
Revenue,Adult Services,Adult Social Care,Central Codes (to be reallocated),5105650572,19.08.2020,Adelaide Resource Centre,Consumable Cleaning Materials,252.00,A & M APPLIANCE CARE
Revenue,Adult Services,Adult Social Care,Learning Disab Supp (to be reallocated),5105650570,19.08.2020,Plean Dene,Consumable Cleaning Materials,110.00,A & M APPLIANCE CARE
Revenue,Adult Services,Adult Social Care,Learning Disab Supp (to be reallocated),5105647558,14.08.2020,Plean Dene,Property Services - Day to day Maintenance,405.57,A & M APPLIANCE CARE
Revenue,Fire & Rescue,Fire & Rescue Services,Fire fighting and Rescue Operations,5105650044,12.08.2020,Fire Technical Support,Stock Purchases,156.00,A & M APPLIANCE CARE
Revenue,Fire & Rescue,Fire & Rescue Services,Fire fighting and Rescue Operations,5105650044,12.08.2020,Fire Technical Support,Stock Purchases,45.00,A & M APPLIANCE CARE
Revenue,Adult Services,Adult Social Care,Central Codes (to be reallocated),5105650571,26.08.2020,Gouldings Resource Centre,Property Services - Day to day Maintenance,131.80,A & M APPLIANCE CARE
Revenue,Adult Services,Adult Social Care,Central Codes (to be reallocated),5105651611,28.08.2020,Adelaide Resource Centre,Maintenance of Operational Equipment,165.67,A & M APPLIANCE CARE
Revenue,Neighbourhoods,Cultural and Related Services,Open Spaces,5105650025,12.08.2020,Tree Felling / Replacement,Payment to Private Contractors,"1,750.00",A GUSTAR T/A IVY TREE CARE
Revenue,Neighbourhoods,Cultural and Related Services,Open Spaces,5105650101,12.08.2020,Tree Felling / Replacement,Payment to Private Contractors,"5,310.00",A GUSTAR T/A IVY TREE CARE
Revenue,Childrens Services,Children's & Education Services,Other Education and Community Budget,5105649492,05.08.2020,Home to School SEN Transport (LA),Taxis - Contract Hire,330.00,AMAR CABS OF NEWPORT
Revenue,Regeneration,Housing Services,Other Council Property,5105650150,26.08.2020,Shared Ownership,Grounds Maintenance,75.00,C & J GROUND MAINTENANCE
Revenue,Regeneration,Planning services,Business Support,5105650135,14.08.2020,Somerton Industrial Park,Grounds Maintenance,100.00,C & J GROUND MAINTENANCE
Revenue,Regeneration,Planning services,Business Support,5105650149,26.08.2020,Dodnor Industrial Estate,Grounds Maintenance,75.00,C & J GROUND MAINTENANCE
Revenue,Regeneration,Central Services,Support Services,5105650136,19.08.2020,17 Fairlee Road,Grounds Maintenance,75.00,C & J GROUND MAINTENANCE
Revenue,Fire & Rescue,Fire & Rescue Services,Fire fighting and Rescue Operations,5105650922,21.08.2020,Business Support  - Fire,Property Services - Day to day Maintenance,"1,970.40",C & J GROUND MAINTENANCE
Revenue,Regeneration,Central Services,Support Services,5105649952,07.08.2020,"Westridge, Ryde",Grounds Maintenance,550.00,C & J GROUND MAINTENANCE
Revenue,Regeneration,Central Services,Support Services,5105649950,07.08.2020,"Westridge, Ryde",Grounds Maintenance,240.00,C & J GROUND MAINTENANCE
Revenue,Childrens Services,Children's & Education Services,Other Education and Community Budget,5105650039,12.08.2020,Home to School Mainstream Transport,Taxis - Contract Hire,704.00,MICK'S TAXI
Revenue,Childrens Services,Children's & Education Services,Other Education and Community Budget,5105650040,12.08.2020,Home to College Post 16 Transport,Taxis - Contract Hire,115.00,MICK'S TAXI
Revenue,Childrens Services,Children's & Education Services,Other Education and Community Budget,5105650627,19.08.2020,Home to School SEN Transport (LA),Taxis - Contract Hire,715.00,CLARES CABS
Revenue,Resources,Central Services,Support Services,5105651028,21.08.2020,Litigation Costs,Legal Fees - Other Parties,600.00,COLLEGE CHAMBERS BARRISTERS
Revenue,Adult Services,Adult Social Care,Social Care Activities,5400002746,28.08.2020,DoLS/MCA,Professional Services,197.72,DR ALEXIS BOWERS LTD
Revenue,Childrens Services,Children's & Education Services,Management & Support Services,5105650161,26.08.2020,Special Discretionary Grants,Charges from Independent Providers,"2,250.00",REDACTED PERSONAL DATA
Revenue,Childrens Services,Children's & Education Services,Special Schools & Alternative Provision,5105649614,05.08.2020,Island Learning Centre,Bought in Prof Services - Curriculum (Schools),660.00,REDACTED PERSONAL DATA
Revenue,Childrens Services,Children's & Education Services,Special Schools & Alternative Provision,5105649614,05.08.2020,Island Learning Centre,Bought in Prof Services - Curriculum (Schools),"2,400.00",REDACTED PERSONAL DATA
Revenue,Childrens Services,Children's & Education Services,Other Education and Community Budget,5105650439,14.08.2020,Home to College Post 16 Transport,Taxis - Contract Hire,100.00,HAYLES TAXIS
Revenue,Childrens Services,Children's & Education Services,Other Education and Community Budget,5105650438,14.08.2020,Home to College Post 16 Transport,Taxis - Contract Hire,75.00,HAYLES TAXIS
Revenue,Childrens Services,Children's & Education Services,Other Education and Community Budget,5105650496,19.08.2020,Home to School SEN Transport (LA),Taxis - Contract Hire,320.00,HAYLES TAXIS
Revenue,Childrens Services,Children's & Education Services,Other Education and Community Budget,5105650495,19.08.2020,Home to School SEN Transport (LA),Taxis - Contract Hire,340.00,HAYLES TAXIS
Revenue,Resources,Central Services,Support Services,5105650560,26.08.2020,ICT Contracts,Computer Maintenance,330.00,REDACTED PERSONAL DATA
Revenue,Childrens Services,Children's & Education Services,Family Support Services,5400002748,28.08.2020,Short Breaks,Charges from Independent Providers,177.00,JOHN CATTLE'S SKATE CLUB
Revenue,Childrens Services,Children's & Education Services,Family Support Services,5105648971,05.08.2020,Short Breaks,Charges from Independent Providers,272.00,JOHN CATTLE'S SKATE CLUB
Revenue,Childrens Services,Children's & Education Services,Family Support Services,5105648969,05.08.2020,Short Breaks,Charges from Independent Providers,272.00,JOHN CATTLE'S SKATE CLUB
Revenue,Childrens Services,Children's & Education Services,Family Support Services,5105650568,26.08.2020,Short Breaks,Charges from Independent Providers,272.00,JOHN CATTLE'S SKATE CLUB
Revenue,Childrens Services,Children's & Education Services,Other Education and Community Budget,5105650574,19.08.2020,Home to School SEN Transport (LA),Taxis - Contract Hire,"1,248.00",MR TAXIS
Capital,Place,Capital,Capital,5105650503,19.08.2020,Rights Of Way Capital Programme,Payment to Contractors - Capital,"2,640.00",REDACTED PERSONAL DATA
Capital,Place,Capital,Capital,5105649635,07.08.2020,Rights Of Way Capital Programme,Payment to Contractors - Capital,"3,520.00",REDACTED PERSONAL DATA
Revenue,Resources,Children's & Education Services,Safeguarding Children/Young Peoples Svs,5105651329,26.08.2020,Safeguarding Training,Training,500.00,MISSING SOLUTIONS LTD
Capital,Place,Capital,Capital,5105650683,19.08.2020,Rights Of Way Capital Programme,Payment to Contractors - Capital,"1,595.00",REDACTED PERSONAL DATA
Revenue,Resources,Central Services,Support Services,5105650559,19.08.2020,Legal Services Section,Sundry Office Expenses,59.97,OD CONSULTANCY LTD
Revenue,Adult Services,Housing Services,Homelessness,5105651108,26.08.2020,Private Rented Sector Leasing Scheme,Accommodation Costs - Leaseholder Payments,695.89,REDACTED PERSONAL DATA
Revenue,Adult Services,Housing Services,Homelessness,5105651108,26.08.2020,Private Rented Sector Leasing Scheme,Accommodation Costs - Leaseholder Payments,695.89,REDACTED PERSONAL DATA
Revenue,Adult Services,Housing Services,Homelessness,5105651108,26.08.2020,Private Rented Sector Leasing Scheme,Accommodation Costs - Leaseholder Payments,695.89,REDACTED PERSONAL DATA
Revenue,Adult Services,Housing Services,Homelessness,5105651108,26.08.2020,Private Rented Sector Leasing Scheme,Accommodation Costs - Leaseholder Payments,695.89,REDACTED PERSONAL DATA
Revenue,Adult Services,Housing Services,Homelessness,5105651108,26.08.2020,Private Rented Sector Leasing Scheme,Accommodation Costs - Leaseholder Payments,695.89,REDACTED PERSONAL DATA
Revenue,Adult Services,Adult Social Care,Commissioning & Service Delivery,5105650471,19.08.2020,Deferred Payment Fees,Professional Services,150.00,PRINCIPAL SURVEYORS LTD
Revenue,Regeneration,Central Services,Support Services,5105650524,19.08.2020,Properties  - Other Properties,Professional Services,275.00,PRINCIPAL SURVEYORS LTD
Revenue,Childrens Services,Children's & Education Services,Other Education and Community Budget,5105639877,07.08.2020,Home to College Post 16 Transport,Taxis - Contract Hire,249.00,ROUNSEVELLS TAXIS
Revenue,Childrens Services,Children's & Education Services,Other Education and Community Budget,5105640094,07.08.2020,Home to School SEN Transport (LA),Taxis - Contract Hire,150.00,ROUNSEVELLS TAXIS
Revenue,Childrens Services,Children's & Education Services,Other Education and Community Budget,5105639735,28.08.2020,Home to School SEN Transport (LA),Taxis - Contract Hire,150.00,ROUNSEVELLS TAXIS
Revenue,Childrens Services,Children's & Education Services,Family Support Services,5105649936,12.08.2020,S17 Disabled Children,Support Children,216.00,SCALLYWAGS FUN CLUB
Revenue,Childrens Services,Children's & Education Services,Children Looked After,5105649483,12.08.2020,Support for Looked After Children,Support Children,405.00,SCALLYWAGS FUN CLUB
Revenue,Childrens Services,Children's & Education Services,Family Support Services,5105651187,26.08.2020,Short Breaks,Charges from Independent Providers,264.08,SPLAT MESSY PLAY LTD
Revenue,Childrens Services,Children's & Education Services,Family Support Services,5105651188,26.08.2020,Short Breaks,Charges from Independent Providers,264.08,SPLAT MESSY PLAY LTD
Revenue,Childrens Services,Children's & Education Services,Family Support Services,5105651189,26.08.2020,Short Breaks,Charges from Independent Providers,264.08,SPLAT MESSY PLAY LTD
Revenue,Childrens Services,Children's & Education Services,Management & Support Services,5105650421,14.08.2020,Special Discretionary Grants,Charges from Independent Providers,960.00,REDACTED PERSONAL DATA
Revenue,Adult Services,Adult Social Care,Social Support - Social Isolation/Other,5105649256,05.08.2020,Social Isolation/Other Other ST Support,Professional Services,475.00,THE ROBOS SPECIALIST CLEANING
Revenue,Childrens Services,Children's & Education Services,Other Education and Community Budget,5105650180,14.08.2020,Home to College Post 16 Transport,Taxis - Contract Hire,57.00,TJ CAR SERVICES LTD
Revenue,Childrens Services,Children's & Education Services,Other Education and Community Budget,5105650180,14.08.2020,Home to College Post 16 Transport,Taxis - Contract Hire,92.00,TJ CAR SERVICES LTD
Revenue,Childrens Services,Children's & Education Services,Other Education and Community Budget,5105650180,14.08.2020,Home to College Post 16 Transport,Taxis - Contract Hire,132.00,TJ CAR SERVICES LTD
Revenue,Childrens Services,Children's & Education Services,Other Education and Community Budget,5105650180,14.08.2020,Home to College Post 16 Transport,Taxis - Contract Hire,25.00,TJ CAR SERVICES LTD
Revenue,Childrens Services,Children's & Education Services,Other Education and Community Budget,5105650180,14.08.2020,Home to School SEN Transport (LA),Taxis - Contract Hire,288.00,TJ CAR SERVICES LTD
Revenue,Childrens Services,Children's & Education Services,Other Education and Community Budget,5105650180,14.08.2020,Home to School SEN Transport (LA),Taxis - Contract Hire,160.00,TJ CAR SERVICES LTD
Revenue,Childrens Services,Children's & Education Services,Special Schools & Alternative Provision,5105650024,12.08.2020,Island Learning Centre,Consumable Cleaning Materials,77.78,TOP MOPS LIMITED
Revenue,Childrens Services,Children's & Education Services,Support Services,5105648028,14.08.2020,Grafton Street Sandown (ex Sandown Yth),Security of Buildings,87.00,VECTIS GROUP SECURITY LTD
Revenue,Regeneration,Central Services,Support Services,5105651382,28.08.2020,Non-operational buildings,Security of Buildings,75.00,VECTIS GROUP SECURITY LTD
Revenue,Neighbourhoods,Cultural and Related Services,Recreation and Sport,5105650636,26.08.2020,Westridge Squash Courts,Maintenance of Operational Equipment,12.00,VECTIS GROUP SECURITY LTD
Revenue,Neighbourhoods,Cultural and Related Services,Recreation and Sport,5105648252,05.08.2020,The Heights,Professional Services,32.00,VECTIS GROUP SECURITY LTD
Revenue,Childrens Services,Children's & Education Services,Other Education and Community Budget,5105649550,05.08.2020,Broadlea PS Berry Hill site (was 55909),Security of Buildings,67.50,VECTIS GROUP SECURITY LTD
Revenue,Childrens Services,Children's & Education Services,Other Education and Community Budget,5105649550,05.08.2020,Broadlea PS Berry Hill site (was 55909),Security of Buildings,22.50,VECTIS GROUP SECURITY LTD
Revenue,Childrens Services,Children's & Education Services,Other Education and Community Budget,5105649520,05.08.2020,Weston Academy Closure,Security of Buildings,192.00,VECTIS GROUP SECURITY LTD
Revenue,Childrens Services,Children's & Education Services,Other Education and Community Budget,5105649641,07.08.2020,Weston Academy Closure,Security of Buildings,192.00,VECTIS GROUP SECURITY LTD
Revenue,Childrens Services,Children's & Education Services,Other Education and Community Budget,5105649562,05.08.2020,Barton Primary Sshool Disposal,Security of Buildings,237.00,VECTIS GROUP SECURITY LTD
Revenue,Neighbourhoods,Cultural and Related Services,Recreation and Sport,5105650637,19.08.2020,Medina Leisure Centre,Payment to Private Contractors,32.00,VECTIS GROUP SECURITY LTD
Revenue,Childrens Services,Children's & Education Services,Other Education and Community Budget,5105649940,07.08.2020,Home to School SEN Transport (LA),Taxis - Contract Hire,"1,450.00",W W CARS OF SEAVIEW
Revenue,Childrens Services,Children's & Education Services,Other Education and Community Budget,5105649938,07.08.2020,Home to School SEN Transport (LA),Taxis - Contract Hire,580.00,W W CARS OF SEAVIEW
Revenue,Childrens Services,Children's & Education Services,Other Education and Community Budget,5105649935,19.08.2020,Home to College Post 16 Transport,Taxis - Contract Hire,144.00,W W CARS OF SEAVIEW
Revenue,Childrens Services,Children's & Education Services,Other Education and Community Budget,5105650437,14.08.2020,Home to School SEN Transport (LA),Taxis - Contract Hire,586.50,HAVEN TAXIS & PRIVATE HIRE
Revenue,Regeneration,Central Services,Support Services,5105650986,28.08.2020,"County Hall,Newport",Property Services - Planned Maintenance,115.00,WIGHT HEATING LTD
Revenue,Childrens Services,Children's & Education Services,Sure Start Children's Centres,5105650984,28.08.2020,Family Centres Maintenance,Property Services - Planned Maintenance,110.00,WIGHT HEATING LTD
Revenue,Adult Services,Adult Social Care,Central Codes (to be reallocated),5105649934,07.08.2020,Gouldings Resource Centre,Property Services - Day to day Maintenance,180.00,WIGHT HEATING LTD
Revenue,Childrens Services,Children's & Education Services,Special Schools & Alternative Provision,5105649873,07.08.2020,Island Learning Centre,Minor Works,62.50,WIGHT HEATING LTD
Revenue,Childrens Services,Children's & Education Services,Sure Start Children's Centres,5105649878,14.08.2020,Family Centres Maintenance,Minor Works,310.00,WIGHT HEATING LTD
Revenue,Neighbourhoods,Cultural and Related Services,Library Service,5105650924,21.08.2020,Ryde Library,Property Services - Day to day Maintenance,246.48,WIGHT HEATING LTD
Revenue,Regeneration,Central Services,Support Services,5105650925,21.08.2020,17 Fairlee Road,Property Services - Day to day Maintenance,97.50,WIGHT HEATING LTD
Revenue,Regeneration,Central Services,Support Services,5105650988,28.08.2020,17 Fairlee Road,Property Services - Planned Maintenance,185.00,WIGHT HEATING LTD
Revenue,Adult Services,Adult Social Care,Learning Disab Supp (to be reallocated),5105650933,26.08.2020,Plean Dene,Minor Works,80.00,WIGHT HEATING LTD
Revenue,Neighbourhoods,Cultural and Related Services,Library Service,5105649871,07.08.2020,Newport Library,Property Services - Day to day Maintenance,97.50,WIGHT HEATING LTD
Revenue,Childrens Services,Children's & Education Services,Children Looked After,5105649872,07.08.2020,Beaulieu House,Minor Works,80.00,WIGHT HEATING LTD
Revenue,Adult Services,Adult Social Care,Central Codes (to be reallocated),5105650929,21.08.2020,Gouldings Resource Centre,Property Services - Day to day Maintenance,436.68,WIGHT HEATING LTD
Revenue,Adult Services,Adult Social Care,Central Codes (to be reallocated),5105650926,21.08.2020,Gouldings Resource Centre,Property Services - Day to day Maintenance,97.50,WIGHT HEATING LTD
Revenue,Adult Services,Adult Social Care,Central Codes (to be reallocated),5105650928,21.08.2020,Gouldings Resource Centre,Property Services - Day to day Maintenance,80.00,WIGHT HEATING LTD
Revenue,Fire & Rescue,Fire & Rescue Services,Fire fighting and Rescue Operations,5105650927,21.08.2020,Business Support  - Fire,Property Services - Day to day Maintenance,80.00,WIGHT HEATING LTD
Revenue,Adult Services,Housing Services,Homelessness,5105651121,26.08.2020,Private Rented Sector Leasing Scheme,Accommodation Costs - Leaseholder Payments,866.67,2K PROPERTY
Revenue,Childrens Services,Children's & Education Services,Children Looked After,5105649702,07.08.2020,Special Guardianship Order Costs,Support Children,207.73,REDACTED PERSONAL DATA
Revenue,Childrens Services,Children's & Education Services,Children Looked After,5105651419,28.08.2020,Special Guardianship Order Costs,Support Children,207.73,REDACTED PERSONAL DATA
Revenue,Childrens Services,Children's & Education Services,Children Looked After,5105650209,14.08.2020,Special Guardianship Order Costs,Support Children,207.73,REDACTED PERSONAL DATA
Revenue,Childrens Services,Children's & Education Services,Children Looked After,5105650755,21.08.2020,Special Guardianship Order Costs,Support Children,207.73,REDACTED PERSONAL DATA
Revenue,Childrens Services,Children's & Education Services,Children Looked After,5105650209,14.08.2020,In-house Fostering,Boarding Out Allowances,286.47,REDACTED PERSONAL DATA
Revenue,Childrens Services,Children's & Education Services,Children Looked After,5105651419,28.08.2020,In-house Fostering,Boarding Out Allowances,286.47,REDACTED PERSONAL DATA
Revenue,Childrens Services,Children's & Education Services,Children Looked After,5105649702,07.08.2020,In-house Fostering,Boarding Out Allowances,286.47,REDACTED PERSONAL DATA
Revenue,Childrens Services,Children's & Education Services,Children Looked After,5105650755,21.08.2020,In-house Fostering,Boarding Out Allowances,286.47,REDACTED PERSONAL DATA
Revenue,Childrens Services,Children's & Education Services,Children Looked After,5105650755,21.08.2020,In-house Fostering,Boarding Out Allowances,244.47,REDACTED PERSONAL DATA
Revenue,Childrens Services,Children's & Education Services,Children Looked After,5105649702,07.08.2020,In-house Fostering,Boarding Out Allowances,244.47,REDACTED PERSONAL DATA
Revenue,Childrens Services,Children's & Education Services,Children Looked After,5105651419,28.08.2020,In-house Fostering,Boarding Out Allowances,244.47,REDACTED PERSONAL DATA
Revenue,Childrens Services,Children's & Education Services,Children Looked After,5105650209,14.08.2020,In-house Fostering,Boarding Out Allowances,244.47,REDACTED PERSONAL DATA
Revenue,Adult Services,Housing Services,Homelessness,5105651118,26.08.2020,Private Rented Sector Leasing Scheme,Accommodation Costs - Leaseholder Payments,510.25,REDACTED PERSONAL DATA
Revenue,Adult Services,Housing Services,Homelessness,5105651118,26.08.2020,Private Rented Sector Leasing Scheme,Accommodation Costs - Leaseholder Payments,510.25,REDACTED PERSONAL DATA
Revenue,Adult Services,Housing Services,Homelessness,5105651118,26.08.2020,Private Rented Sector Leasing Scheme,Accommodation Costs - Leaseholder Payments,510.25,REDACTED PERSONAL DATA
Revenue,Adult Services,Housing Services,Homelessness,5105651118,26.08.2020,Private Rented Sector Leasing Scheme,Accommodation Costs - Leaseholder Payments,510.25,REDACTED PERSONAL DATA
Revenue,Adult Services,Housing Services,Homelessness,5105651118,26.08.2020,Private Rented Sector Leasing Scheme,Accommodation Costs - Leaseholder Payments,510.25,REDACTED PERSONAL DATA
Revenue,Adult Services,Housing Services,Homelessness,5105651118,26.08.2020,Private Rented Sector Leasing Scheme,Accommodation Costs - Leaseholder Payments,510.25,REDACTED PERSONAL DATA
Revenue,Adult Services,Housing Services,Homelessness,5105651118,26.08.2020,Private Rented Sector Leasing Scheme,Accommodation Costs - Leaseholder Payments,510.25,REDACTED PERSONAL DATA
Revenue,Childrens Services,Children's & Education Services,Children Looked After,5105649691,07.08.2020,Adoption Costs,Support Children,225.83,REDACTED PERSONAL DATA
Revenue,Childrens Services,Children's & Education Services,Children Looked After,5105650198,14.08.2020,Adoption Costs,Support Children,225.83,REDACTED PERSONAL DATA
Revenue,Childrens Services,Children's & Education Services,Children Looked After,5105650744,21.08.2020,Adoption Costs,Support Children,225.83,REDACTED PERSONAL DATA
Revenue,Childrens Services,Children's & Education Services,Children Looked After,5105651408,28.08.2020,Adoption Costs,Support Children,225.83,REDACTED PERSONAL DATA
Revenue,Childrens Services,Children's & Education Services,Children Looked After,5105649720,07.08.2020,In-house Fostering,Boarding Out Allowances,521.22,REDACTED PERSONAL DATA
Revenue,Adult Services,Adult Social Care,Support - Memory /Cognition-older people (65+),5105649455,05.08.2020,Memory & Cognition Residential 65+,Charges from Independent Providers,"3,200.12",ABBERDALE LIMITED
Revenue,Adult Services,Adult Social Care,Support - Memory /Cognition-older people (65+),5105651793,28.08.2020,Memory & Cognition Residential 65+,Charges from Independent Providers,"3,200.12",ABBERDALE LIMITED
Revenue,Neighbourhoods,Environmental & Regulatory Services,Regulatory Services,5105651220,26.08.2020,Licensing Services,Professional Services,12.00,ACCESS PERSONAL CHECKING SERVICES LTD
Revenue,Neighbourhoods,Environmental & Regulatory Services,Regulatory Services,5105651220,26.08.2020,Licensing Services,Professional Services,80.00,ACCESS PERSONAL CHECKING SERVICES LTD
Revenue,Adult Services,Adult Social Care,Learning Disab Supp (to be reallocated),5105650009,12.08.2020,Westhorpe Supported Living,Charges from Independent Providers,"5,684.00",TRACSCARE WELLCARE LIFESTYLES
Revenue,Adult Services,Adult Social Care,Learning Disab Supp (to be reallocated),5105650009,12.08.2020,Westhorpe Supported Living,Charges from Independent Providers,"4,060.00",TRACSCARE WELLCARE LIFESTYLES
Revenue,Adult Services,Adult Social Care,Learning Disab Supp (to be reallocated),5105650009,12.08.2020,Westhorpe Supported Living,Charges from Independent Providers,"2,030.00",TRACSCARE WELLCARE LIFESTYLES
Revenue,Adult Services,Adult Social Care,Learning Disab Supp (to be reallocated),5105650009,12.08.2020,"Greengates, Ryde",Charges from Independent Providers,"5,684.00",TRACSCARE WELLCARE LIFESTYLES
Revenue,Adult Services,Adult Social Care,Learning Disab Supp (to be reallocated),5105650009,12.08.2020,"Greengates, Ryde",Charges from Independent Providers,"2,190.72",TRACSCARE WELLCARE LIFESTYLES
Revenue,Adult Services,Adult Social Care,Learning Disab Supp (to be reallocated),5105650009,12.08.2020,"41 Newport Road, Cowes",Charges from Independent Providers,"5,684.00",TRACSCARE WELLCARE LIFESTYLES
Revenue,Adult Services,Adult Social Care,Learning Disab Supp (to be reallocated),5105650009,12.08.2020,"41 Newport Road, Cowes",Charges from Independent Providers,"2,190.72",TRACSCARE WELLCARE LIFESTYLES
Revenue,Adult Services,Adult Social Care,Learning Disab Supp (to be reallocated),5105650009,12.08.2020,"Heath Road, Lake",Charges from Independent Providers,"4,553.00",TRACSCARE WELLCARE LIFESTYLES
Revenue,Adult Services,Adult Social Care,Learning Disab Supp (to be reallocated),5105650009,12.08.2020,"Heath Road, Lake",Charges from Independent Providers,"2,190.72",TRACSCARE WELLCARE LIFESTYLES
Revenue,Adult Services,Adult Social Care,Learning Disab Supp (to be reallocated),5105650009,12.08.2020,"17 Newport Road, Ventnor",Charges from Independent Providers,"4,553.00",TRACSCARE WELLCARE LIFESTYLES
Revenue,Adult Services,Adult Social Care,Learning Disab Supp (to be reallocated),5105650009,12.08.2020,"17 Newport Road, Ventnor",Charges from Independent Providers,"2,190.72",TRACSCARE WELLCARE LIFESTYLES
Revenue,Adult Services,Adult Social Care,Learning Disab Supp (to be reallocated),5105650009,12.08.2020,"Winton Street, Ryde",Charges from Independent Providers,"5,684.00",TRACSCARE WELLCARE LIFESTYLES
Revenue,Adult Services,Adult Social Care,Learning Disab Supp (to be reallocated),5105650009,12.08.2020,"Winton Street, Ryde",Charges from Independent Providers,"2,190.72",TRACSCARE WELLCARE LIFESTYLES
Revenue,Adult Services,Adult Social Care,Long Term Support,5105650009,12.08.2020,Seagulls,Charges from Independent Providers,"26,945.12",TRACSCARE WELLCARE LIFESTYLES
Revenue,Adult Services,Adult Social Care,Long Term Support,5105650009,12.08.2020,40 Venner Avenue,Charges from Independent Providers,"28,129.64",TRACSCARE WELLCARE LIFESTYLES
Revenue,Adult Services,Adult Social Care,Assistive Equipment & Technology,5105650387,14.08.2020,Community Equipment Store,Operational Equipment,"4,293.00",ACCORA  LIMITED
Revenue,Fire & Rescue,Fire & Rescue Services,Fire fighting and Rescue Operations,5105649544,12.08.2020,Fire Technical Support,Vehicle Maintenance Costs,-489.59,ADAMS MOREY LTD
Revenue,Fire & Rescue,Fire & Rescue Services,Fire fighting and Rescue Operations,5105649882,12.08.2020,Fire Technical Support,Vehicle Maintenance Costs,489.59,ADAMS MOREY LTD
Revenue,Fire & Rescue,Fire & Rescue Services,Fire fighting and Rescue Operations,5105650159,14.08.2020,Fire Technical Support,Vehicle Maintenance Costs,11.40,ADAMS MOREY LTD
Revenue,Childrens Services,Children's & Education Services,Management & Support Services,5105648987,26.08.2020,Pupil Premium Managed Centrally,Professional Services,65.60,A-DAY CONSULTANTS LTD
Revenue,Childrens Services,Children's & Education Services,Management & Support Services,5105651094,26.08.2020,Pupil Premium Managed Centrally,Professional Services,-65.60,A-DAY CONSULTANTS LTD
Revenue,Childrens Services,Children's & Education Services,Management & Support Services,5105650152,14.08.2020,Pupil Premium Managed Centrally,Professional Services,173.60,A-DAY CONSULTANTS LTD
Revenue,Childrens Services,Children's & Education Services,Management & Support Services,5105648987,26.08.2020,Pupil Premium Managed Centrally,Professional Services,131.20,A-DAY CONSULTANTS LTD
Revenue,Childrens Services,Children's & Education Services,Management & Support Services,5105649548,26.08.2020,Pupil Premium Managed Centrally,Professional Services,-54.40,A-DAY CONSULTANTS LTD
Revenue,Childrens Services,Children's & Education Services,Management & Support Services,5105651094,26.08.2020,Pupil Premium Managed Centrally,Professional Services,-65.60,A-DAY CONSULTANTS LTD
Revenue,Childrens Services,Children's & Education Services,Management & Support Services,5105649548,26.08.2020,Pupil Premium Managed Centrally,Professional Services,-13.60,A-DAY CONSULTANTS LTD
Revenue,Childrens Services,Children's & Education Services,Special Schools & Alternative Provision,5105649482,05.08.2020,Island Learning Centre,Agency staff,330.00,A-DAY CONSULTANTS LTD
Revenue,Childrens Services,Children's & Education Services,Special Schools & Alternative Provision,5105649890,07.08.2020,Island Learning Centre,Agency staff,330.00,A-DAY CONSULTANTS LTD
Revenue,Childrens Services,Children's & Education Services,Other Education and Community Budget,5105648853,05.08.2020,Home to School SEN Transport (LA),Taxis - Contract Hire,498.00,REDACTED PERSONAL DATA
Revenue,Childrens Services,Children's & Education Services,Other Education and Community Budget,5105648857,05.08.2020,Home to School SEN Transport (LA),Taxis - Contract Hire,871.50,REDACTED PERSONAL DATA
Revenue,Childrens Services,Children's & Education Services,Other Education and Community Budget,5105648850,05.08.2020,Home to School SEN Transport (LA),Taxis - Contract Hire,"1,045.80",REDACTED PERSONAL DATA
Revenue,Childrens Services,Children's & Education Services,Other Education and Community Budget,5105648854,05.08.2020,Home to School SEN Transport (LA),Taxis - Contract Hire,"1,057.50",REDACTED PERSONAL DATA
Revenue,Childrens Services,Children's & Education Services,Other Education and Community Budget,5105648856,05.08.2020,Home to School SEN Transport (LA),Taxis - Contract Hire,"1,460.80",REDACTED PERSONAL DATA
Revenue,Childrens Services,Children's & Education Services,Sure Start Children's Centres,5105646385,12.08.2020,Family Centres Maintenance,Minor Works,-146.36,ADT FIRE AND SECURITY PLC
Revenue,Assistant Chief Executive,Central Services,Support Services,5400002793,28.08.2020,CH Accommodation Rationalisation,Security of Buildings,254.51,ADT FIRE AND SECURITY PLC
Revenue,Neighbourhoods,Highways and Transport Services,"Airports, Harbours & Toll Facilities",5105649586,12.08.2020,Ferry Operation,Payment to Private Contractors,259.00,ADT FIRE AND SECURITY PLC
Revenue,Neighbourhoods,Cultural and Related Services,Library Service,5105650382,14.08.2020,Ryde Library,Security of Buildings,511.07,ADT FIRE AND SECURITY PLC
Revenue,Neighbourhoods,Cultural and Related Services,Culture and Heritage,5105650494,21.08.2020,Dinosaur Isle Museum (Sandown Geology),Operational Equipment,170.70,AEP LTD
Revenue,Adult Services,Adult Social Care,Commissioning & Service Delivery,5105644827,19.08.2020,Group Manager Leaning Disability Homes,Publications,64.94,AGORA BUSINESS PUBLICATIONS LLP
Revenue,Adult Services,Adult Social Care,Commissioning & Service Delivery,5105649980,07.08.2020,Group Manager Leaning Disability Homes,Publications,64.94,AGORA BUSINESS PUBLICATIONS LLP
Revenue,Resources,Housing Services,Housing Benefits Administration,5105650392,14.08.2020,Housing Benefit,Printing Costs,"1,950.00",AIREY CONSULTANCY SERVICES LTD
Revenue,Resources,Children's & Education Services,Other Education and Community Budget,5105650434,19.08.2020,Specialist Cross-Council Training,Training,"3,125.00",AIREY CONSULTANCY SERVICES LTD
Revenue,Resources,Children's & Education Services,Other Education and Community Budget,5105651298,26.08.2020,Specialist Cross-Council Training,Training,312.50,AIREY CONSULTANCY SERVICES LTD
Capital,Resources,Capital,Capital,5105646329,14.08.2020,Management of Asbestos,Payment to Contractors - Capital,"2,586.00",AIRTEK SERVICES IOW LTD
Revenue,Regeneration,Central Services,Support Services,5105650158,19.08.2020,"Seaclose Offices, Newport",Property Services - Planned Maintenance,195.00,AIRTEK SERVICES IOW LTD
Revenue,Regeneration,Central Services,Support Services,5105650032,26.08.2020,"County Hall,Newport",Property Services - Day to day Maintenance,308.29,AIRTEK SERVICES IOW LTD
Revenue,Adult Services,Adult Social Care,Learning Disability Suppt-adults (18-64),5105649453,05.08.2020,Learning Disability Residential 18-64,Charges from Independent Providers,"8,743.00",AITCH CARE HOMES (LONDON) LTD
Revenue,Adult Services,Adult Social Care,Learning Disability Suppt-adults (18-64),5105651791,28.08.2020,Learning Disability Residential 18-64,Charges from Independent Providers,"8,743.00",AITCH CARE HOMES (LONDON) LTD
Revenue,Childrens Services,Children's & Education Services,Other Education and Community Budget,5105649937,07.08.2020,Home to School SEN Transport (LA),Taxis - Contract Hire,360.00,AKAR TAXIS
Revenue,Adult Services,Adult Social Care,Support - Memory /Cognition-older people (65+),5105651826,28.08.2020,Memory & Cognition Other ST Support 65+,Transport of Clients,16.00,AKAR TAXIS
Revenue,Neighbourhoods,Environmental & Regulatory Services,"Cemetery, Cremation & Mortuary Services",5105651305,26.08.2020,Crematorium,Operational Equipment,165.04,ALBANY FARM & G MACHINERY LTD
Revenue,Public Health,Public Health,NHS Health Check Programme,5105650048,12.08.2020,NHS Health Check Programme P,Payment to Private Contractors,"1,378.00",ALBERT STREET PRACTICE
Revenue,Public Health,Public Health,Sexual Health,5105650048,12.08.2020,Long Acting Reversible Contraception,Payment to Private Contractors,700.00,ALBERT STREET PRACTICE
Revenue,Resources,Adult Social Care,Physical Support (to be reallocated),5105650416,26.08.2020,Blue Badge Admin Team Shared Services,Printing Costs,567.97,ALLIED PUBLICITY SERVICES LTD
Revenue,Resources,Highways and Transport Services,Public Transport,5105650584,19.08.2020,Transport Fleet Administration,Vehicle Fuel Costs,"10,367.00",ALLSTAR BUSINESS SOLUTIONS LTD
Revenue,Childrens Services,Children's & Education Services,Other Education and Community Budget,5105646577,12.08.2020,Home to School SEN Transport (LA),Taxis - Contract Hire,280.00,ALPHA (IOW) LTD
Revenue,Childrens Services,Children's & Education Services,Other Education and Community Budget,5105648904,12.08.2020,Home to School SEN Transport (LA),Taxis - Contract Hire,280.00,ALPHA (IOW) LTD
Revenue,Childrens Services,Children's & Education Services,Other Education and Community Budget,5105649531,12.08.2020,Home to School SEN Transport (LA),Taxis - Contract Hire,280.00,ALPHA (IOW) LTD
Revenue,Childrens Services,Children's & Education Services,Other Education and Community Budget,5400002751,28.08.2020,Home to School SEN Transport (LA),Taxis - Contract Hire,395.00,ALPHA (IOW) LTD
Revenue,Childrens Services,Children's & Education Services,Other Education and Community Budget,5105649530,05.08.2020,Home to School SEN Transport (LA),Taxis - Contract Hire,316.00,ALPHA (IOW) LTD
Revenue,Childrens Services,Children's & Education Services,Other Education and Community Budget,5400002757,28.08.2020,Home to School SEN Transport (LA),Taxis - Contract Hire,260.00,ALPHA (IOW) LTD
Revenue,Childrens Services,Children's & Education Services,Other Education and Community Budget,5105648904,12.08.2020,Home to School SEN Transport (LA),Taxis - Contract Hire,260.00,ALPHA (IOW) LTD
Revenue,Childrens Services,Children's & Education Services,Other Education and Community Budget,5105649531,12.08.2020,Home to School SEN Transport (LA),Taxis - Contract Hire,260.00,ALPHA (IOW) LTD
Revenue,Childrens Services,Children's & Education Services,Other Education and Community Budget,5400002751,28.08.2020,Home to School SEN Transport (LA),Taxis - Contract Hire,400.00,ALPHA (IOW) LTD
Revenue,Childrens Services,Children's & Education Services,Other Education and Community Budget,5105649530,05.08.2020,Home to School SEN Transport (LA),Taxis - Contract Hire,320.00,ALPHA (IOW) LTD
Revenue,Childrens Services,Children's & Education Services,Other Education and Community Budget,5400002753,28.08.2020,Home to School Mainstream Transport,Taxis - Contract Hire,350.00,ALPHA (IOW) LTD
Revenue,Childrens Services,Children's & Education Services,Other Education and Community Budget,5105648904,12.08.2020,Home to School Mainstream Transport,Taxis - Contract Hire,350.00,ALPHA (IOW) LTD
Revenue,Childrens Services,Children's & Education Services,Other Education and Community Budget,5105649531,12.08.2020,Home to School Mainstream Transport,Taxis - Contract Hire,350.00,ALPHA (IOW) LTD
Revenue,Childrens Services,Children's & Education Services,Other Education and Community Budget,5105646577,12.08.2020,Home to School SEN Transport (LA),Taxis - Contract Hire,450.00,ALPHA (IOW) LTD
Revenue,Childrens Services,Children's & Education Services,Other Education and Community Budget,5105648904,12.08.2020,Home to School SEN Transport (LA),Taxis - Contract Hire,450.00,ALPHA (IOW) LTD
Revenue,Childrens Services,Children's & Education Services,Other Education and Community Budget,5105649531,12.08.2020,Home to School SEN Transport (LA),Taxis - Contract Hire,450.00,ALPHA (IOW) LTD
Revenue,Childrens Services,Children's & Education Services,Other Education and Community Budget,5400002744,28.08.2020,Home to School SEN Transport (LA),Taxis - Contract Hire,575.00,ALPHA (IOW) LTD
Revenue,Childrens Services,Children's & Education Services,Other Education and Community Budget,5105649530,05.08.2020,Home to School SEN Transport (LA),Taxis - Contract Hire,460.00,ALPHA (IOW) LTD
Revenue,Childrens Services,Children's & Education Services,Other Education and Community Budget,5400002743,28.08.2020,Home to School SEN Transport (LA),Taxis - Contract Hire,600.00,ALPHA (IOW) LTD
Revenue,Childrens Services,Children's & Education Services,Other Education and Community Budget,5105649530,05.08.2020,Home to School SEN Transport (LA),Taxis - Contract Hire,480.00,ALPHA (IOW) LTD
Revenue,Childrens Services,Children's & Education Services,Other Education and Community Budget,5105649530,05.08.2020,Home to School SEN Transport (LA),Taxis - Contract Hire,560.00,ALPHA (IOW) LTD
Revenue,Childrens Services,Children's & Education Services,Other Education and Community Budget,5400002759,28.08.2020,Home to School SEN Transport (LA),Taxis - Contract Hire,250.00,ALPHA (IOW) LTD
Revenue,Childrens Services,Children's & Education Services,Other Education and Community Budget,5105648904,12.08.2020,Home to School SEN Transport (LA),Taxis - Contract Hire,250.00,ALPHA (IOW) LTD
Revenue,Childrens Services,Children's & Education Services,Other Education and Community Budget,5105649530,05.08.2020,Home to School SEN Transport (LA),Taxis - Contract Hire,60.00,ALPHA (IOW) LTD
Revenue,Childrens Services,Children's & Education Services,Other Education and Community Budget,5105649531,12.08.2020,Home to School SEN Transport (LA),Taxis - Contract Hire,250.00,ALPHA (IOW) LTD
Revenue,Childrens Services,Children's & Education Services,Other Education and Community Budget,5105646577,12.08.2020,Home to School SEN Transport (LA),Taxis - Contract Hire,140.00,ALPHA (IOW) LTD
Revenue,Childrens Services,Children's & Education Services,Other Education and Community Budget,5105648904,12.08.2020,Home to School SEN Transport (LA),Taxis - Contract Hire,140.00,ALPHA (IOW) LTD
Revenue,Childrens Services,Children's & Education Services,Other Education and Community Budget,5105649531,12.08.2020,Home to School SEN Transport (LA),Taxis - Contract Hire,140.00,ALPHA (IOW) LTD
Revenue,Childrens Services,Children's & Education Services,Other Education and Community Budget,5400002762,28.08.2020,Home to School SEN Transport (LA),Taxis - Contract Hire,150.00,ALPHA (IOW) LTD
Revenue,Childrens Services,Children's & Education Services,Other Education and Community Budget,5105646577,12.08.2020,Home to School SEN Transport (LA),Taxis - Contract Hire,120.00,ALPHA (IOW) LTD
Revenue,Childrens Services,Children's & Education Services,Other Education and Community Budget,5105648904,12.08.2020,Home to School SEN Transport (LA),Taxis - Contract Hire,90.00,ALPHA (IOW) LTD
Revenue,Childrens Services,Children's & Education Services,Other Education and Community Budget,5105649530,05.08.2020,Home to School SEN Transport (LA),Taxis - Contract Hire,48.00,ALPHA (IOW) LTD
Revenue,Childrens Services,Children's & Education Services,Other Education and Community Budget,5105649531,12.08.2020,Home to School SEN Transport (LA),Taxis - Contract Hire,90.00,ALPHA (IOW) LTD
Revenue,Childrens Services,Children's & Education Services,Other Education and Community Budget,5105649530,05.08.2020,Home to School Mainstream Transport,Taxis - Contract Hire,56.00,ALPHA (IOW) LTD
Revenue,Childrens Services,Children's & Education Services,Other Education and Community Budget,5400002750,28.08.2020,Home to School SEN Transport (LA),Taxis - Contract Hire,450.00,ALPHA (IOW) LTD
Revenue,Childrens Services,Children's & Education Services,Other Education and Community Budget,5105648904,12.08.2020,Home to School SEN Transport (LA),Taxis - Contract Hire,90.00,ALPHA (IOW) LTD
Revenue,Childrens Services,Children's & Education Services,Other Education and Community Budget,5105649530,05.08.2020,Home to School SEN Transport (LA),Taxis - Contract Hire,360.00,ALPHA (IOW) LTD
Revenue,Childrens Services,Children's & Education Services,Other Education and Community Budget,5400002755,28.08.2020,Home to School SEN Transport (LA),Taxis - Contract Hire,300.00,ALPHA (IOW) LTD
Revenue,Childrens Services,Children's & Education Services,Other Education and Community Budget,5105648904,12.08.2020,Home to School SEN Transport (LA),Taxis - Contract Hire,300.00,ALPHA (IOW) LTD
Revenue,Childrens Services,Children's & Education Services,Other Education and Community Budget,5105649531,12.08.2020,Home to School SEN Transport (LA),Taxis - Contract Hire,300.00,ALPHA (IOW) LTD
Revenue,Childrens Services,Children's & Education Services,Other Education and Community Budget,5105646577,12.08.2020,Home to School Mainstream Transport,Taxis - Contract Hire,600.00,ALPHA (IOW) LTD
Revenue,Childrens Services,Children's & Education Services,Other Education and Community Budget,5105648904,12.08.2020,Home to School Mainstream Transport,Taxis - Contract Hire,600.00,ALPHA (IOW) LTD
Revenue,Childrens Services,Children's & Education Services,Other Education and Community Budget,5105649530,05.08.2020,Home to School Mainstream Transport,Taxis - Contract Hire,80.00,ALPHA (IOW) LTD
Revenue,Childrens Services,Children's & Education Services,Other Education and Community Budget,5105649531,12.08.2020,Home to School Mainstream Transport,Taxis - Contract Hire,600.00,ALPHA (IOW) LTD
Revenue,Childrens Services,Children's & Education Services,Other Education and Community Budget,5105646577,12.08.2020,Home to School SEN Transport (LA),Taxis - Contract Hire,350.00,ALPHA (IOW) LTD
Revenue,Childrens Services,Children's & Education Services,Other Education and Community Budget,5105648904,12.08.2020,Home to School SEN Transport (LA),Taxis - Contract Hire,350.00,ALPHA (IOW) LTD
Revenue,Childrens Services,Children's & Education Services,Other Education and Community Budget,5105649531,12.08.2020,Home to School SEN Transport (LA),Taxis - Contract Hire,350.00,ALPHA (IOW) LTD
Revenue,Childrens Services,Children's & Education Services,Other Education and Community Budget,5400002759,28.08.2020,Home to School SEN Transport (LA),Taxis - Contract Hire,250.00,ALPHA (IOW) LTD
Revenue,Childrens Services,Children's & Education Services,Other Education and Community Budget,5105649530,05.08.2020,Home to School SEN Transport (LA),Taxis - Contract Hire,160.00,ALPHA (IOW) LTD
Revenue,Childrens Services,Children's & Education Services,Other Education and Community Budget,5105649531,12.08.2020,Home to School SEN Transport (LA),Taxis - Contract Hire,50.00,ALPHA (IOW) LTD
Revenue,Childrens Services,Children's & Education Services,Other Education and Community Budget,5400002751,28.08.2020,Home to School SEN Transport (LA),Taxis - Contract Hire,375.00,ALPHA (IOW) LTD
Revenue,Childrens Services,Children's & Education Services,Other Education and Community Budget,5105648904,12.08.2020,Home to School SEN Transport (LA),Taxis - Contract Hire,300.00,ALPHA (IOW) LTD
Revenue,Childrens Services,Children's & Education Services,Other Education and Community Budget,5105649531,12.08.2020,Home to School SEN Transport (LA),Taxis - Contract Hire,300.00,ALPHA (IOW) LTD
Revenue,Childrens Services,Children's & Education Services,Other Education and Community Budget,5400002756,28.08.2020,Home to School Mainstream Transport,Taxis - Contract Hire,300.00,ALPHA (IOW) LTD
Revenue,Childrens Services,Children's & Education Services,Other Education and Community Budget,5105648904,12.08.2020,Home to School Mainstream Transport,Taxis - Contract Hire,300.00,ALPHA (IOW) LTD
Revenue,Childrens Services,Children's & Education Services,Other Education and Community Budget,5105649531,12.08.2020,Home to School Mainstream Transport,Taxis - Contract Hire,300.00,ALPHA (IOW) LTD
Revenue,Childrens Services,Children's & Education Services,Other Education and Community Budget,5400002761,28.08.2020,Home to School SEN Transport (LA),Taxis - Contract Hire,200.00,ALPHA (IOW) LTD
Revenue,Childrens Services,Children's & Education Services,Other Education and Community Budget,5105646577,12.08.2020,Home to School SEN Transport (LA),Taxis - Contract Hire,200.00,ALPHA (IOW) LTD
Revenue,Childrens Services,Children's & Education Services,Other Education and Community Budget,5105648904,12.08.2020,Home to School SEN Transport (LA),Taxis - Contract Hire,200.00,ALPHA (IOW) LTD
Revenue,Childrens Services,Children's & Education Services,Other Education and Community Budget,5105649531,12.08.2020,Home to School SEN Transport (LA),Taxis - Contract Hire,80.00,ALPHA (IOW) LTD
Revenue,Childrens Services,Children's & Education Services,Other Education and Community Budget,5400002754,28.08.2020,Home to School SEN Transport (LA),Taxis - Contract Hire,310.00,ALPHA (IOW) LTD
Revenue,Childrens Services,Children's & Education Services,Other Education and Community Budget,5105646577,12.08.2020,Home to School SEN Transport (LA),Taxis - Contract Hire,310.00,ALPHA (IOW) LTD
Revenue,Childrens Services,Children's & Education Services,Other Education and Community Budget,5105648904,12.08.2020,Home to School SEN Transport (LA),Taxis - Contract Hire,310.00,ALPHA (IOW) LTD
Revenue,Childrens Services,Children's & Education Services,Other Education and Community Budget,5105649531,12.08.2020,Home to School SEN Transport (LA),Taxis - Contract Hire,310.00,ALPHA (IOW) LTD
Revenue,Childrens Services,Children's & Education Services,Other Education and Community Budget,5400002759,28.08.2020,Home to School Mainstream Transport,Taxis - Contract Hire,250.00,ALPHA (IOW) LTD
Revenue,Childrens Services,Children's & Education Services,Other Education and Community Budget,5105648904,12.08.2020,Home to School Mainstream Transport,Taxis - Contract Hire,50.00,ALPHA (IOW) LTD
Revenue,Childrens Services,Children's & Education Services,Other Education and Community Budget,5105649531,12.08.2020,Home to School Mainstream Transport,Taxis - Contract Hire,250.00,ALPHA (IOW) LTD
Revenue,Childrens Services,Children's & Education Services,Other Education and Community Budget,5105646577,12.08.2020,Home to School SEN Transport (LA),Taxis - Contract Hire,500.00,ALPHA (IOW) LTD
Revenue,Childrens Services,Children's & Education Services,Other Education and Community Budget,5105648904,12.08.2020,Home to School SEN Transport (LA),Taxis - Contract Hire,525.00,ALPHA (IOW) LTD
Revenue,Childrens Services,Children's & Education Services,Other Education and Community Budget,5105649531,12.08.2020,Home to School SEN Transport (LA),Taxis - Contract Hire,550.00,ALPHA (IOW) LTD
Revenue,Childrens Services,Children's & Education Services,Other Education and Community Budget,5400002763,28.08.2020,Home to School SEN Transport (LA),Taxis - Contract Hire,150.00,ALPHA (IOW) LTD
Revenue,Childrens Services,Children's & Education Services,Other Education and Community Budget,5105649530,05.08.2020,Home to School SEN Transport (LA),Taxis - Contract Hire,80.00,ALPHA (IOW) LTD
Revenue,Childrens Services,Children's & Education Services,Other Education and Community Budget,5105649530,05.08.2020,Home to School SEN Transport (LA),Taxis - Contract Hire,12.00,ALPHA (IOW) LTD
Revenue,Adult Services,Adult Social Care,Central Codes (to be reallocated),5105649896,07.08.2020,Gouldings Resource Centre,Vehicle Hire Internal,250.00,ALPHA (IOW) LTD
Revenue,Adult Services,Adult Social Care,Learning Disability Suppt-adults (18-64),5105649407,05.08.2020,Learning Disability Residential 18-64,Charges from Independent Providers,"3,836.84",ALPHAGRANGE LTD
Revenue,Adult Services,Adult Social Care,Learning Disability Suppt-adults (18-64),5105651745,28.08.2020,Learning Disability Residential 18-64,Charges from Independent Providers,"3,836.84",ALPHAGRANGE LTD
Capital,Adult Services,Capital,Capital,5400002726,28.08.2020,Adelaide & Gouldings Fixtures & Fittings,"Plant, Equipment & Furniture - Capital",0.60,AMAZON BUSINESS UK
Revenue,Neighbourhoods,Environmental & Regulatory Services,Waste Disposal,5105650657,19.08.2020,Waste Disposal - Amey Contract,Waste Contractors,367.68,AMEY (IOW) SPV LIMITED
Revenue,Neighbourhoods,Environmental & Regulatory Services,Waste Disposal,5105650653,19.08.2020,Waste Disposal - Amey Contract,Waste Contractors,367.68,AMEY (IOW) SPV LIMITED
Revenue,Neighbourhoods,Environmental & Regulatory Services,Waste Disposal,5105650654,19.08.2020,Waste Disposal - Amey Contract,Waste Contractors,"191,139.79",AMEY (IOW) SPV LIMITED
Revenue,Neighbourhoods,Environmental & Regulatory Services,Waste Disposal,5105650655,19.08.2020,Waste Disposal - Amey Contract,Waste Contractors,"191,139.79",AMEY (IOW) SPV LIMITED
Revenue,Neighbourhoods,Environmental & Regulatory Services,Waste Collection,5105650655,19.08.2020,Waste Collection - Amey Contract,Waste Contractors,"123,275.54",AMEY (IOW) SPV LIMITED
Revenue,Neighbourhoods,Environmental & Regulatory Services,Waste Collection,5105650654,19.08.2020,Waste Collection - Amey Contract,Waste Contractors,"123,719.89",AMEY (IOW) SPV LIMITED
Revenue,Neighbourhoods,Environmental & Regulatory Services,Waste Collection,5105650653,19.08.2020,Waste Collection - Amey Contract,Waste Contractors,"1,470.74",AMEY (IOW) SPV LIMITED
Revenue,Neighbourhoods,Environmental & Regulatory Services,Waste Collection,5105650657,19.08.2020,Waste Collection - Amey Contract,Waste Contractors,"1,470.74",AMEY (IOW) SPV LIMITED
Revenue,Neighbourhoods,Environmental & Regulatory Services,Recycling,5105650654,19.08.2020,Waste Recycling - Amey Contract,Waste Contractors,"19,568.70",AMEY (IOW) SPV LIMITED
Revenue,Neighbourhoods,Environmental & Regulatory Services,Recycling,5105650655,19.08.2020,Waste Recycling - Amey Contract,Waste Contractors,"19,568.70",AMEY (IOW) SPV LIMITED
Revenue,Neighbourhoods,Environmental & Regulatory Services,Waste Collection,5105650656,19.08.2020,Waste Contract Income,Waste Contractors,"5,102.87",AMEY (IOW) SPV LIMITED
Revenue,Neighbourhoods,Environmental & Regulatory Services,Waste Collection,5105650650,19.08.2020,Waste Contract Income,Waste Contractors,"5,102.87",AMEY (IOW) SPV LIMITED
Revenue,Fire & Rescue,Fire & Rescue Services,Fire fighting and Rescue Operations,5105650609,19.08.2020,Fire Operations,"Refuse Collection, Disposal and Recycling Costs",180.00,AMEY LG LTD
Revenue,Neighbourhoods,Cultural and Related Services,Recreation and Sport,5105651076,28.08.2020,Play Development,Operational Equipment,180.60,AMP HIRE LTD
Revenue,Resources,Central Services,Support Services,5105649946,07.08.2020,Litigation Costs,Legal Fees - Other Parties,400.00,COLLEGE CHAMBERS BARRISTERS
Revenue,Resources,Central Services,Support Services,5105651078,21.08.2020,Litigation Costs,Legal Fees - Other Parties,400.00,COLLEGE CHAMBERS BARRISTERS
Revenue,Adult Services,Adult Social Care,Social Support -Substance Misuse Support,5105650448,14.08.2020,Substance Misuse Residential,Charges from Independent Providers,"8,231.01",ANA TREATMENT CENTRES LTD
Revenue,Adult Services,Adult Social Care,Social Support -Substance Misuse Support,5105651720,28.08.2020,Substance Misuse Residential,Charges from Independent Providers,"1,908.64",ANA TREATMENT CENTRES LTD
Revenue,Adult Services,Adult Social Care,Physical Support - older people (65+),5105649408,05.08.2020,Physical Support Residential 65+,Charges from Independent Providers,"2,028.32",ANCONA CARE HOME
Revenue,Adult Services,Adult Social Care,Physical Support - older people (65+),5105651746,28.08.2020,Physical Support Residential 65+,Charges from Independent Providers,"2,028.32",ANCONA CARE HOME
Revenue,Adult Services,Balance Sheet,Balance Sheet,5105649408,05.08.2020,REDACTED PERSONAL DATA,Order Settlement to Bal Sht GL,"2,497.32",ANCONA CARE HOME
Revenue,Adult Services,Balance Sheet,Balance Sheet,5105651746,28.08.2020,REDACTED PERSONAL DATA,Order Settlement to Bal Sht GL,"2,497.32",ANCONA CARE HOME
Revenue,Adult Services,Adult Social Care,Physical Support - older people (65+),5105649408,05.08.2020,Physical Support Residential 65+,Charges from Independent Providers,"2,497.32",ANCONA CARE HOME
Revenue,Adult Services,Adult Social Care,Physical Support - older people (65+),5105651746,28.08.2020,Physical Support Residential 65+,Charges from Independent Providers,"2,497.32",ANCONA CARE HOME
Revenue,Adult Services,Adult Social Care,Commissioning & Service Delivery,5105650007,12.08.2020,CHC Residential Care,Charges from Independent Providers,"3,567.60",ANCONA CARE HOME
Revenue,Adult Services,Adult Social Care,Commissioning & Service Delivery,5105649408,05.08.2020,CHC Residential Care,Charges from Independent Providers,"2,497.32",ANCONA CARE HOME
Revenue,Assistant Chief Executive,Central Services,Support Services,5105651236,26.08.2020,Print Unit,Stationery,23.92,ANTALIS MCNAUGHTON
Revenue,Assistant Chief Executive,Central Services,Support Services,5105651236,26.08.2020,Print Unit,Stationery,50.60,ANTALIS MCNAUGHTON
Revenue,Assistant Chief Executive,Central Services,Support Services,5105651236,26.08.2020,Print Unit,Stationery,24.55,ANTALIS MCNAUGHTON
Revenue,Assistant Chief Executive,Central Services,Support Services,5105651236,26.08.2020,Print Unit,Stationery,81.30,ANTALIS MCNAUGHTON
Revenue,Resources,Central Services,Support Services,5105651030,21.08.2020,Litigation Costs,Legal Fees - Other Parties,400.00,"COLLEGE CHAMBERS, BARRISTERS"
Revenue,Resources,Central Services,Support Services,5105649944,07.08.2020,Litigation Costs,Legal Fees - Other Parties,502.50,"ST PHILLIPS BARRISTERS, BIRMINGHAM"
Revenue,Neighbourhoods,Planning services,Management & Support Services,5105650973,26.08.2020,Head of Place,Staff Hotel & Accommodation Costs,99.00,APSE
Revenue,Neighbourhoods,Environmental & Regulatory Services,Service Management and Support Services,5105650973,26.08.2020,Waste Contract Management,Staff Hotel & Accommodation Costs,99.00,APSE
Revenue,Neighbourhoods,Environmental & Regulatory Services,Service Management and Support Services,5105649648,19.08.2020,Environment officers,Operational Equipment,52.40,ARCO LTD
Revenue,Fire & Rescue,Fire & Rescue Services,Fire fighting and Rescue Operations,5105650134,12.08.2020,Fire Technical Support,Operational Equipment,179.40,ARCO LTD
Revenue,Neighbourhoods,Highways and Transport Services,"Airports, Harbours & Toll Facilities",5105649303,12.08.2020,Ferry Operation,Clothing & Laundry,49.04,ARCO LTD
Revenue,Neighbourhoods,Highways and Transport Services,"Airports, Harbours & Toll Facilities",5105649929,21.08.2020,Ferry Operation,Clothing & Laundry,49.04,ARCO LTD
Revenue,Neighbourhoods,Highways and Transport Services,"Airports, Harbours & Toll Facilities",5105650019,12.08.2020,Ferry Operation,Clothing & Laundry,-49.04,ARCO LTD
Revenue,Neighbourhoods,Highways and Transport Services,"Airports, Harbours & Toll Facilities",5105650959,21.08.2020,Ferry Operation,Clothing & Laundry,-49.04,ARCO LTD
Revenue,Childrens Services,Children's & Education Services,Special Schools & Alternative Provision,5105649567,05.08.2020,Island Learning Centre,Client Expenses,35.16,ARCO LTD
Revenue,Childrens Services,Children's & Education Services,Special Schools & Alternative Provision,5105649567,05.08.2020,Island Learning Centre,Client Expenses,70.32,ARCO LTD
Revenue,Childrens Services,Children's & Education Services,Special Schools & Alternative Provision,5105649567,05.08.2020,Island Learning Centre,Client Expenses,117.20,ARCO LTD
Revenue,Childrens Services,Children's & Education Services,Special Schools & Alternative Provision,5105649567,05.08.2020,Island Learning Centre,Client Expenses,70.32,ARCO LTD
Revenue,Childrens Services,Children's & Education Services,Special Schools & Alternative Provision,5105649567,05.08.2020,Island Learning Centre,Client Expenses,32.76,ARCO LTD
Revenue,Childrens Services,Children's & Education Services,Special Schools & Alternative Provision,5105649567,05.08.2020,Island Learning Centre,Client Expenses,65.52,ARCO LTD
Revenue,Childrens Services,Children's & Education Services,Special Schools & Alternative Provision,5105649567,05.08.2020,Island Learning Centre,Client Expenses,109.20,ARCO LTD
Revenue,Childrens Services,Children's & Education Services,Special Schools & Alternative Provision,5105649567,05.08.2020,Island Learning Centre,Client Expenses,65.52,ARCO LTD
Revenue,Fire & Rescue,Fire & Rescue Services,Fire fighting and Rescue Operations,5105651033,21.08.2020,Fire Technical Support,Operational Equipment,58.52,ARCO LTD
Revenue,Fire & Rescue,Fire & Rescue Services,Fire fighting and Rescue Operations,5105651075,21.08.2020,Fire Technical Support,Operational Equipment,156.53,ARCO LTD
Revenue,Public Health,Public Health,NHS Health Check Programme,5105649003,07.08.2020,NHS Health Check Programme P,Payment to Private Contractors,546.00,ARGYLL HOUSE SURGERY
Revenue,Adult Services,Adult Social Care,Learning Disab Supp (to be reallocated),5105648470,05.08.2020,40 Venner Avenue (Now SL),Minor Works,76.00,ARJO UK LTD
Revenue,Adult Services,Adult Social Care,Social Support - Support for Carer,5105649465,05.08.2020,Carers Residential,Charges from Independent Providers,"2,497.32",ASHMERE DERBYSHIRE LIMITED
Revenue,Adult Services,Adult Social Care,Social Support - Support for Carer,5105651803,28.08.2020,Carers Residential,Charges from Independent Providers,"2,497.32",ASHMERE DERBYSHIRE LIMITED
Revenue,Childrens Services,Children's & Education Services,Other Education and Community Budget,5105651225,26.08.2020,Adult Community Learning,Licences,470.00,ASSOCIATION OF ADULT EDUCATION
Revenue,Public Health,Public Health,Central Codes (to be reallocated),5105650681,21.08.2020,Public Health Core Staffing NP,Payments to Other Local Authorities,"2,570.00",ASSOC OF DIRECTORS OF PUBLIC HEALTH
Revenue,Neighbourhoods,Cultural and Related Services,Library Service,5105650479,26.08.2020,Ventnor Library,Property Services - Planned Maintenance,445.00,ASSA ABLOY ENTRANCE SYSTEMS LTD
Revenue,Neighbourhoods,Cultural and Related Services,Library Service,5105650480,26.08.2020,Sandown Library,Property Services - Planned Maintenance,445.00,ASSA ABLOY ENTRANCE SYSTEMS LTD
Revenue,Adult Services,Adult Social Care,Social Support - Support for Carer,5105650482,26.08.2020,Westminster House,Property Services - Planned Maintenance,445.00,ASSA ABLOY ENTRANCE SYSTEMS LTD
Revenue,Adult Services,Adult Social Care,Central Codes (to be reallocated),5105650478,26.08.2020,Adelaide Resource Centre,Property Services - Planned Maintenance,445.00,ASSA ABLOY ENTRANCE SYSTEMS LTD
Revenue,Neighbourhoods,Cultural and Related Services,Library Service,5105650476,26.08.2020,Ryde Library,Property Services - Planned Maintenance,445.00,ASSA ABLOY ENTRANCE SYSTEMS LTD
Revenue,Childrens Services,Children's & Education Services,Management & Support Services,5105650483,26.08.2020,Specialist Service Business Admin,Minor Works,445.00,ASSA ABLOY ENTRANCE SYSTEMS LTD
Revenue,Adult Services,Adult Social Care,Central Codes (to be reallocated),5105650477,26.08.2020,Gouldings Resource Centre,Property Services - Planned Maintenance,445.00,ASSA ABLOY ENTRANCE SYSTEMS LTD
Revenue,Neighbourhoods,Cultural and Related Services,Culture and Heritage,5105650474,26.08.2020,Medina Theatre,Property Services - Planned Maintenance,355.00,ASSA ABLOY ENTRANCE SYSTEMS LTD
Revenue,Regeneration,Central Services,Support Services,5105650481,26.08.2020,Parklands,Property Services - Planned Maintenance,445.00,ASSA ABLOY ENTRANCE SYSTEMS LTD
Revenue,Neighbourhoods,Cultural and Related Services,Recreation and Sport,5105650475,26.08.2020,Medina Leisure Centre,Property Services - Day to day Maintenance,710.00,ASSA ABLOY ENTRANCE SYSTEMS LTD
Revenue,Adult Services,Adult Social Care,Physical Support - older people (65+),5105649389,05.08.2020,Physical Support Residential 65+,Charges from Independent Providers,"2,124.08",AUTUMN HOUSE CARE LTD
Revenue,Adult Services,Adult Social Care,Physical Support - older people (65+),5105651727,28.08.2020,Physical Support Residential 65+,Charges from Independent Providers,"2,124.08",AUTUMN HOUSE CARE LTD
Revenue,Adult Services,Adult Social Care,Support - Memory /Cognition-older people (65+),5105649389,05.08.2020,Memory & Cognition Residential 65+,Charges from Independent Providers,"2,497.32",AUTUMN HOUSE CARE LTD
Revenue,Adult Services,Adult Social Care,Support - Memory /Cognition-older people (65+),5105651727,28.08.2020,Memory & Cognition Residential 65+,Charges from Independent Providers,"2,497.32",AUTUMN HOUSE CARE LTD
Revenue,Adult Services,Adult Social Care,Physical Support - older people (65+),5105649389,05.08.2020,Physical Support Residential 65+,Charges from Independent Providers,"2,497.32",AUTUMN HOUSE CARE LTD
Revenue,Adult Services,Adult Social Care,Physical Support - older people (65+),5105651727,28.08.2020,Physical Support Residential 65+,Charges from Independent Providers,"2,497.32",AUTUMN HOUSE CARE LTD
Revenue,Adult Services,Adult Social Care,Support - Memory /Cognition-older people (65+),5105649389,05.08.2020,Memory & Cognition Residential 65+,Charges from Independent Providers,"2,497.32",AUTUMN HOUSE CARE LTD
Revenue,Adult Services,Adult Social Care,Support - Memory /Cognition-older people (65+),5105651727,28.08.2020,Memory & Cognition Residential 65+,Charges from Independent Providers,"2,497.32",AUTUMN HOUSE CARE LTD
Revenue,Adult Services,Adult Social Care,Physical Support - older people (65+),5105649389,05.08.2020,Physical Support Residential 65+,Charges from Independent Providers,"2,124.08",AUTUMN HOUSE CARE LTD
Revenue,Adult Services,Adult Social Care,Physical Support - older people (65+),5105651727,28.08.2020,Physical Support Residential 65+,Charges from Independent Providers,"2,124.08",AUTUMN HOUSE CARE LTD
Revenue,Adult Services,Adult Social Care,Support - Memory /Cognition-older people (65+),5105649389,05.08.2020,Memory & Cognition Residential 65+,Charges from Independent Providers,"2,124.08",AUTUMN HOUSE CARE LTD
Revenue,Adult Services,Adult Social Care,Support - Memory /Cognition-older people (65+),5105651727,28.08.2020,Memory & Cognition Residential 65+,Charges from Independent Providers,"2,124.08",AUTUMN HOUSE CARE LTD
Revenue,Adult Services,Balance Sheet,Balance Sheet,5105649389,05.08.2020,REDACTED PERSONAL DATA,Order Settlement to Bal Sht GL,"2,124.08",AUTUMN HOUSE CARE LTD
Revenue,Adult Services,Balance Sheet,Balance Sheet,5105651727,28.08.2020,REDACTED PERSONAL DATA,Order Settlement to Bal Sht GL,"2,124.08",AUTUMN HOUSE CARE LTD
Revenue,Adult Services,Adult Social Care,Support - Memory /Cognition-older people (65+),5105649389,05.08.2020,Memory & Cognition Residential 65+,Charges from Independent Providers,"2,497.32",AUTUMN HOUSE CARE LTD
Revenue,Adult Services,Adult Social Care,Support - Memory /Cognition-older people (65+),5105651727,28.08.2020,Memory & Cognition Residential 65+,Charges from Independent Providers,"2,497.32",AUTUMN HOUSE CARE LTD
Revenue,Adult Services,Adult Social Care,Support - Memory /Cognition-older people (65+),5105649389,05.08.2020,Memory & Cognition Residential 65+,Charges from Independent Providers,"2,497.32",AUTUMN HOUSE CARE LTD
Revenue,Adult Services,Adult Social Care,Support - Memory /Cognition-older people (65+),5105651727,28.08.2020,Memory & Cognition Residential 65+,Charges from Independent Providers,"2,497.32",AUTUMN HOUSE CARE LTD
Revenue,Adult Services,Adult Social Care,Physical Support - older people (65+),5105649389,05.08.2020,Physical Support Residential 65+,Charges from Independent Providers,"2,497.32",AUTUMN HOUSE CARE LTD
Revenue,Adult Services,Adult Social Care,Physical Support - older people (65+),5105651727,28.08.2020,Physical Support Residential 65+,Charges from Independent Providers,"2,497.32",AUTUMN HOUSE CARE LTD
Revenue,Adult Services,Adult Social Care,Physical Support - older people (65+),5105649389,05.08.2020,Physical Support Residential 65+,Charges from Independent Providers,"2,497.32",AUTUMN HOUSE CARE LTD
Revenue,Adult Services,Adult Social Care,Physical Support - older people (65+),5105651727,28.08.2020,Physical Support Residential 65+,Charges from Independent Providers,"2,497.32",AUTUMN HOUSE CARE LTD
Revenue,Adult Services,Adult Social Care,Physical Support - older people (65+),5105649389,05.08.2020,Physical Support Residential 65+,Charges from Independent Providers,"2,497.32",AUTUMN HOUSE CARE LTD
Revenue,Adult Services,Adult Social Care,Physical Support - older people (65+),5105651727,28.08.2020,Physical Support Residential 65+,Charges from Independent Providers,"2,497.32",AUTUMN HOUSE CARE LTD
Revenue,Adult Services,Adult Social Care,Physical Support - older people (65+),5105649389,05.08.2020,Physical Support Residential 65+,Charges from Independent Providers,"2,497.32",AUTUMN HOUSE CARE LTD
Revenue,Adult Services,Adult Social Care,Physical Support - older people (65+),5105651727,28.08.2020,Physical Support Residential 65+,Charges from Independent Providers,"2,497.32",AUTUMN HOUSE CARE LTD
Revenue,Adult Services,Adult Social Care,Support - Memory /Cognition-older people (65+),5105649389,05.08.2020,Memory & Cognition Residential 65+,Charges from Independent Providers,"2,497.32",AUTUMN HOUSE CARE LTD
Revenue,Adult Services,Adult Social Care,Support - Memory /Cognition-older people (65+),5105651727,28.08.2020,Memory & Cognition Residential 65+,Charges from Independent Providers,"2,497.32",AUTUMN HOUSE CARE LTD
Revenue,Adult Services,Adult Social Care,Physical Support - older people (65+),5105649389,05.08.2020,Physical Support Residential 65+,Charges from Independent Providers,"2,497.32",AUTUMN HOUSE CARE LTD
Revenue,Adult Services,Adult Social Care,Physical Support - older people (65+),5105651727,28.08.2020,Physical Support Residential 65+,Charges from Independent Providers,"2,497.32",AUTUMN HOUSE CARE LTD
Revenue,Adult Services,Adult Social Care,Physical Support - older people (65+),5105649389,05.08.2020,Physical Support Residential 65+,Charges from Independent Providers,"2,497.32",AUTUMN HOUSE CARE LTD
Revenue,Adult Services,Adult Social Care,Physical Support - older people (65+),5105651727,28.08.2020,Physical Support Residential 65+,Charges from Independent Providers,"2,497.32",AUTUMN HOUSE CARE LTD
Revenue,Adult Services,Adult Social Care,Physical Support - older people (65+),5105649389,05.08.2020,Physical Support Residential 65+,Charges from Independent Providers,"2,497.32",AUTUMN HOUSE CARE LTD
Revenue,Adult Services,Adult Social Care,Physical Support - older people (65+),5105651727,28.08.2020,Physical Support Residential 65+,Charges from Independent Providers,"2,497.32",AUTUMN HOUSE CARE LTD
Revenue,Adult Services,Balance Sheet,Balance Sheet,5105649389,05.08.2020,REDACTED PERSONAL DATA,Order Settlement to Bal Sht GL,"2,124.08",AUTUMN HOUSE CARE LTD
Revenue,Adult Services,Balance Sheet,Balance Sheet,5105651727,28.08.2020,REDACTED PERSONAL DATA,Order Settlement to Bal Sht GL,"2,124.08",AUTUMN HOUSE CARE LTD
Revenue,Adult Services,Adult Social Care,Physical Support - older people (65+),5105649389,05.08.2020,Physical Support Residential 65+,Charges from Independent Providers,"2,497.32",AUTUMN HOUSE CARE LTD
Revenue,Adult Services,Adult Social Care,Physical Support - older people (65+),5105651727,28.08.2020,Physical Support Residential 65+,Charges from Independent Providers,"2,497.32",AUTUMN HOUSE CARE LTD
Revenue,Adult Services,Adult Social Care,Physical Support - older people (65+),5105649389,05.08.2020,Physical Support Residential 65+,Charges from Independent Providers,"2,497.32",AUTUMN HOUSE CARE LTD
Revenue,Adult Services,Adult Social Care,Physical Support - older people (65+),5105651727,28.08.2020,Physical Support Residential 65+,Charges from Independent Providers,"2,497.32",AUTUMN HOUSE CARE LTD
Revenue,Adult Services,Adult Social Care,Support - Memory /Cognition-older people (65+),5105649389,05.08.2020,Memory & Cognition Residential 65+,Charges from Independent Providers,"2,497.32",AUTUMN HOUSE CARE LTD
Revenue,Adult Services,Adult Social Care,Support - Memory /Cognition-older people (65+),5105651727,28.08.2020,Memory & Cognition Residential 65+,Charges from Independent Providers,"2,497.32",AUTUMN HOUSE CARE LTD
Revenue,Adult Services,Balance Sheet,Balance Sheet,5105649389,05.08.2020,REDACTED PERSONAL DATA,Order Settlement to Bal Sht GL,"2,497.32",AUTUMN HOUSE CARE LTD
Revenue,Adult Services,Balance Sheet,Balance Sheet,5105651727,28.08.2020,REDACTED PERSONAL DATA,Order Settlement to Bal Sht GL,"2,497.32",AUTUMN HOUSE CARE LTD
Revenue,Adult Services,Balance Sheet,Balance Sheet,5105651727,28.08.2020,REDACTED PERSONAL DATA,Order Settlement to Bal Sht GL,908.88,AUTUMN HOUSE CARE LTD
Revenue,Adult Services,Balance Sheet,Balance Sheet,5105649389,05.08.2020,REDACTED PERSONAL DATA,Order Settlement to Bal Sht GL,908.88,AUTUMN HOUSE CARE LTD
Revenue,Adult Services,Adult Social Care,Physical Support - older people (65+),5105649389,05.08.2020,Physical Support Residential 65+,Charges from Independent Providers,"2,497.32",AUTUMN HOUSE CARE LTD
Revenue,Adult Services,Adult Social Care,Physical Support - older people (65+),5105651727,28.08.2020,Physical Support Residential 65+,Charges from Independent Providers,"2,497.32",AUTUMN HOUSE CARE LTD
Revenue,Adult Services,Adult Social Care,Physical Support - older people (65+),5105650665,19.08.2020,Physical Support Residential 65+,Charges from Independent Providers,"4,370.31",AUTUMN HOUSE CARE LTD
Revenue,Adult Services,Adult Social Care,Physical Support - older people (65+),5105651727,28.08.2020,Physical Support Residential 65+,Charges from Independent Providers,"2,497.32",AUTUMN HOUSE CARE LTD
Revenue,Regeneration,Planning services,Economic Development,5105648911,05.08.2020,"30 High St, Newport",Rent of Buildings and Rooms,416.67,REDACTED PERSONAL DATA
Revenue,Childrens Services,Children's & Education Services,Children Looked After,5105649697,07.08.2020,In-house Fostering,Boarding Out Allowances,521.22,REDACTED PERSONAL DATA
Revenue,Childrens Services,Children's & Education Services,Children Looked After,5105650204,14.08.2020,In-house Fostering,Boarding Out Allowances,521.22,REDACTED PERSONAL DATA
Revenue,Childrens Services,Children's & Education Services,Children Looked After,5105650750,21.08.2020,In-house Fostering,Boarding Out Allowances,521.22,REDACTED PERSONAL DATA
Revenue,Childrens Services,Children's & Education Services,Children Looked After,5105651414,28.08.2020,In-house Fostering,Boarding Out Allowances,521.22,REDACTED PERSONAL DATA
Revenue,Resources,Central Services,Support Services,5105651163,26.08.2020,Staff Benefits,Payment to Private Contractors,25.00,REDACTED PERSONAL DATA
Revenue,Adult Services,Housing Services,Homelessness,5105651111,26.08.2020,Private Rented Sector Leasing Scheme,Accommodation Costs - Leaseholder Payments,866.67,REDACTED PERSONAL DATA
Revenue,Adult Services,Adult Social Care,Assistive Equipment & Technology,5105650619,19.08.2020,Community Equipment Store,Operational Equipment,230.00,B.E.S REHAB LTD
Revenue,Adult Services,Adult Social Care,Assistive Equipment & Technology,5105650619,19.08.2020,Community Equipment Store,Operational Equipment,68.00,B.E.S REHAB LTD
Revenue,Adult Services,Adult Social Care,Assistive Equipment & Technology,5105650619,19.08.2020,Community Equipment Store,Operational Equipment,30.00,B.E.S REHAB LTD
Revenue,Adult Services,Adult Social Care,Commissioning & Service Delivery,5105649468,05.08.2020,CHC Nursing Care,Charges from Independent Providers,"10,332.00",BAGSHOT PARK CARE CENTRE
Revenue,Adult Services,Adult Social Care,Commissioning & Service Delivery,5105651806,28.08.2020,CHC Nursing Care,Charges from Independent Providers,"10,332.00",BAGSHOT PARK CARE CENTRE
Revenue,Adult Services,Adult Social Care,Commissioning & Service Delivery,5400002738,28.08.2020,ASC County Hall office costs,Stationery,0.70,SUPPLIES TEAM LTD
Revenue,Neighbourhoods,Central Services,Central Services to the Public,5105648258,05.08.2020,Coroner,Stationery,-59.25,SUPPLIES TEAM LTD
Revenue,Childrens Services,Children's & Education Services,Children Looked After,5105647348,05.08.2020,Beaulieu House,Stationery,47.40,SUPPLIES TEAM LTD
Revenue,Childrens Services,Children's & Education Services,Children Looked After,5105647348,05.08.2020,Beaulieu House,Stationery,2.12,SUPPLIES TEAM LTD
Revenue,Adult Services,Adult Social Care,Commissioning & Service Delivery,5105647960,12.08.2020,ASC County Hall office costs,Stationery,4.24,SUPPLIES TEAM LTD
Revenue,Childrens Services,Children's & Education Services,Other Education and Community Budget,5105649579,05.08.2020,Schools Asset Management,Stationery,2.12,SUPPLIES TEAM LTD
Revenue,Neighbourhoods,Central Services,Central Services to the Public,5105649594,05.08.2020,"Registration Of Births,Deaths, Marriages",Stationery,7.34,SUPPLIES TEAM LTD
Revenue,Neighbourhoods,Central Services,Central Services to the Public,5105649594,05.08.2020,"Registration Of Births,Deaths, Marriages",Stationery,11.85,SUPPLIES TEAM LTD
Revenue,Neighbourhoods,Central Services,Central Services to the Public,5105649594,05.08.2020,"Registration Of Births,Deaths, Marriages",Stationery,5.77,SUPPLIES TEAM LTD
Revenue,Adult Services,Adult Social Care,Commissioning & Service Delivery,5105649563,05.08.2020,ASC County Hall office costs,Stationery,1.24,SUPPLIES TEAM LTD
Revenue,Resources,Central Services,Corporate and Democratic Core,5105649563,05.08.2020,Cabinet Support,Stationery,11.85,SUPPLIES TEAM LTD
Revenue,Adult Services,Adult Social Care,Commissioning & Service Delivery,5105649563,05.08.2020,ASC County Hall office costs,Stationery,0.56,SUPPLIES TEAM LTD
Revenue,Adult Services,Adult Social Care,Commissioning & Service Delivery,5105649563,05.08.2020,ASC County Hall office costs,Stationery,1.00,SUPPLIES TEAM LTD
Revenue,Adult Services,Adult Social Care,Commissioning & Service Delivery,5105649563,05.08.2020,ASC County Hall office costs,Stationery,2.55,SUPPLIES TEAM LTD
Revenue,Adult Services,Adult Social Care,Commissioning & Service Delivery,5105649563,05.08.2020,ASC County Hall office costs,Stationery,1.80,SUPPLIES TEAM LTD
Revenue,Adult Services,Adult Social Care,Commissioning & Service Delivery,5105649563,05.08.2020,Deputyship Office,Stationery,3.42,SUPPLIES TEAM LTD
Revenue,Adult Services,Adult Social Care,Commissioning & Service Delivery,5105649563,05.08.2020,Deputyship Office,Stationery,7.16,SUPPLIES TEAM LTD
Revenue,Adult Services,Adult Social Care,Commissioning & Service Delivery,5105649563,05.08.2020,Deputyship Office,Stationery,4.33,SUPPLIES TEAM LTD
Revenue,Adult Services,Adult Social Care,Commissioning & Service Delivery,5105649563,05.08.2020,Deputyship Office,Stationery,7.40,SUPPLIES TEAM LTD
Revenue,Adult Services,Adult Social Care,Commissioning & Service Delivery,5105649563,05.08.2020,Deputyship Office,Stationery,5.54,SUPPLIES TEAM LTD
Revenue,Adult Services,Adult Social Care,Commissioning & Service Delivery,5105649563,05.08.2020,Deputyship Office,Stationery,5.77,SUPPLIES TEAM LTD
Revenue,Adult Services,Adult Social Care,Commissioning & Service Delivery,5105649563,05.08.2020,Deputyship Office,Stationery,7.34,SUPPLIES TEAM LTD
Revenue,Adult Services,Adult Social Care,Commissioning & Service Delivery,5105649563,05.08.2020,Deputyship Office,Stationery,2.57,SUPPLIES TEAM LTD
Revenue,Adult Services,Adult Social Care,Commissioning & Service Delivery,5105649563,05.08.2020,Director of Adult Social Services,Stationery,47.40,SUPPLIES TEAM LTD
Revenue,Adult Services,Adult Social Care,Commissioning & Service Delivery,5105649563,05.08.2020,Deputyship Office,Stationery,0.37,SUPPLIES TEAM LTD
Revenue,Adult Services,Adult Social Care,Commissioning & Service Delivery,5105649563,05.08.2020,Deputyship Office,Stationery,1.79,SUPPLIES TEAM LTD
Revenue,Neighbourhoods,Cultural and Related Services,Open Spaces,5105649563,05.08.2020,Fort Victoria,Stationery,37.80,SUPPLIES TEAM LTD
Revenue,Neighbourhoods,Cultural and Related Services,Open Spaces,5105649563,05.08.2020,Fort Victoria,Stationery,14.40,SUPPLIES TEAM LTD
Revenue,Childrens Services,Children's & Education Services,Special Schools & Alternative Provision,5105649565,05.08.2020,Island Learning Centre,Stationery,1.31,SUPPLIES TEAM LTD
Revenue,Childrens Services,Children's & Education Services,Special Schools & Alternative Provision,5105649565,05.08.2020,Island Learning Centre,Stationery,0.56,SUPPLIES TEAM LTD
Revenue,Childrens Services,Children's & Education Services,Special Schools & Alternative Provision,5105649565,05.08.2020,Island Learning Centre,Stationery,7.00,SUPPLIES TEAM LTD
Revenue,Childrens Services,Children's & Education Services,Special Schools & Alternative Provision,5105649565,05.08.2020,Island Learning Centre,Stationery,3.09,SUPPLIES TEAM LTD
Revenue,Childrens Services,Children's & Education Services,Special Schools & Alternative Provision,5105649565,05.08.2020,Island Learning Centre,Stationery,2.44,SUPPLIES TEAM LTD
Revenue,Childrens Services,Children's & Education Services,Special Schools & Alternative Provision,5105649565,05.08.2020,Island Learning Centre,Stationery,4.10,SUPPLIES TEAM LTD
Revenue,Childrens Services,Children's & Education Services,Special Schools & Alternative Provision,5105649565,05.08.2020,Island Learning Centre,Stationery,3.18,SUPPLIES TEAM LTD
Revenue,Neighbourhoods,Central Services,Central Services to the Public,5105649900,07.08.2020,"Registration Of Births,Deaths, Marriages",Stationery,7.34,SUPPLIES TEAM LTD
Revenue,Neighbourhoods,Central Services,Central Services to the Public,5105649900,07.08.2020,"Registration Of Births,Deaths, Marriages",Stationery,11.54,SUPPLIES TEAM LTD
Revenue,Neighbourhoods,Central Services,Central Services to the Public,5105649900,07.08.2020,"Registration Of Births,Deaths, Marriages",Stationery,11.85,SUPPLIES TEAM LTD
Revenue,Adult Services,Adult Social Care,Central Codes (to be reallocated),5105650386,14.08.2020,Community Reablement,Stationery,142.20,SUPPLIES TEAM LTD
Revenue,Adult Services,Adult Social Care,Commissioning & Service Delivery,5105650444,14.08.2020,ASC County Hall office costs,Stationery,47.40,SUPPLIES TEAM LTD
Revenue,Neighbourhoods,Environmental & Regulatory Services,Service Management and Support Services,5105650118,19.08.2020,Regulatory Management & Admin Support,Stationery,7.40,SUPPLIES TEAM LTD
Revenue,Neighbourhoods,Environmental & Regulatory Services,Service Management and Support Services,5105650118,19.08.2020,Regulatory Management & Admin Support,Stationery,5.54,SUPPLIES TEAM LTD
Revenue,Fire & Rescue,Fire & Rescue Services,Fire fighting and Rescue Operations,5105650441,19.08.2020,Fire Technical Support,Stationery,35.55,SUPPLIES TEAM LTD
Revenue,Neighbourhoods,Environmental & Regulatory Services,"Cemetery, Cremation & Mortuary Services",5105650442,19.08.2020,Crematorium,Stationery,4.04,SUPPLIES TEAM LTD
Revenue,Resources,Central Services,Support Services,5105650520,21.08.2020,Payroll,Stationery,4.33,SUPPLIES TEAM LTD
Revenue,Neighbourhoods,Environmental & Regulatory Services,"Cemetery, Cremation & Mortuary Services",5105650635,26.08.2020,Crematorium,Stationery,5.54,SUPPLIES TEAM LTD
Revenue,Neighbourhoods,Environmental & Regulatory Services,"Cemetery, Cremation & Mortuary Services",5105650635,26.08.2020,Crematorium,Stationery,25.32,SUPPLIES TEAM LTD
Revenue,Neighbourhoods,Environmental & Regulatory Services,"Cemetery, Cremation & Mortuary Services",5105650635,26.08.2020,Crematorium,Stationery,2.12,SUPPLIES TEAM LTD
Revenue,Neighbourhoods,Environmental & Regulatory Services,"Cemetery, Cremation & Mortuary Services",5105650635,26.08.2020,Crematorium,Stationery,11.85,SUPPLIES TEAM LTD
Revenue,Neighbourhoods,Environmental & Regulatory Services,"Cemetery, Cremation & Mortuary Services",5105650635,26.08.2020,Crematorium,Stationery,3.14,SUPPLIES TEAM LTD
Revenue,Neighbourhoods,Environmental & Regulatory Services,"Cemetery, Cremation & Mortuary Services",5105650635,26.08.2020,Crematorium,Stationery,16.73,SUPPLIES TEAM LTD
Revenue,Neighbourhoods,Environmental & Regulatory Services,"Cemetery, Cremation & Mortuary Services",5105650635,26.08.2020,Crematorium,Stationery,4.52,SUPPLIES TEAM LTD
Revenue,Neighbourhoods,Environmental & Regulatory Services,"Cemetery, Cremation & Mortuary Services",5105650635,26.08.2020,Crematorium,Stationery,1.62,SUPPLIES TEAM LTD
Revenue,Neighbourhoods,Environmental & Regulatory Services,"Cemetery, Cremation & Mortuary Services",5105650635,26.08.2020,Crematorium,Stationery,2.46,SUPPLIES TEAM LTD
Revenue,Neighbourhoods,Cultural and Related Services,Culture and Heritage,5105651036,21.08.2020,Dinosaur Isle Museum (Sandown Geology),Stationery,118.50,SUPPLIES TEAM LTD
Revenue,Neighbourhoods,Cultural and Related Services,Culture and Heritage,5105650652,21.08.2020,Dinosaur Isle Museum (Sandown Geology),Stationery,11.42,SUPPLIES TEAM LTD
Revenue,Fire & Rescue,Fire & Rescue Services,Fire fighting and Rescue Operations,5105650660,21.08.2020,Business Support  - Fire,Stationery,71.10,SUPPLIES TEAM LTD
Revenue,Fire & Rescue,Fire & Rescue Services,Fire fighting and Rescue Operations,5105650660,21.08.2020,Business Support  - Fire,Stationery,0.90,SUPPLIES TEAM LTD
Revenue,Fire & Rescue,Fire & Rescue Services,Fire fighting and Rescue Operations,5105650660,21.08.2020,Business Support  - Fire,Stationery,11.70,SUPPLIES TEAM LTD
Revenue,Adult Services,Adult Social Care,Commissioning & Service Delivery,5105650658,26.08.2020,Group Manager Leaning Disability Homes,Stationery,11.85,SUPPLIES TEAM LTD
Revenue,Adult Services,Adult Social Care,Commissioning & Service Delivery,5105650658,26.08.2020,Group Manager Leaning Disability Homes,Stationery,1.62,SUPPLIES TEAM LTD
Revenue,Adult Services,Adult Social Care,Commissioning & Service Delivery,5105650645,21.08.2020,Group Manager Leaning Disability Homes,Stationery,6.15,SUPPLIES TEAM LTD
Revenue,Adult Services,Adult Social Care,Commissioning & Service Delivery,5105650645,21.08.2020,Group Manager Leaning Disability Homes,Stationery,11.85,SUPPLIES TEAM LTD
Revenue,Adult Services,Adult Social Care,Commissioning & Service Delivery,5105650645,21.08.2020,Group Manager Leaning Disability Homes,Stationery,11.42,SUPPLIES TEAM LTD
Revenue,Adult Services,Adult Social Care,Commissioning & Service Delivery,5105650645,21.08.2020,Group Manager Leaning Disability Homes,Stationery,7.87,SUPPLIES TEAM LTD
Revenue,Adult Services,Adult Social Care,Commissioning & Service Delivery,5105650645,21.08.2020,Group Manager Leaning Disability Homes,Stationery,1.23,SUPPLIES TEAM LTD
Revenue,Neighbourhoods,Cultural and Related Services,Library Service,5105650651,21.08.2020,Public Libraries Central,Stationery,6.48,SUPPLIES TEAM LTD
Revenue,Neighbourhoods,Cultural and Related Services,Library Service,5105650651,21.08.2020,Public Libraries Central,Stationery,8.05,SUPPLIES TEAM LTD
Revenue,Adult Services,Adult Social Care,Central Codes (to be reallocated),5105650649,21.08.2020,Gouldings Resource Centre,Stationery,35.55,SUPPLIES TEAM LTD
Revenue,Adult Services,Adult Social Care,Central Codes (to be reallocated),5105650649,21.08.2020,Gouldings Resource Centre,Stationery,2.12,SUPPLIES TEAM LTD
Revenue,Adult Services,Adult Social Care,Central Codes (to be reallocated),5105650649,21.08.2020,Gouldings Resource Centre,Stationery,5.71,SUPPLIES TEAM LTD
Revenue,Adult Services,Adult Social Care,Central Codes (to be reallocated),5105650649,21.08.2020,Gouldings Resource Centre,Stationery,1.89,SUPPLIES TEAM LTD
Revenue,Adult Services,Adult Social Care,Central Codes (to be reallocated),5105650649,21.08.2020,Gouldings Resource Centre,Stationery,7.52,SUPPLIES TEAM LTD
Revenue,Adult Services,Adult Social Care,Central Codes (to be reallocated),5105650649,21.08.2020,Gouldings Resource Centre,Stationery,1.62,SUPPLIES TEAM LTD
Revenue,Adult Services,Adult Social Care,Central Codes (to be reallocated),5105650649,21.08.2020,Gouldings Resource Centre,Stationery,1.62,SUPPLIES TEAM LTD
Revenue,Adult Services,Adult Social Care,Central Codes (to be reallocated),5105650649,21.08.2020,Gouldings Resource Centre,Stationery,1.62,SUPPLIES TEAM LTD
Revenue,Adult Services,Adult Social Care,Central Codes (to be reallocated),5105650649,21.08.2020,Gouldings Resource Centre,Stationery,2.50,SUPPLIES TEAM LTD
Revenue,Adult Services,Adult Social Care,Central Codes (to be reallocated),5105650649,21.08.2020,Gouldings Resource Centre,Stationery,1.31,SUPPLIES TEAM LTD
Revenue,Adult Services,Adult Social Care,Central Codes (to be reallocated),5105650649,21.08.2020,Gouldings Resource Centre,Stationery,1.79,SUPPLIES TEAM LTD
Revenue,Adult Services,Adult Social Care,Central Codes (to be reallocated),5105650649,21.08.2020,Gouldings Resource Centre,Stationery,2.22,SUPPLIES TEAM LTD
Revenue,Childrens Services,Children's & Education Services,Special Schools & Alternative Provision,5105650659,27.08.2020,Island Learning Centre,Stationery,124.92,SUPPLIES TEAM LTD
Revenue,Childrens Services,Children's & Education Services,Special Schools & Alternative Provision,5105651587,27.08.2020,Island Learning Centre,Stationery,-124.92,SUPPLIES TEAM LTD
Revenue,Resources,Central Services,Support Services,5105650647,19.08.2020,Pension Administration,Stationery,23.70,SUPPLIES TEAM LTD
Revenue,Resources,Central Services,Support Services,5105651337,26.08.2020,Revenues & Benefits Operational Support,Stationery,2.39,SUPPLIES TEAM LTD
Revenue,Neighbourhoods,Cultural and Related Services,Recreation and Sport,5105651242,26.08.2020,Medina Leisure Centre,Stationery,22.00,SUPPLIES TEAM LTD
Revenue,Adult Services,Adult Social Care,Physical Support - older people (65+),5105649474,05.08.2020,Physical Support Residential 65+,Charges from Independent Providers,"2,028.32",BARCHESTER HELLENS LTD
Revenue,Adult Services,Adult Social Care,Physical Support - older people (65+),5105651812,28.08.2020,Physical Support Residential 65+,Charges from Independent Providers,"2,028.32",BARCHESTER HELLENS LTD
Revenue,Childrens Services,Children's & Education Services,Sure Start Children's Centres,5105650433,14.08.2020,Early Help Contracts,Payments to Voluntary and Other Associations,"10,000.00",BARNARDO'S
Revenue,Childrens Services,Children's & Education Services,Children Looked After,5400002741,28.08.2020,Beaulieu House,General Materials,34.68,LAKE CLEANING & CATERING SUPPLIES
Revenue,Childrens Services,Children's & Education Services,Children Looked After,5105649585,07.08.2020,Beaulieu House,General Materials,161.61,LAKE CLEANING & CATERING SUPPLIES
Revenue,Childrens Services,Children's & Education Services,Children Looked After,5105650133,12.08.2020,Beaulieu House,General Materials,32.66,LAKE CLEANING & CATERING SUPPLIES
Revenue,Childrens Services,Children's & Education Services,Children Looked After,5105650626,19.08.2020,Beaulieu House,General Materials,96.74,LAKE CLEANING & CATERING SUPPLIES
Revenue,Childrens Services,Children's & Education Services,Children Looked After,5105651688,28.08.2020,Beaulieu House,General Materials,112.45,LAKE CLEANING & CATERING SUPPLIES
Revenue,Fire & Rescue,Fire & Rescue Services,Fire fighting and Rescue Operations,5105650445,14.08.2020,Fire Technical Support,Stock Purchases,78.55,LAKE CLEANING & CATERING SUPPLIES
Revenue,Fire & Rescue,Fire & Rescue Services,Fire fighting and Rescue Operations,5105650445,14.08.2020,Fire Technical Support,Stock Purchases,75.00,LAKE CLEANING & CATERING SUPPLIES
Revenue,Fire & Rescue,Fire & Rescue Services,Fire fighting and Rescue Operations,5105650445,14.08.2020,Fire Technical Support,Stock Purchases,16.64,LAKE CLEANING & CATERING SUPPLIES
Revenue,Fire & Rescue,Fire & Rescue Services,Fire fighting and Rescue Operations,5105650445,14.08.2020,Fire Technical Support,Stock Purchases,80.16,LAKE CLEANING & CATERING SUPPLIES
Revenue,Neighbourhoods,Cultural and Related Services,Recreation and Sport,5105651253,26.08.2020,Medina Leisure Centre,Stock Purchases,26.79,LAKE CLEANING & CATERING SUPPLIES
Revenue,Neighbourhoods,Cultural and Related Services,Recreation and Sport,5105650934,21.08.2020,The Heights,Consumable Cleaning Materials,108.22,LAKE CLEANING & CATERING SUPPLIES
Revenue,Neighbourhoods,Cultural and Related Services,Recreation and Sport,5105651255,26.08.2020,Westridge Squash Courts,Consumable Cleaning Materials,50.95,LAKE CLEANING & CATERING SUPPLIES
Revenue,Adult Services,Adult Social Care,Learning Disab Supp (to be reallocated),5105648780,05.08.2020,Plean Dene,Operational Equipment,53.41,LAKE CLEANING & CATERING SUPPLIES
Revenue,Adult Services,Adult Social Care,Learning Disab Supp (to be reallocated),5105650120,21.08.2020,Plean Dene,Operational Equipment,25.00,LAKE CLEANING & CATERING SUPPLIES
Revenue,Adult Services,Adult Social Care,Learning Disab Supp (to be reallocated),5105650137,19.08.2020,Plean Dene,Operational Equipment,38.64,LAKE CLEANING & CATERING SUPPLIES
Revenue,Adult Services,Central Services,Central Services to the Public,5105650137,19.08.2020,AS Covid-19 (Adults),Operational Equipment,130.48,LAKE CLEANING & CATERING SUPPLIES
Revenue,Adult Services,Central Services,Central Services to the Public,5105648780,05.08.2020,AS Covid-19 (Adults),Operational Equipment,130.00,LAKE CLEANING & CATERING SUPPLIES
Revenue,Neighbourhoods,Central Services,Central Services to the Public,5105651381,28.08.2020,NB Covid-19,Consumable Cleaning Materials,656.25,LAKE CLEANING & CATERING SUPPLIES
Revenue,Neighbourhoods,Central Services,Central Services to the Public,5105651379,28.08.2020,NB Covid-19,Consumable Cleaning Materials,333.00,LAKE CLEANING & CATERING SUPPLIES
Revenue,Neighbourhoods,Cultural and Related Services,Recreation and Sport,5105651378,28.08.2020,Medina Leisure Centre,Consumable Cleaning Materials,39.75,LAKE CLEANING & CATERING SUPPLIES
Revenue,Neighbourhoods,Central Services,Central Services to the Public,5105651618,28.08.2020,NB Covid-19,Consumable Cleaning Materials,41.40,LAKE CLEANING & CATERING SUPPLIES
Revenue,Public Health,Public Health,NHS Health Check Programme,5105640596,07.08.2020,NHS Health Check Programme P,Payment to Private Contractors,-97.00,BEECH GROVE SURGERY
Revenue,Public Health,Public Health,NHS Health Check Programme,5105649014,07.08.2020,NHS Health Check Programme P,Payment to Private Contractors,442.00,BEECH GROVE SURGERY
Revenue,Childrens Services,Children's & Education Services,Children Looked After,5105649294,05.08.2020,Purchased Residential,Charges from Independent Providers,"3,850.00",BENECARE FOSTERING LTD
Revenue,Childrens Services,Children's & Education Services,Children Looked After,5105649293,05.08.2020,Purchased Residential,Charges from Independent Providers,"3,850.00",BENECARE FOSTERING LTD
Revenue,Childrens Services,Children's & Education Services,Children Looked After,5105649292,05.08.2020,Purchased Residential,Charges from Independent Providers,"3,850.00",BENECARE FOSTERING LTD
Revenue,Childrens Services,Children's & Education Services,Children Looked After,5105650698,21.08.2020,Purchased Residential,Charges from Independent Providers,"3,850.00",BENECARE FOSTERING LTD
Revenue,Childrens Services,Children's & Education Services,Children Looked After,5105650699,21.08.2020,Purchased Residential,Charges from Independent Providers,"3,850.00",BENECARE FOSTERING LTD
Revenue,Adult Services,Housing Services,Homelessness,5105650598,19.08.2020,B&B Properties,Accommodation Costs - Bed & Breakfast,"8,375.00",BERTRAM LODGE
Revenue,Adult Services,Adult Social Care,Learning Disab Supp (to be reallocated),5400002773,28.08.2020,Plean Dene,Operational Equipment,0.50,BETA PAK LTD
Revenue,Neighbourhoods,Cultural and Related Services,Recreation and Sport,5105649546,05.08.2020,Medina Leisure Centre,Payment to Private Contractors,134.00,BETA PAK LTD
Revenue,Neighbourhoods,Cultural and Related Services,Recreation and Sport,5105649546,05.08.2020,Medina Leisure Centre,Payment to Private Contractors,19.50,BETA PAK LTD
Revenue,Adult Services,Adult Social Care,Central Codes (to be reallocated),5105649628,07.08.2020,Adelaide Resource Centre,Consumable Cleaning Materials,9.05,BETA PAK LTD
Revenue,Adult Services,Adult Social Care,Central Codes (to be reallocated),5105649570,05.08.2020,Adelaide Resource Centre,Consumable Cleaning Materials,75.55,BETA PAK LTD
Revenue,Adult Services,Adult Social Care,Central Codes (to be reallocated),5105650143,14.08.2020,Adelaide Resource Centre,Consumable Cleaning Materials,245.04,BETA PAK LTD
Revenue,Adult Services,Adult Social Care,Central Codes (to be reallocated),5105650622,19.08.2020,Adelaide Resource Centre,Consumable Cleaning Materials,160.00,BETA PAK LTD
Revenue,Adult Services,Adult Social Care,Central Codes (to be reallocated),5105650530,19.08.2020,Adelaide Resource Centre,Consumable Cleaning Materials,128.97,BETA PAK LTD
Revenue,Adult Services,Adult Social Care,Central Codes (to be reallocated),5105650979,21.08.2020,Adelaide Resource Centre,Consumable Cleaning Materials,121.56,BETA PAK LTD
Revenue,Adult Services,Adult Social Care,Central Codes (to be reallocated),5105650980,21.08.2020,Adelaide Resource Centre,Consumable Cleaning Materials,80.00,BETA PAK LTD
Revenue,Adult Services,Adult Social Care,Central Codes (to be reallocated),5105650982,21.08.2020,Adelaide Resource Centre,Consumable Cleaning Materials,69.81,BETA PAK LTD
Revenue,Adult Services,Adult Social Care,Central Codes (to be reallocated),5105651207,26.08.2020,Adelaide Resource Centre,Consumable Cleaning Materials,40.00,BETA PAK LTD
Revenue,Adult Services,Adult Social Care,Central Codes (to be reallocated),5105651385,28.08.2020,Adelaide Resource Centre,Consumable Cleaning Materials,60.66,BETA PAK LTD
Revenue,Adult Services,Central Services,Central Services to the Public,5105649566,05.08.2020,AS Covid-19 (Adults),Consumable Cleaning Materials,360.00,BETA PAK LTD
Revenue,Adult Services,Adult Social Care,Learning Disab Supp (to be reallocated),5105648224,07.08.2020,Plean Dene,Operational Equipment,120.46,BETA PAK LTD
Revenue,Adult Services,Adult Social Care,Learning Disab Supp (to be reallocated),5105650528,21.08.2020,Plean Dene,Operational Equipment,78.35,BETA PAK LTD
Revenue,Adult Services,Adult Social Care,Learning Disab Supp (to be reallocated),5105651596,28.08.2020,Plean Dene,Operational Equipment,54.99,BETA PAK LTD
Revenue,Adult Services,Adult Social Care,Learning Disab Supp (to be reallocated),5105648493,07.08.2020,Plean Dene,Operational Equipment,40.00,BETA PAK LTD
Revenue,Adult Services,Adult Social Care,Learning Disab Supp (to be reallocated),5105650981,21.08.2020,Plean Dene,Operational Equipment,36.92,BETA PAK LTD
Revenue,Adult Services,Adult Social Care,Learning Disab Supp (to be reallocated),5105650983,21.08.2020,Plean Dene,Operational Equipment,1.85,BETA PAK LTD
Revenue,Adult Services,Adult Social Care,Learning Disab Supp (to be reallocated),5105650991,21.08.2020,Plean Dene,Operational Equipment,49.80,BETA PAK LTD
Revenue,Adult Services,Adult Social Care,Learning Disab Supp (to be reallocated),5105651595,28.08.2020,Plean Dene,Operational Equipment,17.16,BETA PAK LTD
Revenue,Adult Services,Adult Social Care,Learning Disab Supp (to be reallocated),5105650528,21.08.2020,Plean Dene,Operational Equipment,49.96,BETA PAK LTD
Revenue,Adult Services,Adult Social Care,Learning Disab Supp (to be reallocated),5105648224,07.08.2020,Plean Dene,Operational Equipment,49.96,BETA PAK LTD
Revenue,Adult Services,Central Services,Central Services to the Public,5105649639,07.08.2020,AS Covid-19 (Adults),Operational Equipment,160.00,BETA PAK LTD
Revenue,Adult Services,Central Services,Central Services to the Public,5105649510,07.08.2020,AS Covid-19 (Adults),Operational Equipment,-160.00,BETA PAK LTD
Revenue,Adult Services,Central Services,Central Services to the Public,5105651595,28.08.2020,AS Covid-19 (Adults),Operational Equipment,80.00,BETA PAK LTD
Revenue,Adult Services,Adult Social Care,Learning Disab Supp (to be reallocated),5105648283,05.08.2020,Saxonbury,Operational Equipment,6.60,BETA PAK LTD
Revenue,Adult Services,Adult Social Care,Learning Disab Supp (to be reallocated),5105649629,07.08.2020,Saxonbury,Operational Equipment,249.01,BETA PAK LTD
Revenue,Adult Services,Adult Social Care,Learning Disab Supp (to be reallocated),5105650417,14.08.2020,Saxonbury,Operational Equipment,11.52,BETA PAK LTD
Revenue,Adult Services,Adult Social Care,Learning Disab Supp (to be reallocated),5105651208,26.08.2020,Saxonbury,Operational Equipment,115.03,BETA PAK LTD
Revenue,Adult Services,Adult Social Care,Learning Disab Supp (to be reallocated),5105651257,26.08.2020,Saxonbury,Operational Equipment,54.00,BETA PAK LTD
Revenue,Adult Services,Adult Social Care,Learning Disab Supp (to be reallocated),5105651258,26.08.2020,Saxonbury,Operational Equipment,41.78,BETA PAK LTD
Revenue,Adult Services,Adult Social Care,Learning Disab Supp (to be reallocated),5105651259,26.08.2020,Saxonbury,Operational Equipment,10.80,BETA PAK LTD
Revenue,Adult Services,Adult Social Care,Learning Disab Supp (to be reallocated),5105651597,28.08.2020,Saxonbury,Operational Equipment,43.20,BETA PAK LTD
Revenue,Adult Services,Central Services,Central Services to the Public,5105649636,07.08.2020,AS Covid-19 (Adults),Operational Equipment,320.00,BETA PAK LTD
Revenue,Adult Services,Central Services,Central Services to the Public,5105649897,07.08.2020,AS Covid-19 (Adults),Operational Equipment,57.07,BETA PAK LTD
Revenue,Adult Services,Central Services,Central Services to the Public,5105650055,14.08.2020,AS Covid-19 (Adults),Operational Equipment,74.63,BETA PAK LTD
Revenue,Adult Services,Central Services,Central Services to the Public,5105649512,07.08.2020,AS Covid-19 (Adults),Operational Equipment,-320.00,BETA PAK LTD
Revenue,Adult Services,Adult Social Care,Social Support - Support for Carer,5105648403,07.08.2020,Westminster House,Operational Equipment,54.12,BETA PAK LTD
Revenue,Adult Services,Adult Social Care,Social Support - Support for Carer,5105649528,07.08.2020,Westminster House,Operational Equipment,11.84,BETA PAK LTD
Revenue,Adult Services,Adult Social Care,Social Support - Support for Carer,5105650527,19.08.2020,Westminster House,Operational Equipment,40.39,BETA PAK LTD
Revenue,Adult Services,Adult Social Care,Social Support - Support for Carer,5105651249,26.08.2020,Westminster House,Operational Equipment,33.92,BETA PAK LTD
Revenue,Adult Services,Adult Social Care,Social Support - Support for Carer,5105648257,07.08.2020,Westminster House,Operational Equipment,126.88,BETA PAK LTD
Revenue,Adult Services,Central Services,Central Services to the Public,5105649637,07.08.2020,AS Covid-19 (Adults),Operational Equipment,160.00,BETA PAK LTD
Revenue,Adult Services,Central Services,Central Services to the Public,5105650001,14.08.2020,AS Covid-19 (Adults),Operational Equipment,-160.00,BETA PAK LTD
Revenue,Adult Services,Central Services,Central Services to the Public,5105649528,07.08.2020,AS Covid-19 (Adults),Operational Equipment,17.24,BETA PAK LTD
Revenue,Adult Services,Adult Social Care,Commissioning & Service Delivery,5105649246,14.08.2020,Group Manager Leaning Disability Homes,Operational Equipment,33.24,BETA PAK LTD
Revenue,Neighbourhoods,Central Services,Central Services to the Public,5105649514,05.08.2020,NB Covid-19,Catering Purchases,72.45,BETA PAK LTD
Revenue,Adult Services,Adult Social Care,Central Codes (to be reallocated),5105650996,21.08.2020,Gouldings Resource Centre,Consumable Cleaning Materials,13.64,BETA PAK LTD
Revenue,Adult Services,Adult Social Care,Central Codes (to be reallocated),5105649511,05.08.2020,Gouldings Resource Centre,Consumable Cleaning Materials,-109.50,BETA PAK LTD
Revenue,Adult Services,Adult Social Care,Central Codes (to be reallocated),5105650999,21.08.2020,Gouldings Resource Centre,Consumable Cleaning Materials,46.00,BETA PAK LTD
Revenue,Adult Services,Adult Social Care,Central Codes (to be reallocated),5105651001,21.08.2020,Gouldings Resource Centre,Professional Services,46.00,BETA PAK LTD
Revenue,Neighbourhoods,Cultural and Related Services,Culture and Heritage,5105649638,19.08.2020,Dinosaur Isle Museum (Sandown Geology),General Materials,22.98,BETA PAK LTD
Revenue,Neighbourhoods,Cultural and Related Services,Culture and Heritage,5105649529,05.08.2020,Dinosaur Isle Museum (Sandown Geology),Operational Equipment,120.00,BETA PAK LTD
Revenue,Adult Services,Central Services,Central Services to the Public,5105650042,12.08.2020,AS Covid-19 (Adults),Consumable Cleaning Materials,46.54,BETA PAK LTD
Revenue,Adult Services,Adult Social Care,Central Codes (to be reallocated),5105650485,19.08.2020,Gouldings Resource Centre,Consumable Cleaning Materials,100.92,BETA PAK LTD
Revenue,Adult Services,Adult Social Care,Central Codes (to be reallocated),5105650531,26.08.2020,Gouldings Resource Centre,Consumable Cleaning Materials,40.58,BETA PAK LTD
Revenue,Adult Services,Adult Social Care,Central Codes (to be reallocated),5105651209,26.08.2020,Gouldings Resource Centre,Consumable Cleaning Materials,22.86,BETA PAK LTD
Revenue,Adult Services,Adult Social Care,Central Codes (to be reallocated),5105651386,28.08.2020,Gouldings Resource Centre,Consumable Cleaning Materials,23.99,BETA PAK LTD
Revenue,Adult Services,Adult Social Care,Central Codes (to be reallocated),5105650418,14.08.2020,Gouldings Resource Centre,Consumable Cleaning Materials,1.80,BETA PAK LTD
Revenue,Neighbourhoods,Cultural and Related Services,Culture and Heritage,5105650486,19.08.2020,Dinosaur Isle Museum (Sandown Geology),Operational Equipment,19.85,BETA PAK LTD
Revenue,Neighbourhoods,Cultural and Related Services,Culture and Heritage,5105651245,26.08.2020,Dinosaur Isle Museum (Sandown Geology),Office Equipment,36.52,BETA PAK LTD
Revenue,Neighbourhoods,Cultural and Related Services,Culture and Heritage,5105650529,19.08.2020,Dinosaur Isle Museum (Sandown Geology),Furniture and Fittings,38.14,BETA PAK LTD
Revenue,Neighbourhoods,Cultural and Related Services,Culture and Heritage,5105650529,19.08.2020,Dinosaur Isle Museum (Sandown Geology),Furniture and Fittings,21.82,BETA PAK LTD
Revenue,Neighbourhoods,Cultural and Related Services,Culture and Heritage,5105650529,19.08.2020,Dinosaur Isle Museum (Sandown Geology),Furniture and Fittings,47.28,BETA PAK LTD
Revenue,Adult Services,Adult Social Care,Central Codes (to be reallocated),5105650994,21.08.2020,Gouldings Resource Centre,Consumable Cleaning Materials,614.83,BETA PAK LTD
Revenue,Neighbourhoods,Cultural and Related Services,Culture and Heritage,5105651206,26.08.2020,Dinosaur Isle Museum (Sandown Geology),Operational Equipment,120.00,BETA PAK LTD
Revenue,Adult Services,Adult Social Care,Central Codes (to be reallocated),5105648495,05.08.2020,Gouldings Resource Centre,Consumable Cleaning Materials,80.00,BETA PAK LTD
Revenue,Neighbourhoods,Cultural and Related Services,Culture and Heritage,5105651248,26.08.2020,Dinosaur Isle Museum (Sandown Geology),Stock Purchases,113.44,BETA PAK LTD
Revenue,Neighbourhoods,Highways and Transport Services,Management and Support Services,5105645858,21.08.2020,Highways PFI Project,Consultants Fees,"4,589.42",BEVAN BRITTAN
Revenue,Neighbourhoods,Highways and Transport Services,Management and Support Services,5105651087,21.08.2020,Highways PFI Project,Consultants Fees,"-4,589.42",BEVAN BRITTAN
Revenue,Neighbourhoods,Highways and Transport Services,Management and Support Services,5105651088,21.08.2020,Highways PFI Project,Consultants Fees,"-4,829.90",BEVAN BRITTAN
Revenue,Neighbourhoods,Highways and Transport Services,Management and Support Services,5105651089,21.08.2020,Highways PFI Project,Consultants Fees,"4,829.90",BEVAN BRITTAN
Revenue,Neighbourhoods,Highways and Transport Services,Management and Support Services,5105651090,21.08.2020,Highways PFI Project,Consultants Fees,"5,561.70",BEVAN BRITTAN
Revenue,Neighbourhoods,Highways and Transport Services,Management and Support Services,5105651091,21.08.2020,Highways PFI Project,Consultants Fees,"-5,561.70",BEVAN BRITTAN
Revenue,Neighbourhoods,Environmental & Regulatory Services,Service Management and Support Services,5105650413,14.08.2020,Waste Contract Management,Legal Fees - Other Parties,"6,403.30",BEVAN BRITTAN
Revenue,Neighbourhoods,Environmental & Regulatory Services,Service Management and Support Services,5105650488,21.08.2020,Waste Contract Management,Legal Fees - Other Parties,"7,361.80",BEVAN BRITTAN
Revenue,Neighbourhoods,Highways and Transport Services,Management and Support Services,5105651601,28.08.2020,Highways PFI Project,Legal Fees - Other Parties,"24,261.80",BEVAN BRITTAN
Revenue,Neighbourhoods,Highways and Transport Services,Management and Support Services,5105651601,28.08.2020,Highways PFI Project,Legal Fees - Other Parties,12.00,BEVAN BRITTAN
Revenue,Neighbourhoods,Highways and Transport Services,Management and Support Services,5105651599,28.08.2020,Highways PFI Project,Legal Fees - Other Parties,984.00,BEVAN BRITTAN
Revenue,Neighbourhoods,Highways and Transport Services,Management and Support Services,5105651599,28.08.2020,Highways PFI Project,Legal Fees - Other Parties,"32,003.50",BEVAN BRITTAN
Revenue,Neighbourhoods,Highways and Transport Services,Management and Support Services,5105651602,28.08.2020,Highways PFI Project,Legal Fees - Other Parties,"8,147.40",BEVAN BRITTAN
Revenue,Neighbourhoods,Highways and Transport Services,Management and Support Services,5105651603,28.08.2020,Highways PFI Project,Legal Fees - Other Parties,"23,980.94",BEVAN BRITTAN
Revenue,Neighbourhoods,Highways and Transport Services,Management and Support Services,5105651600,28.08.2020,Highways PFI Project,Legal Fees - Other Parties,"9,252.10",BEVAN BRITTAN
Revenue,Neighbourhoods,Highways and Transport Services,Management and Support Services,5105651599,28.08.2020,Highways PFI Project,Legal Fees - Other Parties,"1,102.53",BEVAN BRITTAN
Revenue,Adult Services,Adult Social Care,Central Codes (to be reallocated),5400002782,28.08.2020,Gouldings Resource Centre,Catering Purchases,0.05,3663 (BFS GROUP LTD)
Revenue,Adult Services,Adult Social Care,Central Codes (to be reallocated),5105648844,05.08.2020,Gouldings Resource Centre,Catering Purchases,-102.20,3663 (BFS GROUP LTD)
Revenue,Adult Services,Adult Social Care,Central Codes (to be reallocated),5105649536,05.08.2020,Gouldings Resource Centre,Catering Purchases,266.55,3663 (BFS GROUP LTD)
Revenue,Adult Services,Adult Social Care,Central Codes (to be reallocated),5105650455,14.08.2020,Gouldings Resource Centre,Catering Purchases,163.47,3663 (BFS GROUP LTD)
Revenue,Adult Services,Adult Social Care,Central Codes (to be reallocated),5105650455,14.08.2020,Gouldings Resource Centre,Catering Purchases,21.73,3663 (BFS GROUP LTD)
Revenue,Adult Services,Adult Social Care,Central Codes (to be reallocated),5105649536,05.08.2020,Gouldings Resource Centre,Catering Purchases,9.53,3663 (BFS GROUP LTD)
Revenue,Adult Services,Adult Social Care,Central Codes (to be reallocated),5105651251,26.08.2020,Gouldings Resource Centre,Catering Purchases,353.59,3663 (BFS GROUP LTD)
Revenue,Adult Services,Adult Social Care,Central Codes (to be reallocated),5105651251,26.08.2020,Gouldings Resource Centre,Catering Purchases,4.89,3663 (BFS GROUP LTD)
Revenue,Neighbourhoods,Environmental & Regulatory Services,Waste Disposal,5105650028,14.08.2020,Lynnbottom Leachate Treatment Works,Payment to Private Contractors,"23,549.59",BIFFA WASTE SERVICES LTD
Revenue,Adult Services,Adult Social Care,Learning Disab Supp (to be reallocated),5105647522,14.08.2020,31 Carter Avenue,"Refuse Collection, Disposal and Recycling Costs",74.95,BIFFA WASTE SERVICES LTD
Revenue,Adult Services,Adult Social Care,Learning Disab Supp (to be reallocated),5105647522,14.08.2020,40 Venner Avenue (Now SL),"Refuse Collection, Disposal and Recycling Costs",215.70,BIFFA WASTE SERVICES LTD
Revenue,Adult Services,Adult Social Care,Learning Disab Supp (to be reallocated),5105647522,14.08.2020,Saxonbury,"Refuse Collection, Disposal and Recycling Costs",106.45,BIFFA WASTE SERVICES LTD
Revenue,Regeneration,Central Services,Support Services,5105647522,14.08.2020,"Westridge, Ryde","Refuse Collection, Disposal and Recycling Costs",93.19,BIFFA WASTE SERVICES LTD
Revenue,Neighbourhoods,Cultural and Related Services,Culture and Heritage,5105647522,14.08.2020,Cothey Bottom Store RYDE,"Refuse Collection, Disposal and Recycling Costs",46.59,BIFFA WASTE SERVICES LTD
Revenue,Neighbourhoods,Cultural and Related Services,Recreation and Sport,5105647522,14.08.2020,Westridge Squash Courts,"Refuse Collection, Disposal and Recycling Costs",46.60,BIFFA WASTE SERVICES LTD
Revenue,Neighbourhoods,Cultural and Related Services,Library Service,5105647522,14.08.2020,Public Libraries Central,"Refuse Collection, Disposal and Recycling Costs",88.64,BIFFA WASTE SERVICES LTD
Revenue,Regeneration,Planning services,Management & Support Services,5105647522,14.08.2020,Planning Management,"Refuse Collection, Disposal and Recycling Costs",104.90,BIFFA WASTE SERVICES LTD
Revenue,Childrens Services,Children's & Education Services,Management & Support Services,5105647522,14.08.2020,Specialist Service Business Admin,"Refuse Collection, Disposal and Recycling Costs",107.74,BIFFA WASTE SERVICES LTD
Revenue,Adult Services,Adult Social Care,Central Codes (to be reallocated),5105650030,21.08.2020,Gouldings Resource Centre,"Refuse Collection, Disposal and Recycling Costs",386.24,BIFFA WASTE SERVICES LTD
Revenue,Neighbourhoods,Environmental & Regulatory Services,"Cemetery, Cremation & Mortuary Services",5105647522,14.08.2020,Crematorium,"Refuse Collection, Disposal and Recycling Costs",221.40,BIFFA WASTE SERVICES LTD
Revenue,Neighbourhoods,Cultural and Related Services,Culture and Heritage,5105647522,14.08.2020,Dinosaur Isle Museum (Sandown Geology),"Refuse Collection, Disposal and Recycling Costs",16.80,BIFFA WASTE SERVICES LTD
Revenue,Neighbourhoods,Cultural and Related Services,Open Spaces,5105647522,14.08.2020,Fort Victoria,"Refuse Collection, Disposal and Recycling Costs",99.90,BIFFA WASTE SERVICES LTD
Revenue,Fire & Rescue,Fire & Rescue Services,Fire fighting and Rescue Operations,5105647522,14.08.2020,Fire Operations,"Refuse Collection, Disposal and Recycling Costs",408.97,BIFFA WASTE SERVICES LTD
Revenue,Neighbourhoods,Highways and Transport Services,"Airports, Harbours & Toll Facilities",5105647522,14.08.2020,Ferry Management,"Refuse Collection, Disposal and Recycling Costs",94.00,BIFFA WASTE SERVICES LTD
Revenue,Childrens Services,Children's & Education Services,Children Looked After,5105647522,14.08.2020,Beaulieu House,"Refuse Collection, Disposal and Recycling Costs",229.97,BIFFA WASTE SERVICES LTD
Revenue,Regeneration,Central Services,Support Services,5105647522,14.08.2020,"Jubilee Stores, Newport","Refuse Collection, Disposal and Recycling Costs",42.90,BIFFA WASTE SERVICES LTD
Revenue,Neighbourhoods,Cultural and Related Services,Recreation and Sport,5105647522,14.08.2020,Medina Leisure Centre,"Refuse Collection, Disposal and Recycling Costs",4.55,BIFFA WASTE SERVICES LTD
Revenue,Neighbourhoods,Highways and Transport Services,"Airports, Harbours & Toll Facilities",5105647522,14.08.2020,Ryde Harbour,"Refuse Collection, Disposal and Recycling Costs",77.52,BIFFA WASTE SERVICES LTD
Revenue,Regeneration,Central Services,Support Services,5105647522,14.08.2020,"Civic Centre,Sandown","Refuse Collection, Disposal and Recycling Costs",95.34,BIFFA WASTE SERVICES LTD
Revenue,Childrens Services,Children's & Education Services,Other Education and Community Budget,5105647522,14.08.2020,SEND Independent Advice & Support,"Refuse Collection, Disposal and Recycling Costs",49.55,BIFFA WASTE SERVICES LTD
Revenue,Neighbourhoods,Cultural and Related Services,Recreation and Sport,5105647522,14.08.2020,The Heights,"Refuse Collection, Disposal and Recycling Costs",45.00,BIFFA WASTE SERVICES LTD
Revenue,Neighbourhoods,Highways and Transport Services,"Airports, Harbours & Toll Facilities",5105647522,14.08.2020,Newport Harbour Account,"Refuse Collection, Disposal and Recycling Costs",220.48,BIFFA WASTE SERVICES LTD
Revenue,Neighbourhoods,Highways and Transport Services,"Airports, Harbours & Toll Facilities",5105647522,14.08.2020,Newport Harbour Account,"Refuse Collection, Disposal and Recycling Costs",150.80,BIFFA WASTE SERVICES LTD
Revenue,Adult Services,Adult Social Care,Assistive Equipment & Technology,5105647522,14.08.2020,Community Equipment Store,"Refuse Collection, Disposal and Recycling Costs",326.94,BIFFA WASTE SERVICES LTD
Revenue,Regeneration,Central Services,Support Services,5105647522,14.08.2020,17 Fairlee Road,"Refuse Collection, Disposal and Recycling Costs",39.20,BIFFA WASTE SERVICES LTD
Revenue,Regeneration,Central Services,Support Services,5105647522,14.08.2020,Parklands,"Refuse Collection, Disposal and Recycling Costs",39.64,BIFFA WASTE SERVICES LTD
Revenue,Regeneration,Central Services,Support Services,5105647522,14.08.2020,"County Hall,Newport","Refuse Collection, Disposal and Recycling Costs",609.74,BIFFA WASTE SERVICES LTD
Revenue,Adult Services,Adult Social Care,Learning Disab Supp (to be reallocated),5105647522,14.08.2020,40 Venner Avenue (Now SL),"Refuse Collection, Disposal and Recycling Costs",55.92,BIFFA WASTE SERVICES LTD
Revenue,Adult Services,Adult Social Care,Learning Disab Supp (to be reallocated),5105647522,14.08.2020,Seagulls (Now SL),"Refuse Collection, Disposal and Recycling Costs",55.92,BIFFA WASTE SERVICES LTD
Revenue,Resources,Central Services,Support Services,5105647522,14.08.2020,60 Dodnor Lane Store,"Refuse Collection, Disposal and Recycling Costs",3.50,BIFFA WASTE SERVICES LTD
Revenue,Adult Services,Adult Social Care,Social Care Activities,5105647522,14.08.2020,Mental Health Team,"Refuse Collection, Disposal and Recycling Costs",5.60,BIFFA WASTE SERVICES LTD
Revenue,Public Health,Public Health,Central Codes (to be reallocated),5105649922,12.08.2020,Wellbeing Services,Computer Software Licencing,"6,380.00",BIONICAL SOLUTIONS
Revenue,Resources,Central Services,Support Services,5105651148,26.08.2020,Staff Benefits,Payment to Private Contractors,5.00,BLACKBERRY LANE PRE-SCHOOL
Revenue,Childrens Services,Children's & Education Services,Family Support Services,5105651218,26.08.2020,Short Breaks,Charges from Independent Providers,349.17,BODSTER EQUINE ASSISTED LEARN CIC
Revenue,Neighbourhoods,Cultural and Related Services,Library Service,5105650171,14.08.2020,Public Libraries Central,Purchase of Books,"2,000.00",BOLINDA UK LTD
Revenue,Neighbourhoods,Cultural and Related Services,Library Service,5105650172,14.08.2020,Public Libraries Central,Purchase of Books,"3,000.00",BOLINDA UK LTD
Revenue,Adult Services,Adult Social Care,Learning Disab Supp (to be reallocated),5400002778,28.08.2020,40 Venner Avenue (Now SL),Catering Purchases,0.30,BOOKER CASH & CARRY LTD
Revenue,Adult Services,Adult Social Care,Learning Disab Supp (to be reallocated),5105650092,21.08.2020,Plean Dene,Catering Purchases,202.10,BOOKER CASH & CARRY LTD
Revenue,Adult Services,Adult Social Care,Learning Disab Supp (to be reallocated),5105648946,05.08.2020,Plean Dene,Catering Purchases,161.85,BOOKER CASH & CARRY LTD
Revenue,Adult Services,Adult Social Care,Learning Disab Supp (to be reallocated),5105648945,07.08.2020,Plean Dene,Catering Purchases,19.36,BOOKER CASH & CARRY LTD
Revenue,Adult Services,Adult Social Care,Learning Disab Supp (to be reallocated),5105648912,07.08.2020,Plean Dene,Catering Purchases,12.78,BOOKER CASH & CARRY LTD
Revenue,Adult Services,Adult Social Care,Learning Disab Supp (to be reallocated),5105648872,07.08.2020,Plean Dene,Catering Purchases,8.28,BOOKER CASH & CARRY LTD
Revenue,Adult Services,Adult Social Care,Learning Disab Supp (to be reallocated),5105648755,07.08.2020,Plean Dene,Catering Purchases,12.20,BOOKER CASH & CARRY LTD
Revenue,Adult Services,Adult Social Care,Learning Disab Supp (to be reallocated),5105649593,07.08.2020,Plean Dene,Catering Purchases,5.49,BOOKER CASH & CARRY LTD
Revenue,Adult Services,Adult Social Care,Learning Disab Supp (to be reallocated),5105649502,07.08.2020,Plean Dene,Catering Purchases,7.16,BOOKER CASH & CARRY LTD
Revenue,Adult Services,Adult Social Care,Learning Disab Supp (to be reallocated),5105649652,12.08.2020,Plean Dene,Catering Purchases,143.27,BOOKER CASH & CARRY LTD
Revenue,Adult Services,Adult Social Care,Learning Disab Supp (to be reallocated),5105650083,12.08.2020,Plean Dene,Catering Purchases,3.03,BOOKER CASH & CARRY LTD
Revenue,Adult Services,Adult Social Care,Learning Disab Supp (to be reallocated),5105650084,12.08.2020,Plean Dene,Catering Purchases,1.95,BOOKER CASH & CARRY LTD
Revenue,Adult Services,Adult Social Care,Learning Disab Supp (to be reallocated),5105650085,12.08.2020,Plean Dene,Catering Purchases,2.69,BOOKER CASH & CARRY LTD
Revenue,Adult Services,Adult Social Care,Learning Disab Supp (to be reallocated),5105650088,12.08.2020,Plean Dene,Catering Purchases,231.28,BOOKER CASH & CARRY LTD
Revenue,Adult Services,Adult Social Care,Learning Disab Supp (to be reallocated),5105648444,07.08.2020,Plean Dene,Catering Purchases,150.97,BOOKER CASH & CARRY LTD
Revenue,Adult Services,Adult Social Care,Learning Disab Supp (to be reallocated),5105648443,07.08.2020,Plean Dene,Catering Purchases,25.74,BOOKER CASH & CARRY LTD
Revenue,Adult Services,Adult Social Care,Learning Disab Supp (to be reallocated),5105648475,07.08.2020,Plean Dene,Catering Purchases,9.72,BOOKER CASH & CARRY LTD
Revenue,Adult Services,Adult Social Care,Learning Disab Supp (to be reallocated),5105650114,21.08.2020,Plean Dene,Catering Purchases,5.99,BOOKER CASH & CARRY LTD
Revenue,Adult Services,Adult Social Care,Learning Disab Supp (to be reallocated),5105650115,12.08.2020,Plean Dene,Catering Purchases,117.47,BOOKER CASH & CARRY LTD
Revenue,Adult Services,Adult Social Care,Learning Disab Supp (to be reallocated),5105650089,12.08.2020,Plean Dene,Catering Purchases,18.26,BOOKER CASH & CARRY LTD
Revenue,Adult Services,Adult Social Care,Learning Disab Supp (to be reallocated),5105650090,12.08.2020,Plean Dene,Catering Purchases,22.62,BOOKER CASH & CARRY LTD
Revenue,Adult Services,Adult Social Care,Learning Disab Supp (to be reallocated),5105650091,21.08.2020,Plean Dene,Catering Purchases,28.96,BOOKER CASH & CARRY LTD
Revenue,Adult Services,Adult Social Care,Learning Disab Supp (to be reallocated),5105648443,07.08.2020,Plean Dene,Catering Purchases,5.39,BOOKER CASH & CARRY LTD
Revenue,Adult Services,Adult Social Care,Learning Disab Supp (to be reallocated),5105650088,12.08.2020,Plean Dene,Catering Purchases,14.17,BOOKER CASH & CARRY LTD
Revenue,Adult Services,Adult Social Care,Learning Disab Supp (to be reallocated),5105650091,21.08.2020,Plean Dene,Catering Purchases,5.39,BOOKER CASH & CARRY LTD
Revenue,Adult Services,Adult Social Care,Learning Disab Supp (to be reallocated),5105650092,21.08.2020,Plean Dene,Catering Purchases,2.58,BOOKER CASH & CARRY LTD
Revenue,Adult Services,Adult Social Care,Learning Disab Supp (to be reallocated),5105649652,12.08.2020,Plean Dene,Catering Purchases,2.58,BOOKER CASH & CARRY LTD
Revenue,Public Health,Public Health,Sexual Health,5105649991,07.08.2020,Contraception P,Payment to Private Contractors,451.50,BOOTS THE CHEMIST LTD (Ryde)
Revenue,Public Health,Public Health,Sexual Health,5105649991,07.08.2020,Contraception P,Payment to Private Contractors,41.60,BOOTS THE CHEMIST LTD (Ryde)
Revenue,Public Health,Public Health,Sexual Health,5105649991,07.08.2020,Contraception P,Payment to Private Contractors,182.65,BOOTS THE CHEMIST LTD (Ryde)
Revenue,Public Health,Public Health,Substance Misuse,5105649991,07.08.2020,Drug Misuse Adult- Treatment NP,Payment to Private Contractors,924.00,BOOTS THE CHEMIST LTD (Ryde)
Revenue,Public Health,Public Health,Substance Misuse,5105649991,07.08.2020,Drug Misuse Adult- Treatment NP,Payment to Private Contractors,30.00,BOOTS THE CHEMIST LTD (Ryde)
Revenue,Public Health,Public Health,Smoking & Tobacco,5105651322,26.08.2020,Stop Smoking Services & Interventions NP,Payment to Private Contractors,180.42,BOOTS THE CHEMIST LTD (Ryde)
Revenue,Public Health,Public Health,Smoking & Tobacco,5105651322,26.08.2020,Stop Smoking Services & Interventions NP,Payment to Private Contractors,18.00,BOOTS THE CHEMIST LTD (Ryde)
Revenue,Public Health,Public Health,Smoking & Tobacco,5105650011,17.08.2020,Stop Smoking Services & Interventions NP,Payment to Private Contractors,-38.00,BOOTS UK LTD (SANDOWN LARGE STORE)
Revenue,Public Health,Public Health,Smoking & Tobacco,5105650551,17.08.2020,Stop Smoking Services & Interventions NP,Payment to Private Contractors,38.00,BOOTS UK LTD (SANDOWN LARGE STORE)
Revenue,Public Health,Public Health,Smoking & Tobacco,5105650551,17.08.2020,Stop Smoking Services & Interventions NP,Payment to Private Contractors,220.47,BOOTS UK LTD (SANDOWN LARGE STORE)
Revenue,Public Health,Public Health,Smoking & Tobacco,5105650011,17.08.2020,Stop Smoking Services & Interventions NP,Payment to Private Contractors,-220.47,BOOTS UK LTD (SANDOWN LARGE STORE)
Revenue,Public Health,Public Health,Substance Misuse,5105650057,14.08.2020,Drug Misuse Adult- Treatment NP,Payment to Private Contractors,30.00,BOOTS UK LTD (SANDOWN LARGE STORE)
Revenue,Public Health,Public Health,Smoking & Tobacco,5105650552,17.08.2020,Stop Smoking Services & Interventions NP,Payment to Private Contractors,-38.00,BOOTS UK LTD (107 HIGH ST SANDOWN)
Revenue,Public Health,Public Health,Smoking & Tobacco,5105650013,17.08.2020,Stop Smoking Services & Interventions NP,Payment to Private Contractors,38.00,BOOTS UK LTD (107 HIGH ST SANDOWN)
Revenue,Public Health,Public Health,Smoking & Tobacco,5105650013,17.08.2020,Stop Smoking Services & Interventions NP,Payment to Private Contractors,220.47,BOOTS UK LTD (107 HIGH ST SANDOWN)
Revenue,Public Health,Public Health,Smoking & Tobacco,5105650552,17.08.2020,Stop Smoking Services & Interventions NP,Payment to Private Contractors,-220.47,BOOTS UK LTD (107 HIGH ST SANDOWN)
Revenue,Public Health,Public Health,Sexual Health,5105650026,12.08.2020,Contraception P,Payment to Private Contractors,236.50,BOOTS UK LTD (107 HIGH ST SANDOWN)
Revenue,Public Health,Public Health,Sexual Health,5105650026,12.08.2020,Contraception P,Payment to Private Contractors,26.00,BOOTS UK LTD (107 HIGH ST SANDOWN)
Revenue,Public Health,Public Health,Sexual Health,5105650026,12.08.2020,Contraception P,Payment to Private Contractors,84.30,BOOTS UK LTD (107 HIGH ST SANDOWN)
Revenue,Public Health,Public Health,Substance Misuse,5105650026,12.08.2020,Drug Misuse Adult- Treatment NP,Payment to Private Contractors,140.00,BOOTS UK LTD (107 HIGH ST SANDOWN)
Revenue,Public Health,Public Health,Substance Misuse,5105650026,12.08.2020,Drug Misuse Adult- Treatment NP,Payment to Private Contractors,30.00,BOOTS UK LTD (107 HIGH ST SANDOWN)
Revenue,Public Health,Public Health,Smoking & Tobacco,5105651318,26.08.2020,Stop Smoking Services & Interventions NP,Payment to Private Contractors,52.26,BOOTS UK LTD (107 HIGH ST SANDOWN)
Revenue,Public Health,Public Health,Smoking & Tobacco,5105651318,26.08.2020,Stop Smoking Services & Interventions NP,Payment to Private Contractors,9.00,BOOTS UK LTD (107 HIGH ST SANDOWN)
Revenue,Public Health,Public Health,Smoking & Tobacco,5105651318,26.08.2020,Stop Smoking Services & Interventions NP,Payment to Private Contractors,1.95,BOOTS UK LTD (107 HIGH ST SANDOWN)
Revenue,Public Health,Public Health,Smoking & Tobacco,5105651318,26.08.2020,Stop Smoking Services & Interventions NP,Payment to Private Contractors,12.00,BOOTS UK LTD (107 HIGH ST SANDOWN)
Revenue,Public Health,Public Health,Sexual Health,5105649997,12.08.2020,Contraception P,Payment to Private Contractors,64.50,BOOTS UK LTD (COWES)
Revenue,Public Health,Public Health,Sexual Health,5105649997,12.08.2020,Contraception P,Payment to Private Contractors,5.20,BOOTS UK LTD (COWES)
Revenue,Public Health,Public Health,Sexual Health,5105649997,12.08.2020,Contraception P,Payment to Private Contractors,28.10,BOOTS UK LTD (COWES)
Revenue,Public Health,Public Health,Substance Misuse,5105649997,12.08.2020,Drug Misuse Adult- Treatment NP,Payment to Private Contractors,30.00,BOOTS UK LTD (COWES)
Revenue,Public Health,Public Health,Substance Misuse,5105650049,10.08.2020,Drug Misuse Adult- Treatment NP,Payment to Private Contractors,30.00,BOOTS UK LTD (FRESHWATER)
Revenue,Public Health,Public Health,Substance Misuse,5105650053,10.08.2020,Drug Misuse Adult- Treatment NP,Payment to Private Contractors,-30.00,BOOTS UK LTD (FRESHWATER)
Revenue,Public Health,Public Health,Substance Misuse,5105650056,12.08.2020,Drug Misuse Adult- Treatment NP,Payment to Private Contractors,30.00,BOOTS UK LTD (FRESHWATER)
Revenue,Public Health,Public Health,Substance Misuse,5105650056,12.08.2020,Drug Misuse Adult- Treatment NP,Payment to Private Contractors,54.00,BOOTS UK LTD (FRESHWATER)
Revenue,Public Health,Public Health,Sexual Health,5105649988,07.08.2020,Contraception P,Payment to Private Contractors,70.25,BOOTS UK LTD (NEWPORT)
Revenue,Public Health,Public Health,Substance Misuse,5105649988,07.08.2020,Drug Misuse Adult- Treatment NP,Payment to Private Contractors,423.50,BOOTS UK LTD (NEWPORT)
Revenue,Public Health,Public Health,Substance Misuse,5105649988,07.08.2020,Drug Misuse Adult- Treatment NP,Payment to Private Contractors,30.00,BOOTS UK LTD (NEWPORT)
Revenue,Public Health,Public Health,Smoking & Tobacco,5105651319,26.08.2020,Stop Smoking Services & Interventions NP,Payment to Private Contractors,22.98,BOOTS UK LTD (NEWPORT)
Revenue,Public Health,Public Health,Smoking & Tobacco,5105651319,26.08.2020,Stop Smoking Services & Interventions NP,Payment to Private Contractors,6.00,BOOTS UK LTD (NEWPORT)
Revenue,Public Health,Public Health,Sexual Health,5105649988,07.08.2020,Contraception P,Payment to Private Contractors,129.00,BOOTS UK LTD (NEWPORT)
Revenue,Public Health,Public Health,Sexual Health,5105649988,07.08.2020,Contraception P,Payment to Private Contractors,5.20,BOOTS UK LTD (NEWPORT)
Revenue,Public Health,Public Health,Sexual Health,5105649978,07.08.2020,Contraception P,Payment to Private Contractors,14.05,BOOTS UK LTD (SHANKLIN)
Revenue,Public Health,Public Health,Substance Misuse,5105649978,07.08.2020,Drug Misuse Adult- Treatment NP,Payment to Private Contractors,30.00,BOOTS UK LTD (SHANKLIN)
Revenue,Public Health,Public Health,Sexual Health,5105649978,07.08.2020,Contraception P,Payment to Private Contractors,21.50,BOOTS UK LTD (SHANKLIN)
Revenue,Public Health,Public Health,Substance Misuse,5105649995,07.08.2020,Drug Misuse Adult- Treatment NP,Payment to Private Contractors,229.10,BOOTS UK LTD (TOWER HOUSE)
Revenue,Public Health,Public Health,Substance Misuse,5105649995,07.08.2020,Drug Misuse Adult- Treatment NP,Payment to Private Contractors,30.00,BOOTS UK LTD (TOWER HOUSE)
Revenue,Public Health,Public Health,Sexual Health,5105649995,07.08.2020,Contraception P,Payment to Private Contractors,150.50,BOOTS UK LTD (TOWER HOUSE)
Revenue,Public Health,Public Health,Sexual Health,5105649995,07.08.2020,Contraception P,Payment to Private Contractors,20.80,BOOTS UK LTD (TOWER HOUSE)
Revenue,Public Health,Public Health,Sexual Health,5105649995,07.08.2020,Contraception P,Payment to Private Contractors,30.00,BOOTS UK LTD (TOWER HOUSE)
Revenue,Public Health,Public Health,Sexual Health,5105649987,07.08.2020,Contraception P,Payment to Private Contractors,64.50,BOOTS UK LTD
Revenue,Public Health,Public Health,Sexual Health,5105649987,07.08.2020,Contraception P,Payment to Private Contractors,10.40,BOOTS UK LTD
Revenue,Public Health,Public Health,Sexual Health,5105649987,07.08.2020,Contraception P,Payment to Private Contractors,14.05,BOOTS UK LTD
Revenue,Public Health,Public Health,Substance Misuse,5105649987,07.08.2020,Drug Misuse Adult- Treatment NP,Payment to Private Contractors,42.00,BOOTS UK LTD
Revenue,Public Health,Public Health,Substance Misuse,5105649987,07.08.2020,Drug Misuse Adult- Treatment NP,Payment to Private Contractors,6.00,BOOTS UK LTD
Revenue,Public Health,Public Health,Substance Misuse,5105649987,07.08.2020,Drug Misuse Adult- Treatment NP,Payment to Private Contractors,30.00,BOOTS UK LTD
Revenue,Public Health,Public Health,Smoking & Tobacco,5105651320,26.08.2020,Stop Smoking Services & Interventions NP,Payment to Private Contractors,10.00,BOOTS UK LTD
Revenue,Public Health,Public Health,Smoking & Tobacco,5105651320,26.08.2020,Stop Smoking Services & Interventions NP,Payment to Private Contractors,27.30,BOOTS UK LTD
Revenue,Public Health,Public Health,Smoking & Tobacco,5105651320,26.08.2020,Stop Smoking Services & Interventions NP,Payment to Private Contractors,2.00,BOOTS UK LTD
Revenue,Public Health,Public Health,Smoking & Tobacco,5105651320,26.08.2020,Stop Smoking Services & Interventions NP,Payment to Private Contractors,22.30,BOOTS UK LTD
Revenue,Public Health,Public Health,Substance Misuse,5105650050,12.08.2020,Drug Misuse Adult- Treatment NP,Payment to Private Contractors,24.50,BOOTS UK LTD (YLB BEMBRIDGE)
Revenue,Public Health,Public Health,Substance Misuse,5105650050,12.08.2020,Drug Misuse Adult- Treatment NP,Payment to Private Contractors,30.00,BOOTS UK LTD (YLB BEMBRIDGE)
Revenue,Childrens Services,Children's & Education Services,Safeguarding Children/Young Peoples Svs,5400002747,28.08.2020,Childrens Assess & Safeguarding Team,Conference Expenses,1.42,BOSTICO INTERNATIONAL
Revenue,Resources,Central Services,Support Services,5105649554,05.08.2020,ICT Contracts,Computer Maintenance,"9,586.87",BRAMBLE HUB LIMITED
Revenue,Adult Services,Housing Services,Homelessness,5105651132,26.08.2020,Private Rented Sector Leasing Scheme,Accommodation Costs - Leaseholder Payments,746.81,BRAMBLE LETTINGS
Revenue,Adult Services,Housing Services,Homelessness,5105651132,26.08.2020,Private Rented Sector Leasing Scheme,Accommodation Costs - Leaseholder Payments,746.81,BRAMBLE LETTINGS
Revenue,Adult Services,Housing Services,Homelessness,5105651132,26.08.2020,Private Rented Sector Leasing Scheme,Accommodation Costs - Leaseholder Payments,746.81,BRAMBLE LETTINGS
Revenue,Adult Services,Housing Services,Homelessness,5105651132,26.08.2020,Private Rented Sector Leasing Scheme,Accommodation Costs - Leaseholder Payments,746.81,BRAMBLE LETTINGS
Revenue,Adult Services,Housing Services,Homelessness,5105651132,26.08.2020,Private Rented Sector Leasing Scheme,Accommodation Costs - Leaseholder Payments,746.81,BRAMBLE LETTINGS
Revenue,Adult Services,Housing Services,Homelessness,5105651132,26.08.2020,Private Rented Sector Leasing Scheme,Accommodation Costs - Leaseholder Payments,588.38,BRAMBLE LETTINGS
Revenue,Adult Services,Housing Services,Homelessness,5105651132,26.08.2020,Private Rented Sector Leasing Scheme,Accommodation Costs - Leaseholder Payments,588.38,BRAMBLE LETTINGS
Revenue,Adult Services,Housing Services,Homelessness,5105651132,26.08.2020,Private Rented Sector Leasing Scheme,Accommodation Costs - Leaseholder Payments,588.38,BRAMBLE LETTINGS
Revenue,Adult Services,Housing Services,Homelessness,5105651132,26.08.2020,Private Rented Sector Leasing Scheme,Accommodation Costs - Leaseholder Payments,588.38,BRAMBLE LETTINGS
Revenue,Adult Services,Housing Services,Homelessness,5105651132,26.08.2020,Private Rented Sector Leasing Scheme,Accommodation Costs - Leaseholder Payments,588.38,BRAMBLE LETTINGS
Revenue,Adult Services,Housing Services,Homelessness,5105651132,26.08.2020,Private Rented Sector Leasing Scheme,Accommodation Costs - Leaseholder Payments,746.81,BRAMBLE LETTINGS
Revenue,Adult Services,Housing Services,Homelessness,5105651132,26.08.2020,Private Rented Sector Leasing Scheme,Accommodation Costs - Leaseholder Payments,588.38,BRAMBLE LETTINGS
Revenue,Adult Services,Housing Services,Homelessness,5105651132,26.08.2020,Private Rented Sector Leasing Scheme,Accommodation Costs - Leaseholder Payments,746.81,BRAMBLE LETTINGS
Revenue,Adult Services,Housing Services,Homelessness,5105651132,26.08.2020,Private Rented Sector Leasing Scheme,Accommodation Costs - Leaseholder Payments,769.43,BRAMBLE LETTINGS
Revenue,Adult Services,Housing Services,Homelessness,5105651132,26.08.2020,Private Rented Sector Leasing Scheme,Accommodation Costs - Leaseholder Payments,746.81,BRAMBLE LETTINGS
Revenue,Adult Services,Housing Services,Homelessness,5105651132,26.08.2020,Private Rented Sector Leasing Scheme,Accommodation Costs - Leaseholder Payments,746.81,BRAMBLE LETTINGS
Revenue,Adult Services,Housing Services,Homelessness,5105651132,26.08.2020,Private Rented Sector Leasing Scheme,Accommodation Costs - Leaseholder Payments,746.81,BRAMBLE LETTINGS
Revenue,Adult Services,Housing Services,Homelessness,5105651132,26.08.2020,Private Rented Sector Leasing Scheme,Accommodation Costs - Leaseholder Payments,746.81,BRAMBLE LETTINGS
Revenue,Adult Services,Housing Services,Homelessness,5105651132,26.08.2020,Private Rented Sector Leasing Scheme,Accommodation Costs - Leaseholder Payments,746.81,BRAMBLE LETTINGS
Revenue,Adult Services,Housing Services,Homelessness,5105651132,26.08.2020,Private Rented Sector Leasing Scheme,Accommodation Costs - Leaseholder Payments,746.81,BRAMBLE LETTINGS
Revenue,Adult Services,Housing Services,Homelessness,5105651132,26.08.2020,Private Rented Sector Leasing Scheme,Accommodation Costs - Leaseholder Payments,746.81,BRAMBLE LETTINGS
Revenue,Adult Services,Housing Services,Homelessness,5105651132,26.08.2020,Private Rented Sector Leasing Scheme,Accommodation Costs - Leaseholder Payments,746.81,BRAMBLE LETTINGS
Revenue,Adult Services,Housing Services,Homelessness,5105651132,26.08.2020,Private Rented Sector Leasing Scheme,Accommodation Costs - Leaseholder Payments,281.66,BRAMBLE LETTINGS
Revenue,Adult Services,Housing Services,Homelessness,5105651132,26.08.2020,Private Rented Sector Leasing Scheme,Accommodation Costs - Leaseholder Payments,216.66,BRAMBLE LETTINGS
Revenue,Neighbourhoods,Environmental & Regulatory Services,Coast Protection,5105650144,21.08.2020,Coast Protection,Payment to Private Contractors,"1,875.00",BRIGHSTONE LANDSCAPING LTD
Revenue,Neighbourhoods,Environmental & Regulatory Services,(Street) Cleansing (not highways),5400002786,28.08.2020,Beach Cleaning,Payment to Private Contractors,700.00,BRIGHSTONE LANDSCAPING LTD
Revenue,Neighbourhoods,Environmental & Regulatory Services,Coast Protection,5105650145,14.08.2020,Coast Protection,Payment to Private Contractors,400.00,BRIGHSTONE LANDSCAPING LTD
Revenue,Neighbourhoods,Environmental & Regulatory Services,Coast Protection,5105649919,07.08.2020,Coast Protection,Payment to Private Contractors,260.00,BRIGHSTONE LANDSCAPING LTD
Revenue,Neighbourhoods,Environmental & Regulatory Services,Coast Protection,5105650930,21.08.2020,Coast Protection,Payment to Private Contractors,655.00,BRIGHSTONE LANDSCAPING LTD
Revenue,Neighbourhoods,Environmental & Regulatory Services,Coast Protection,5105649921,07.08.2020,Coast Protection,Payment to Private Contractors,75.00,BRIGHSTONE LANDSCAPING LTD
Revenue,Neighbourhoods,Cultural and Related Services,Open Spaces,5105650146,14.08.2020,Play Areas Health & Safety work,Payment to Private Contractors,55.00,BRIGHSTONE LANDSCAPING LTD
Revenue,Neighbourhoods,Cultural and Related Services,Recreation and Sport,5105650473,19.08.2020,Beach Safety & Inspection / Beach Awards,Payment to Private Contractors,50.00,BRIGHSTONE LANDSCAPING LTD
Revenue,Neighbourhoods,Cultural and Related Services,Open Spaces,5105650484,19.08.2020,Public Shelters - Ryde,Payment to Private Contractors,60.00,BRIGHSTONE LANDSCAPING LTD
Revenue,Neighbourhoods,Cultural and Related Services,Recreation and Sport,5105650484,19.08.2020,Beach Safety & Inspection / Beach Awards,Payment to Private Contractors,170.00,BRIGHSTONE LANDSCAPING LTD
Revenue,Neighbourhoods,Highways and Transport Services,"Airports, Harbours & Toll Facilities",5105650931,21.08.2020,Ryde Harbour,Payment to Private Contractors,85.00,BRIGHSTONE LANDSCAPING LTD
Revenue,Neighbourhoods,Cultural and Related Services,Recreation and Sport,5105651692,28.08.2020,Slipways & Steps (Beaches),Payment to Private Contractors,80.00,BRIGHSTONE LANDSCAPING LTD
Revenue,Neighbourhoods,Cultural and Related Services,Recreation and Sport,5105651694,28.08.2020,Slipways & Steps (Beaches),Payment to Private Contractors,58.00,BRIGHSTONE LANDSCAPING LTD
Revenue,Neighbourhoods,Cultural and Related Services,Open Spaces,5105651694,28.08.2020,Public Shelters - Ryde,Payment to Private Contractors,75.00,BRIGHSTONE LANDSCAPING LTD
Revenue,Neighbourhoods,Cultural and Related Services,Open Spaces,5105651694,28.08.2020,Public Shelters - Ryde,Payment to Private Contractors,130.00,BRIGHSTONE LANDSCAPING LTD
Revenue,Neighbourhoods,Cultural and Related Services,Recreation and Sport,5105651694,28.08.2020,Slipways & Steps (Beaches),Payment to Private Contractors,85.00,BRIGHSTONE LANDSCAPING LTD
Revenue,Neighbourhoods,Cultural and Related Services,Recreation and Sport,5105651696,28.08.2020,Beach Safety & Inspection / Beach Awards,Payment to Private Contractors,55.00,BRIGHSTONE LANDSCAPING LTD
Revenue,Neighbourhoods,Cultural and Related Services,Open Spaces,5105651696,28.08.2020,Allotments,Payment to Private Contractors,85.00,BRIGHSTONE LANDSCAPING LTD
Revenue,Neighbourhoods,Environmental & Regulatory Services,(Street) Cleansing (not highways),5105651703,28.08.2020,Beach Cleaning,Payment to Private Contractors,70.00,BRIGHSTONE LANDSCAPING LTD
Revenue,Resources,Central Services,Support Services,5105651172,26.08.2020,Staff Benefits,Payment to Private Contractors,15.00,KCT CHILDCARE LIMITED
Revenue,Neighbourhoods,Cultural and Related Services,Culture and Heritage,5105651676,28.08.2020,Dinosaur Isle Museum (Sandown Geology),Stock Purchases,"1,070.46",BRITISH FOSSILS/GIFTSTONES LIMITED
Revenue,Neighbourhoods,Cultural and Related Services,Culture and Heritage,5105651610,28.08.2020,Museums & Collections Management,Heritage Acquisitions,450.00,BRITISH MUSEUM GREAT COURT LTD
Revenue,Adult Services,Adult Social Care,Learning Disability Suppt-adults (18-64),5105649378,05.08.2020,Learning Disability Residential 18-64,Charges from Independent Providers,"7,069.16",BROADHAM CARE LTD
Revenue,Adult Services,Adult Social Care,Learning Disability Suppt-adults (18-64),5105651716,28.08.2020,Learning Disability Residential 18-64,Charges from Independent Providers,"7,069.16",BROADHAM CARE LTD
Revenue,Public Health,Public Health,Sexual Health,5105649985,07.08.2020,Long Acting Reversible Contraception,Payment to Private Contractors,120.00,BROOKSIDE HEALTH CENTRE
Revenue,Public Health,Public Health,NHS Health Check Programme,5105649985,07.08.2020,NHS Health Check Programme P,Payment to Private Contractors,"1,404.00",BROOKSIDE HEALTH CENTRE
Capital,Place,Capital,Capital,5105650673,19.08.2020,Rights Of Way Capital Programme,Payment to Contractors - Capital,500.00,BRUTTON & CO
Revenue,Adult Services,Adult Social Care,Physical Support - older people (65+),5105649423,05.08.2020,Physical Support Residential 65+,Charges from Independent Providers,"2,497.32",BUCKLAND CARE LTD
Revenue,Adult Services,Adult Social Care,Physical Support - older people (65+),5105651761,28.08.2020,Physical Support Residential 65+,Charges from Independent Providers,"2,497.32",BUCKLAND CARE LTD
Revenue,Adult Services,Adult Social Care,Support - Memory /Cognition-older people (65+),5105649423,05.08.2020,Memory & Cognition Residential 65+,Charges from Independent Providers,"2,497.32",BUCKLAND CARE LTD
Revenue,Adult Services,Adult Social Care,Support - Memory /Cognition-older people (65+),5105651761,28.08.2020,Memory & Cognition Residential 65+,Charges from Independent Providers,"2,497.32",BUCKLAND CARE LTD
Revenue,Adult Services,Adult Social Care,Physical Support - adults (18-64),5105649423,05.08.2020,Physical Support Residential 18-64,Charges from Independent Providers,"2,497.32",BUCKLAND CARE LTD
Revenue,Adult Services,Adult Social Care,Physical Support - adults (18-64),5105651761,28.08.2020,Physical Support Residential 18-64,Charges from Independent Providers,"2,497.32",BUCKLAND CARE LTD
Revenue,Adult Services,Adult Social Care,Support - Memory /Cognition-older people (65+),5105649423,05.08.2020,Memory & Cognition Residential 65+,Charges from Independent Providers,"2,124.08",BUCKLAND CARE LTD
Revenue,Adult Services,Adult Social Care,Support - Memory /Cognition-older people (65+),5105651761,28.08.2020,Memory & Cognition Residential 65+,Charges from Independent Providers,"2,124.08",BUCKLAND CARE LTD
Capital,Corporate Items,Balance Sheet,Balance Sheet,5105651761,28.08.2020,Balance Sheet,Order Settlement to Bal Sht GL,92.12,BUCKLAND CARE LTD
Capital,Corporate Items,Balance Sheet,Balance Sheet,5105649423,05.08.2020,Balance Sheet,Order Settlement to Bal Sht GL,92.12,BUCKLAND CARE LTD
Revenue,Adult Services,Adult Social Care,Physical Support - older people (65+),5105649423,05.08.2020,Physical Support Residential 65+,Charges from Independent Providers,"2,497.32",BUCKLAND CARE LTD
Revenue,Adult Services,Adult Social Care,Physical Support - older people (65+),5105651761,28.08.2020,Physical Support Residential 65+,Charges from Independent Providers,"2,497.32",BUCKLAND CARE LTD
Revenue,Adult Services,Adult Social Care,Physical Support - older people (65+),5105649423,05.08.2020,Physical Support Residential 65+,Charges from Independent Providers,"2,497.32",BUCKLAND CARE LTD
Revenue,Adult Services,Adult Social Care,Physical Support - older people (65+),5105651761,28.08.2020,Physical Support Residential 65+,Charges from Independent Providers,"2,497.32",BUCKLAND CARE LTD
Revenue,Adult Services,Adult Social Care,Physical Support - older people (65+),5105649423,05.08.2020,Physical Support Residential 65+,Charges from Independent Providers,"2,497.32",BUCKLAND CARE LTD
Revenue,Adult Services,Adult Social Care,Physical Support - older people (65+),5105651761,28.08.2020,Physical Support Residential 65+,Charges from Independent Providers,"2,497.32",BUCKLAND CARE LTD
Revenue,Adult Services,Adult Social Care,Physical Support - older people (65+),5105649423,05.08.2020,Physical Support Residential 65+,Charges from Independent Providers,"2,497.32",BUCKLAND CARE LTD
Revenue,Adult Services,Adult Social Care,Physical Support - older people (65+),5105651761,28.08.2020,Physical Support Residential 65+,Charges from Independent Providers,"2,497.32",BUCKLAND CARE LTD
Revenue,Adult Services,Adult Social Care,Physical Support - older people (65+),5105649423,05.08.2020,Physical Support Residential 65+,Charges from Independent Providers,"2,497.32",BUCKLAND CARE LTD
Revenue,Adult Services,Adult Social Care,Physical Support - older people (65+),5105651761,28.08.2020,Physical Support Residential 65+,Charges from Independent Providers,"2,497.32",BUCKLAND CARE LTD
Revenue,Adult Services,Adult Social Care,Physical Support - older people (65+),5105649423,05.08.2020,Physical Support Residential 65+,Charges from Independent Providers,"2,051.37",BUCKLAND CARE LTD
Revenue,Adult Services,Adult Social Care,Physical Support - older people (65+),5105649423,05.08.2020,Physical Support Residential 65+,Charges from Independent Providers,"2,497.32",BUCKLAND CARE LTD
Revenue,Adult Services,Adult Social Care,Physical Support - older people (65+),5105651761,28.08.2020,Physical Support Residential 65+,Charges from Independent Providers,"2,497.32",BUCKLAND CARE LTD
Revenue,Adult Services,Adult Social Care,Physical Support - older people (65+),5105649423,05.08.2020,Physical Support Residential 65+,Charges from Independent Providers,"2,497.32",BUCKLAND CARE LTD
Revenue,Adult Services,Adult Social Care,Physical Support - older people (65+),5105651761,28.08.2020,Physical Support Residential 65+,Charges from Independent Providers,"2,497.32",BUCKLAND CARE LTD
Revenue,Adult Services,Adult Social Care,Learning Disability Support-older people,5105649423,05.08.2020,Learning Disability Residential 65+,Charges from Independent Providers,"2,497.32",BUCKLAND CARE LTD
Revenue,Adult Services,Adult Social Care,Learning Disability Support-older people,5105651761,28.08.2020,Learning Disability Residential 65+,Charges from Independent Providers,"2,497.32",BUCKLAND CARE LTD
Revenue,Adult Services,Adult Social Care,Physical Support - adults (18-64),5105650005,12.08.2020,Physical Support Residential 18-64,Charges from Independent Providers,"3,839.32",BUCKLAND CARE LTD
Revenue,Adult Services,Adult Social Care,Physical Support - older people (65+),5105649423,05.08.2020,Physical Support Residential 65+,Charges from Independent Providers,"2,497.32",BUCKLAND CARE LTD
Revenue,Adult Services,Adult Social Care,Physical Support - older people (65+),5105651761,28.08.2020,Physical Support Residential 65+,Charges from Independent Providers,"2,497.32",BUCKLAND CARE LTD
Revenue,Adult Services,Adult Social Care,Physical Support - older people (65+),5105649423,05.08.2020,Physical Support Residential 65+,Charges from Independent Providers,"2,497.32",BUCKLAND CARE LTD
Revenue,Adult Services,Adult Social Care,Physical Support - older people (65+),5105651761,28.08.2020,Physical Support Residential 65+,Charges from Independent Providers,"2,497.32",BUCKLAND CARE LTD
Revenue,Adult Services,Adult Social Care,Physical Support - older people (65+),5105649423,05.08.2020,Physical Support Residential 65+,Charges from Independent Providers,"2,124.08",BUCKLAND CARE LTD
Revenue,Adult Services,Adult Social Care,Physical Support - older people (65+),5105651761,28.08.2020,Physical Support Residential 65+,Charges from Independent Providers,"2,124.08",BUCKLAND CARE LTD
Revenue,Adult Services,Adult Social Care,Physical Support - older people (65+),5105649423,05.08.2020,Physical Support Residential 65+,Charges from Independent Providers,"2,497.32",BUCKLAND CARE LTD
Revenue,Adult Services,Adult Social Care,Physical Support - older people (65+),5105651761,28.08.2020,Physical Support Residential 65+,Charges from Independent Providers,"2,497.32",BUCKLAND CARE LTD
Revenue,Adult Services,Adult Social Care,Physical Support - older people (65+),5105649423,05.08.2020,Physical Support Residential 65+,Charges from Independent Providers,"2,028.32",BUCKLAND CARE LTD
Revenue,Adult Services,Adult Social Care,Physical Support - older people (65+),5105651761,28.08.2020,Physical Support Residential 65+,Charges from Independent Providers,"2,028.32",BUCKLAND CARE LTD
Revenue,Adult Services,Adult Social Care,Physical Support - older people (65+),5105649423,05.08.2020,Physical Support Residential 65+,Charges from Independent Providers,"2,028.32",BUCKLAND CARE LTD
Revenue,Adult Services,Adult Social Care,Physical Support - older people (65+),5105651761,28.08.2020,Physical Support Residential 65+,Charges from Independent Providers,"2,028.32",BUCKLAND CARE LTD
Revenue,Adult Services,Adult Social Care,Social Support - Support for Carer,5105649423,05.08.2020,Carers Residential,Regular Respite Care,"2,497.32",BUCKLAND CARE LTD
Revenue,Adult Services,Adult Social Care,Social Support - Support for Carer,5105651761,28.08.2020,Carers Residential,Charges from Independent Providers,"2,497.32",BUCKLAND CARE LTD
Revenue,Adult Services,Adult Social Care,Physical Support - older people (65+),5105649423,05.08.2020,Physical Support Residential 65+,Charges from Independent Providers,"2,497.32",BUCKLAND CARE LTD
Revenue,Adult Services,Adult Social Care,Physical Support - older people (65+),5105651761,28.08.2020,Physical Support Residential 65+,Charges from Independent Providers,"2,497.32",BUCKLAND CARE LTD
Revenue,Adult Services,Adult Social Care,Support - Memory /Cognition-older people (65+),5105649423,05.08.2020,Memory & Cognition Residential 65+,Charges from Independent Providers,"2,497.32",BUCKLAND CARE LTD
Revenue,Adult Services,Adult Social Care,Support - Memory /Cognition-older people (65+),5105651761,28.08.2020,Memory & Cognition Residential 65+,Charges from Independent Providers,"2,497.32",BUCKLAND CARE LTD
Revenue,Adult Services,Adult Social Care,Support - Memory /Cognition-older people (65+),5105649423,05.08.2020,Memory & Cognition Residential 65+,Charges from Independent Providers,834.46,BUCKLAND CARE LTD
Revenue,Adult Services,Adult Social Care,Physical Support - older people (65+),5105649423,05.08.2020,Physical Support Residential 65+,Charges from Independent Providers,"2,124.08",BUCKLAND CARE LTD
Revenue,Adult Services,Adult Social Care,Physical Support - older people (65+),5105651761,28.08.2020,Physical Support Residential 65+,Charges from Independent Providers,"2,124.08",BUCKLAND CARE LTD
Revenue,Adult Services,Adult Social Care,Physical Support - older people (65+),5105649684,07.08.2020,Physical Support Residential 65+,Charges from Independent Providers,891.90,BUCKLAND CARE LTD
Revenue,Adult Services,Adult Social Care,Physical Support - older people (65+),5105650667,19.08.2020,Physical Support Residential 65+,Charges from Independent Providers,"4,346.40",BUCKLAND CARE LTD
Revenue,Adult Services,Adult Social Care,Physical Support - older people (65+),5105651761,28.08.2020,Physical Support Residential 65+,Charges from Independent Providers,289.76,BUCKLAND CARE LTD
Revenue,Adult Services,Adult Social Care,Support - Memory /Cognition-older people (65+),5105649413,05.08.2020,Memory & Cognition Nursing 65+,Regular Respite Care,"2,803.64",BUCKLAND CARE LTD
Revenue,Adult Services,Adult Social Care,Support - Memory /Cognition-older people (65+),5105651751,28.08.2020,Memory & Cognition Nursing 65+,Regular Respite Care,"2,803.64",BUCKLAND CARE LTD
Revenue,Adult Services,Adult Social Care,Commissioning & Service Delivery,5105651751,28.08.2020,FNC IWC funded clients,Regular Respite Care,662.48,BUCKLAND CARE LTD
Revenue,Adult Services,Adult Social Care,Commissioning & Service Delivery,5105649413,05.08.2020,FNC IWC funded clients,Regular Respite Care,662.48,BUCKLAND CARE LTD
Revenue,Adult Services,Adult Social Care,Physical Support - older people (65+),5105649413,05.08.2020,Physical Support Nursing 65+,Charges from Independent Providers,"2,803.64",BUCKLAND CARE LTD
Revenue,Adult Services,Adult Social Care,Physical Support - older people (65+),5105651751,28.08.2020,Physical Support Nursing 65+,Charges from Independent Providers,"2,803.64",BUCKLAND CARE LTD
Revenue,Adult Services,Adult Social Care,Commissioning & Service Delivery,5105651751,28.08.2020,FNC IWC funded clients,Charges from Independent Providers,735.84,BUCKLAND CARE LTD
Revenue,Adult Services,Adult Social Care,Commissioning & Service Delivery,5105649413,05.08.2020,FNC IWC funded clients,Charges from Independent Providers,735.84,BUCKLAND CARE LTD
Revenue,Adult Services,Adult Social Care,Physical Support - older people (65+),5105649413,05.08.2020,Physical Support Residential 65+,Charges from Independent Providers,"2,497.32",BUCKLAND CARE LTD
Revenue,Adult Services,Adult Social Care,Physical Support - older people (65+),5105651751,28.08.2020,Physical Support Residential 65+,Charges from Independent Providers,"2,497.32",BUCKLAND CARE LTD
Revenue,Adult Services,Adult Social Care,Commissioning & Service Delivery,5105649413,05.08.2020,"Funded Nursing Care, Registered Nursing Care Contribution",Charges from Independent Providers,735.84,BUCKLAND CARE LTD
Revenue,Adult Services,Adult Social Care,Commissioning & Service Delivery,5105651751,28.08.2020,"Funded Nursing Care, Registered Nursing Care Contribution",Charges from Independent Providers,735.84,BUCKLAND CARE LTD
Revenue,Adult Services,Adult Social Care,Commissioning & Service Delivery,5105649413,05.08.2020,"Funded Nursing Care, Registered Nursing Care Contribution",Charges from Independent Providers,735.84,BUCKLAND CARE LTD
Revenue,Adult Services,Adult Social Care,Commissioning & Service Delivery,5105651751,28.08.2020,"Funded Nursing Care, Registered Nursing Care Contribution",Charges from Independent Providers,735.84,BUCKLAND CARE LTD
Revenue,Adult Services,Adult Social Care,Physical Support - older people (65+),5105649413,05.08.2020,Physical Support Residential 65+,Charges from Independent Providers,"2,497.32",BUCKLAND CARE LTD
Revenue,Adult Services,Adult Social Care,Physical Support - older people (65+),5105651751,28.08.2020,Physical Support Residential 65+,Charges from Independent Providers,"2,497.32",BUCKLAND CARE LTD
Revenue,Adult Services,Adult Social Care,Commissioning & Service Delivery,5105649413,05.08.2020,"Funded Nursing Care, Registered Nursing Care Contribution",Charges from Independent Providers,735.84,BUCKLAND CARE LTD
Revenue,Adult Services,Adult Social Care,Commissioning & Service Delivery,5105651751,28.08.2020,"Funded Nursing Care, Registered Nursing Care Contribution",Charges from Independent Providers,735.84,BUCKLAND CARE LTD
Revenue,Adult Services,Adult Social Care,Physical Support - older people (65+),5105649413,05.08.2020,Physical Support Nursing 65+,Charges from Independent Providers,"2,497.32",BUCKLAND CARE LTD
Revenue,Adult Services,Adult Social Care,Physical Support - older people (65+),5105651751,28.08.2020,Physical Support Nursing 65+,Charges from Independent Providers,"2,497.32",BUCKLAND CARE LTD
Revenue,Adult Services,Adult Social Care,Commissioning & Service Delivery,5105649413,05.08.2020,"Funded Nursing Care, Registered Nursing Care Contribution",Charges from Independent Providers,735.84,BUCKLAND CARE LTD
Revenue,Adult Services,Adult Social Care,Commissioning & Service Delivery,5105651751,28.08.2020,"Funded Nursing Care, Registered Nursing Care Contribution",Charges from Independent Providers,735.84,BUCKLAND CARE LTD
Revenue,Adult Services,Adult Social Care,Commissioning & Service Delivery,5105649413,05.08.2020,CHC Nursing Care,Charges from Independent Providers,"3,539.48",BUCKLAND CARE LTD
Revenue,Adult Services,Adult Social Care,Commissioning & Service Delivery,5105651751,28.08.2020,CHC Nursing Care,Charges from Independent Providers,"3,539.48",BUCKLAND CARE LTD
Revenue,Adult Services,Adult Social Care,Physical Support - older people (65+),5105649413,05.08.2020,Physical Support Nursing 65+,Charges from Independent Providers,"2,803.64",BUCKLAND CARE LTD
Revenue,Adult Services,Adult Social Care,Physical Support - older people (65+),5105651751,28.08.2020,Physical Support Nursing 65+,Charges from Independent Providers,"2,803.64",BUCKLAND CARE LTD
Revenue,Adult Services,Adult Social Care,Commissioning & Service Delivery,5105651751,28.08.2020,FNC IWC funded clients,Charges from Independent Providers,735.84,BUCKLAND CARE LTD
Revenue,Adult Services,Adult Social Care,Commissioning & Service Delivery,5105649413,05.08.2020,FNC IWC funded clients,Charges from Independent Providers,735.84,BUCKLAND CARE LTD
Revenue,Adult Services,Adult Social Care,Physical Support - older people (65+),5105651650,28.08.2020,Physical Support Nursing 65+,Charges from Independent Providers,"3,104.03",BUCKLAND CARE LTD
Revenue,Adult Services,Adult Social Care,Commissioning & Service Delivery,5105651650,28.08.2020,FNC IWC funded clients,Charges from Independent Providers,814.68,BUCKLAND CARE LTD
Revenue,Adult Services,Adult Social Care,Commissioning & Service Delivery,5105649413,05.08.2020,CHC Nursing Care,Charges from Independent Providers,"3,539.48",BUCKLAND CARE LTD
Revenue,Adult Services,Adult Social Care,Commissioning & Service Delivery,5105651751,28.08.2020,CHC Nursing Care,Charges from Independent Providers,"3,539.48",BUCKLAND CARE LTD
Revenue,Adult Services,Adult Social Care,Commissioning & Service Delivery,5105649413,05.08.2020,CHC Nursing Care,Charges from Independent Providers,"3,539.48",BUCKLAND CARE LTD
Revenue,Adult Services,Adult Social Care,Commissioning & Service Delivery,5105651751,28.08.2020,CHC Nursing Care,Charges from Independent Providers,"3,539.48",BUCKLAND CARE LTD
Revenue,Adult Services,Adult Social Care,Commissioning & Service Delivery,5105649413,05.08.2020,CHC Nursing Care,Charges from Independent Providers,"3,539.48",BUCKLAND CARE LTD
Revenue,Adult Services,Adult Social Care,Commissioning & Service Delivery,5105651751,28.08.2020,CHC Nursing Care,Charges from Independent Providers,"3,539.48",BUCKLAND CARE LTD
Revenue,Adult Services,Adult Social Care,Commissioning & Service Delivery,5105649413,05.08.2020,CHC Nursing Care,Charges from Independent Providers,"3,539.48",BUCKLAND CARE LTD
Revenue,Adult Services,Adult Social Care,Commissioning & Service Delivery,5105651751,28.08.2020,CHC Nursing Care,Charges from Independent Providers,"3,539.48",BUCKLAND CARE LTD
Revenue,Adult Services,Adult Social Care,Commissioning & Service Delivery,5105649413,05.08.2020,CHC Nursing Care,Charges from Independent Providers,"3,539.48",BUCKLAND CARE LTD
Revenue,Adult Services,Adult Social Care,Commissioning & Service Delivery,5105651751,28.08.2020,CHC Nursing Care,Charges from Independent Providers,"3,539.48",BUCKLAND CARE LTD
Revenue,Adult Services,Adult Social Care,Commissioning & Service Delivery,5105649413,05.08.2020,CHC Nursing Care,Charges from Independent Providers,"11,424.00",BUCKLAND CARE LTD
Revenue,Adult Services,Adult Social Care,Commissioning & Service Delivery,5105651751,28.08.2020,CHC Nursing Care,Charges from Independent Providers,"11,424.00",BUCKLAND CARE LTD
Revenue,Adult Services,Adult Social Care,Commissioning & Service Delivery,5105651751,28.08.2020,CHC Nursing Care,Charges from Independent Providers,"3,539.48",BUCKLAND CARE LTD
Revenue,Adult Services,Adult Social Care,Commissioning & Service Delivery,5105649413,05.08.2020,CHC Nursing Care,Charges from Independent Providers,"3,539.48",BUCKLAND CARE LTD
Revenue,Adult Services,Adult Social Care,Physical Support - older people (65+),5105649413,05.08.2020,Physical Support Nursing 65+,Charges from Independent Providers,"2,603.38",BUCKLAND CARE LTD
Revenue,Adult Services,Adult Social Care,Commissioning & Service Delivery,5105649413,05.08.2020,FNC IWC funded clients,Charges from Independent Providers,683.28,BUCKLAND CARE LTD
Revenue,Adult Services,Adult Social Care,Commissioning & Service Delivery,5105649413,05.08.2020,"Funded Nursing Care, Registered Nursing Care Contribution",Charges from Independent Providers,735.84,BUCKLAND CARE LTD
Revenue,Adult Services,Adult Social Care,Commissioning & Service Delivery,5105651751,28.08.2020,"Funded Nursing Care, Registered Nursing Care Contribution",Charges from Independent Providers,735.84,BUCKLAND CARE LTD
Revenue,Adult Services,Adult Social Care,Physical Support - adults (18-64),5105649413,05.08.2020,Physical Support Nursing 18-64,Charges from Independent Providers,"2,803.64",BUCKLAND CARE LTD
Revenue,Adult Services,Adult Social Care,Physical Support - adults (18-64),5105651751,28.08.2020,Physical Support Nursing 18-64,Charges from Independent Providers,"2,803.64",BUCKLAND CARE LTD
Revenue,Adult Services,Adult Social Care,Commissioning & Service Delivery,5105651751,28.08.2020,FNC IWC funded clients,Charges from Independent Providers,735.84,BUCKLAND CARE LTD
Revenue,Adult Services,Adult Social Care,Commissioning & Service Delivery,5105649413,05.08.2020,FNC IWC funded clients,Charges from Independent Providers,735.84,BUCKLAND CARE LTD
Revenue,Adult Services,Adult Social Care,Physical Support - older people (65+),5105651751,28.08.2020,Physical Support Nursing 65+,Charges from Independent Providers,"2,803.64",BUCKLAND CARE LTD
Revenue,Adult Services,Adult Social Care,Physical Support - older people (65+),5105649413,05.08.2020,Physical Support Nursing 65+,Charges from Independent Providers,"2,803.64",BUCKLAND CARE LTD
Revenue,Adult Services,Adult Social Care,Commissioning & Service Delivery,5105649413,05.08.2020,FNC IWC funded clients,Charges from Independent Providers,735.84,BUCKLAND CARE LTD
Revenue,Adult Services,Adult Social Care,Commissioning & Service Delivery,5105651751,28.08.2020,FNC IWC funded clients,Charges from Independent Providers,735.84,BUCKLAND CARE LTD
Revenue,Adult Services,Adult Social Care,Physical Support - adults (18-64),5105650068,12.08.2020,Physical Support Nursing 18-64,Charges from Independent Providers,"7,609.88",BUCKLAND CARE LTD
Revenue,Adult Services,Adult Social Care,Commissioning & Service Delivery,5105650068,12.08.2020,FNC IWC funded clients,Charges from Independent Providers,"1,997.28",BUCKLAND CARE LTD
Revenue,Adult Services,Adult Social Care,Physical Support - adults (18-64),5105651751,28.08.2020,Physical Support Nursing 18-64,Charges from Independent Providers,801.04,BUCKLAND CARE LTD
Revenue,Adult Services,Adult Social Care,Commissioning & Service Delivery,5105651751,28.08.2020,FNC IWC funded clients,Charges from Independent Providers,210.24,BUCKLAND CARE LTD
Revenue,Adult Services,Adult Social Care,Learning Disability Suppt-adults (18-64),5105649413,05.08.2020,Learning Disability Nursing 18-64,Charges from Independent Providers,"2,803.64",BUCKLAND CARE LTD
Revenue,Adult Services,Adult Social Care,Learning Disability Suppt-adults (18-64),5105651751,28.08.2020,Learning Disability Nursing 18-64,Charges from Independent Providers,"2,803.64",BUCKLAND CARE LTD
Revenue,Adult Services,Adult Social Care,Commissioning & Service Delivery,5105651751,28.08.2020,FNC IWC funded clients,Charges from Independent Providers,735.84,BUCKLAND CARE LTD
Revenue,Adult Services,Adult Social Care,Commissioning & Service Delivery,5105649413,05.08.2020,FNC IWC funded clients,Charges from Independent Providers,735.84,BUCKLAND CARE LTD
Revenue,Adult Services,Adult Social Care,Learning Disability Suppt-adults (18-64),5105651351,26.08.2020,Learning Disability Nursing 18-64,Charges from Independent Providers,"22,236.00",BUCKLAND CARE LTD
Revenue,Adult Services,Adult Social Care,Learning Disability Suppt-adults (18-64),5105651751,28.08.2020,Learning Disability Nursing 18-64,Charges from Independent Providers,"5,712.00",BUCKLAND CARE LTD
Revenue,Adult Services,Adult Social Care,Commissioning & Service Delivery,5105649413,05.08.2020,CHC Nursing Care,Charges from Independent Providers,"2,781.02",BUCKLAND CARE LTD
Revenue,Adult Services,Adult Social Care,Support - Memory /Cognition-older people (65+),5105651751,28.08.2020,Memory & Cognition Nursing 65+,Charges from Independent Providers,"3,235.12",BUCKLAND CARE LTD
Revenue,Adult Services,Adult Social Care,Support - Memory /Cognition-older people (65+),5105649413,05.08.2020,Memory & Cognition Nursing 65+,Charges from Independent Providers,"3,235.12",BUCKLAND CARE LTD
Revenue,Adult Services,Adult Social Care,Commissioning & Service Delivery,5105649413,05.08.2020,FNC IWC funded clients,Charges from Independent Providers,735.84,BUCKLAND CARE LTD
Revenue,Adult Services,Adult Social Care,Commissioning & Service Delivery,5105651751,28.08.2020,FNC IWC funded clients,Charges from Independent Providers,735.84,BUCKLAND CARE LTD
Revenue,Adult Services,Adult Social Care,Physical Support - older people (65+),5105649413,05.08.2020,Physical Support Nursing 65+,Charges from Independent Providers,"2,803.64",BUCKLAND CARE LTD
Revenue,Adult Services,Adult Social Care,Physical Support - older people (65+),5105651751,28.08.2020,Physical Support Nursing 65+,Charges from Independent Providers,"2,803.64",BUCKLAND CARE LTD
Revenue,Adult Services,Adult Social Care,Commissioning & Service Delivery,5105651751,28.08.2020,FNC IWC funded clients,Charges from Independent Providers,735.84,BUCKLAND CARE LTD
Revenue,Adult Services,Adult Social Care,Commissioning & Service Delivery,5105649413,05.08.2020,FNC IWC funded clients,Charges from Independent Providers,735.84,BUCKLAND CARE LTD
Revenue,Adult Services,Adult Social Care,Physical Support - older people (65+),5105649413,05.08.2020,Physical Support Nursing 65+,Charges from Independent Providers,"2,803.64",BUCKLAND CARE LTD
Revenue,Adult Services,Adult Social Care,Commissioning & Service Delivery,5105649413,05.08.2020,FNC IWC funded clients,Charges from Independent Providers,735.84,BUCKLAND CARE LTD
Revenue,Adult Services,Adult Social Care,Physical Support - older people (65+),5105651751,28.08.2020,Physical Support Nursing 65+,Charges from Independent Providers,"2,503.25",BUCKLAND CARE LTD
Revenue,Adult Services,Adult Social Care,Commissioning & Service Delivery,5105651751,28.08.2020,FNC IWC funded clients,Charges from Independent Providers,657.00,BUCKLAND CARE LTD
Revenue,Adult Services,Adult Social Care,Commissioning & Service Delivery,5105650187,14.08.2020,CHC Nursing Care,Charges from Independent Providers,"6,699.73",BUCKLAND CARE LTD
Revenue,Adult Services,Adult Social Care,Commissioning & Service Delivery,5105651751,28.08.2020,CHC Nursing Care,Charges from Independent Providers,"3,539.48",BUCKLAND CARE LTD
Revenue,Adult Services,Central Services,Emergency Planning,5105651650,28.08.2020,NHS C19 Nursing,Charges from Independent Providers,"5,500.04",BUCKLAND CARE LTD
Revenue,Adult Services,Adult Social Care,Physical Support - older people (65+),5105649436,05.08.2020,Physical Support Nursing 65+,Charges from Independent Providers,"3,800.16",BUPA CARE HOME (BNH) LTD
Revenue,Adult Services,Adult Social Care,Physical Support - older people (65+),5105651774,28.08.2020,Physical Support Nursing 65+,Charges from Independent Providers,"3,800.16",BUPA CARE HOME (BNH) LTD
Revenue,Childrens Services,Children's & Education Services,Children Looked After,5105649715,07.08.2020,Special Guardianship Order Costs,Support Children,161.49,REDACTED PERSONAL DATA
Revenue,Childrens Services,Children's & Education Services,Children Looked After,5105650222,14.08.2020,Special Guardianship Order Costs,Support Children,161.49,REDACTED PERSONAL DATA
Revenue,Childrens Services,Children's & Education Services,Children Looked After,5105650768,21.08.2020,Special Guardianship Order Costs,Support Children,161.49,REDACTED PERSONAL DATA
Revenue,Childrens Services,Children's & Education Services,Children Looked After,5105651432,28.08.2020,Special Guardianship Order Costs,Support Children,161.49,REDACTED PERSONAL DATA
Revenue,Childrens Services,Children's & Education Services,Children Looked After,5105649746,07.08.2020,Children placed with Family&Friends,Boarding Out Allowances,244.47,REDACTED PERSONAL DATA
Revenue,Childrens Services,Children's & Education Services,Children Looked After,5105650252,14.08.2020,Children placed with Family&Friends,Boarding Out Allowances,244.47,REDACTED PERSONAL DATA
Revenue,Childrens Services,Children's & Education Services,Children Looked After,5105650798,21.08.2020,Children placed with Family&Friends,Boarding Out Allowances,244.47,REDACTED PERSONAL DATA
Revenue,Childrens Services,Children's & Education Services,Children Looked After,5105651462,28.08.2020,Children placed with Family&Friends,Boarding Out Allowances,244.47,REDACTED PERSONAL DATA
Revenue,Childrens Services,Children's & Education Services,Children Looked After,5105651454,28.08.2020,Adoption Costs,Support Children,161.49,REDACTED PERSONAL DATA
Revenue,Childrens Services,Children's & Education Services,Children Looked After,5105650244,14.08.2020,Adoption Costs,Support Children,161.49,REDACTED PERSONAL DATA
Revenue,Childrens Services,Children's & Education Services,Children Looked After,5105650790,21.08.2020,Adoption Costs,Support Children,161.49,REDACTED PERSONAL DATA
Revenue,Childrens Services,Children's & Education Services,Children Looked After,5105649738,07.08.2020,Adoption Costs,Support Children,161.49,REDACTED PERSONAL DATA
Revenue,Childrens Services,Children's & Education Services,Children Looked After,5105649738,07.08.2020,Adoption Costs,Support Children,168.09,REDACTED PERSONAL DATA
Revenue,Childrens Services,Children's & Education Services,Children Looked After,5105650790,21.08.2020,Adoption Costs,Support Children,168.09,REDACTED PERSONAL DATA
Revenue,Childrens Services,Children's & Education Services,Children Looked After,5105650244,14.08.2020,Adoption Costs,Support Children,168.09,REDACTED PERSONAL DATA
Revenue,Childrens Services,Children's & Education Services,Children Looked After,5105651454,28.08.2020,Adoption Costs,Support Children,168.09,REDACTED PERSONAL DATA
Revenue,Resources,Central Services,Support Services,5105651169,26.08.2020,Staff Benefits,Payment to Private Contractors,5.00,REDACTED PERSONAL DATA
Revenue,Childrens Services,Children's & Education Services,Children Looked After,5105649724,07.08.2020,Special Guardianship Order Costs,Support Children,125.39,REDACTED PERSONAL DATA
Revenue,Childrens Services,Children's & Education Services,Children Looked After,5105650230,14.08.2020,Special Guardianship Order Costs,Support Children,125.39,REDACTED PERSONAL DATA
Revenue,Childrens Services,Children's & Education Services,Children Looked After,5105650776,21.08.2020,Special Guardianship Order Costs,Support Children,125.39,REDACTED PERSONAL DATA
Revenue,Childrens Services,Children's & Education Services,Children Looked After,5105651440,28.08.2020,Special Guardianship Order Costs,Support Children,125.39,REDACTED PERSONAL DATA
Revenue,Childrens Services,Children's & Education Services,Children Looked After,5105649744,07.08.2020,In-house Fostering,Boarding Out Allowances,332.69,REDACTED PERSONAL DATA
Revenue,Childrens Services,Children's & Education Services,Children Looked After,5105650796,21.08.2020,In-house Fostering,Boarding Out Allowances,332.69,REDACTED PERSONAL DATA
Revenue,Childrens Services,Children's & Education Services,Children Looked After,5105650250,14.08.2020,In-house Fostering,Boarding Out Allowances,332.69,REDACTED PERSONAL DATA
Revenue,Childrens Services,Children's & Education Services,Children Looked After,5105651460,28.08.2020,In-house Fostering,Boarding Out Allowances,332.69,REDACTED PERSONAL DATA
Revenue,Childrens Services,Children's & Education Services,Children Looked After,5105651460,28.08.2020,In-house Fostering,Boarding Out Allowances,286.47,REDACTED PERSONAL DATA
Revenue,Childrens Services,Children's & Education Services,Children Looked After,5105650250,14.08.2020,In-house Fostering,Boarding Out Allowances,286.47,REDACTED PERSONAL DATA
Revenue,Childrens Services,Children's & Education Services,Children Looked After,5105650796,21.08.2020,In-house Fostering,Boarding Out Allowances,286.47,REDACTED PERSONAL DATA
Revenue,Childrens Services,Children's & Education Services,Children Looked After,5105649744,07.08.2020,In-house Fostering,Boarding Out Allowances,286.47,REDACTED PERSONAL DATA
Revenue,Childrens Services,Children's & Education Services,Children Looked After,5105649744,07.08.2020,In-house Fostering,Boarding Out Allowances,244.47,REDACTED PERSONAL DATA
Revenue,Childrens Services,Children's & Education Services,Children Looked After,5105650796,21.08.2020,In-house Fostering,Boarding Out Allowances,244.47,REDACTED PERSONAL DATA
Revenue,Childrens Services,Children's & Education Services,Children Looked After,5105651460,28.08.2020,In-house Fostering,Boarding Out Allowances,244.47,REDACTED PERSONAL DATA
Revenue,Childrens Services,Children's & Education Services,Children Looked After,5105650250,14.08.2020,In-house Fostering,Boarding Out Allowances,244.47,REDACTED PERSONAL DATA
Revenue,Childrens Services,Children's & Education Services,Children Looked After,5105650250,14.08.2020,In-house Fostering,Boarding Out Allowances,244.47,REDACTED PERSONAL DATA
Revenue,Childrens Services,Children's & Education Services,Children Looked After,5105651460,28.08.2020,In-house Fostering,Boarding Out Allowances,244.47,REDACTED PERSONAL DATA
Revenue,Childrens Services,Children's & Education Services,Children Looked After,5105650796,21.08.2020,In-house Fostering,Boarding Out Allowances,244.47,REDACTED PERSONAL DATA
Revenue,Childrens Services,Children's & Education Services,Children Looked After,5105649744,07.08.2020,In-house Fostering,Boarding Out Allowances,244.47,REDACTED PERSONAL DATA
Revenue,Childrens Services,Children's & Education Services,Children Looked After,5105649759,07.08.2020,Special Guardianship Order Costs,Support Children,218.65,REDACTED PERSONAL DATA
Revenue,Childrens Services,Children's & Education Services,Children Looked After,5105650265,14.08.2020,Special Guardianship Order Costs,Support Children,218.65,REDACTED PERSONAL DATA
Revenue,Childrens Services,Children's & Education Services,Children Looked After,5105650811,21.08.2020,Special Guardianship Order Costs,Support Children,218.65,REDACTED PERSONAL DATA
Revenue,Childrens Services,Children's & Education Services,Children Looked After,5105651475,28.08.2020,Special Guardianship Order Costs,Support Children,218.65,REDACTED PERSONAL DATA
Revenue,Childrens Services,Children's & Education Services,Children Looked After,5105649703,07.08.2020,In-house Fostering,Boarding Out Allowances,332.69,REDACTED PERSONAL DATA
Revenue,Childrens Services,Children's & Education Services,Children Looked After,5105649703,07.08.2020,In-house Fostering,Boarding Out Allowances,280.58,REDACTED PERSONAL DATA
Revenue,Childrens Services,Children's & Education Services,Children Looked After,5105649963,07.08.2020,In-house Fostering,Boarding Out Allowances,286.47,REDACTED PERSONAL DATA
Revenue,Childrens Services,Children's & Education Services,Children Looked After,5105650210,14.08.2020,In-house Fostering,Boarding Out Allowances,286.47,REDACTED PERSONAL DATA
Revenue,Childrens Services,Children's & Education Services,Children Looked After,5105650756,21.08.2020,In-house Fostering,Boarding Out Allowances,286.47,REDACTED PERSONAL DATA
Revenue,Childrens Services,Children's & Education Services,Children Looked After,5105651420,28.08.2020,In-house Fostering,Boarding Out Allowances,286.47,REDACTED PERSONAL DATA
Revenue,Childrens Services,Children's & Education Services,Children Looked After,5105650210,14.08.2020,Leaving Care Costs,Support Children,120.89,REDACTED PERSONAL DATA
Revenue,Childrens Services,Children's & Education Services,Children Looked After,5105650756,21.08.2020,Leaving Care Costs,Support Children,120.89,REDACTED PERSONAL DATA
Revenue,Childrens Services,Children's & Education Services,Children Looked After,5105651420,28.08.2020,Leaving Care Costs,Support Children,120.89,REDACTED PERSONAL DATA
Revenue,Childrens Services,Children's & Education Services,Children Looked After,5105651420,28.08.2020,Leaving Care Costs,Support Children,68.50,REDACTED PERSONAL DATA
Revenue,Childrens Services,Children's & Education Services,Children Looked After,5105650756,21.08.2020,Leaving Care Costs,Support Children,68.50,REDACTED PERSONAL DATA
Revenue,Childrens Services,Children's & Education Services,Children Looked After,5105650210,14.08.2020,Leaving Care Costs,Support Children,68.50,REDACTED PERSONAL DATA
Revenue,Childrens Services,Children's & Education Services,Children Looked After,5105649709,07.08.2020,In-house Fostering,Boarding Out Allowances,316.19,REDACTED PERSONAL DATA
Revenue,Childrens Services,Children's & Education Services,Children Looked After,5105650216,14.08.2020,In-house Fostering,Boarding Out Allowances,316.19,REDACTED PERSONAL DATA
Revenue,Childrens Services,Children's & Education Services,Children Looked After,5105650762,21.08.2020,In-house Fostering,Boarding Out Allowances,316.19,REDACTED PERSONAL DATA
Revenue,Childrens Services,Children's & Education Services,Children Looked After,5105651426,28.08.2020,In-house Fostering,Boarding Out Allowances,316.19,REDACTED PERSONAL DATA
Revenue,Childrens Services,Children's & Education Services,Children Looked After,5105649817,07.08.2020,Special Guardianship Order Costs,Support Children,193.73,REDACTED PERSONAL DATA
Revenue,Childrens Services,Children's & Education Services,Children Looked After,5105650323,14.08.2020,Special Guardianship Order Costs,Support Children,193.73,REDACTED PERSONAL DATA
Revenue,Childrens Services,Children's & Education Services,Children Looked After,5105650868,21.08.2020,Special Guardianship Order Costs,Support Children,193.73,REDACTED PERSONAL DATA
Revenue,Childrens Services,Children's & Education Services,Children Looked After,5105651532,28.08.2020,Special Guardianship Order Costs,Support Children,193.73,REDACTED PERSONAL DATA
Revenue,Childrens Services,Children's & Education Services,Children Looked After,5105649733,07.08.2020,Special Guardianship Order Costs,Support Children,200.83,REDACTED PERSONAL DATA
Revenue,Childrens Services,Children's & Education Services,Children Looked After,5105650239,14.08.2020,Special Guardianship Order Costs,Support Children,200.83,REDACTED PERSONAL DATA
Revenue,Childrens Services,Children's & Education Services,Children Looked After,5105650785,21.08.2020,Special Guardianship Order Costs,Support Children,200.83,REDACTED PERSONAL DATA
Revenue,Childrens Services,Children's & Education Services,Children Looked After,5105651449,28.08.2020,Special Guardianship Order Costs,Support Children,200.83,REDACTED PERSONAL DATA
Revenue,Childrens Services,Children's & Education Services,Children Looked After,5105649713,07.08.2020,Adoption Costs,Support Children,168.39,REDACTED PERSONAL DATA
Revenue,Childrens Services,Children's & Education Services,Children Looked After,5105650220,14.08.2020,Adoption Costs,Support Children,168.39,REDACTED PERSONAL DATA
Revenue,Childrens Services,Children's & Education Services,Children Looked After,5105650766,21.08.2020,Adoption Costs,Support Children,168.39,REDACTED PERSONAL DATA
Revenue,Childrens Services,Children's & Education Services,Children Looked After,5105651430,28.08.2020,Adoption Costs,Support Children,168.39,REDACTED PERSONAL DATA
Revenue,Childrens Services,Children's & Education Services,Other Education and Community Budget,5105649949,12.08.2020,Learning & Development Running Costs,Gas,14.71,CALOR GAS LIMITED
Revenue,Neighbourhoods,Cultural and Related Services,Open Spaces,5105649947,07.08.2020,Rights of Way Operations,Gas,14.71,CALOR GAS LIMITED
Revenue,Childrens Services,Children's & Education Services,Children Looked After,5105650463,21.08.2020,Purchased Residential,Charges from Independent Providers,"17,492.99",CAMBIAN CHILDCARE LTD
Revenue,Childrens Services,Children's & Education Services,Management & Support Services,5105650458,19.08.2020,Independent Schools Non-Special Educational Needs,Charges from Independent Providers,"3,542.99",CAMBIAN CHILDCARE LTD
Revenue,Childrens Services,Children's & Education Services,Family Support Services,5105650385,19.08.2020,Reducing Parental Conflict Programme,Training,"1,882.36",CAPITA BUSINESS SERVICES
Revenue,Fire & Rescue,Fire & Rescue Services,Fire fighting and Rescue Operations,5105649885,07.08.2020,Fire Technical Support,Operational Equipment,345.00,CARDIAC SCIENCE HOLDINGS UK LTD
Revenue,Childrens Services,Children's & Education Services,Family Support Services,5105649329,20.08.2020,Agency Domiciliary Care,Charges from Independent Providers,-172.20,CAREWATCH (SOUTHAMPTON NEW FOREST & IOW)
Revenue,Childrens Services,Children's & Education Services,Family Support Services,5105649329,20.08.2020,Agency Domiciliary Care,Charges from Independent Providers,-147.60,CAREWATCH (SOUTHAMPTON NEW FOREST & IOW)
Revenue,Public Health,Public Health,NHS Health Check Programme,5105649992,07.08.2020,NHS Health Check Programme P,Payment to Private Contractors,"2,392.00",CARISBROOKE HEALTH CENTRE
Revenue,Childrens Services,Children's & Education Services,Family Support Services,5105650140,14.08.2020,Short Breaks,Charges from Independent Providers,109.22,REDACTED PERSONAL DATA
Revenue,Childrens Services,Children's & Education Services,Family Support Services,5105650141,14.08.2020,Short Breaks,Charges from Independent Providers,163.83,REDACTED PERSONAL DATA
Revenue,Adult Services,Adult Social Care,Learning Disab Supp (to be reallocated),5105650500,26.08.2020,Saxonbury,Property Services - Day to day Maintenance,"1,085.00",CATER WIGHT
Revenue,Childrens Services,Children's & Education Services,Children Looked After,5105650506,21.08.2020,Beaulieu House,Property Services - Day to day Maintenance,92.20,CATER WIGHT
Revenue,Resources,Central Services,Support Services,5105651300,26.08.2020,Aylesford Access 420,Professional Services,"1,194.99",CAXTONS COMMERCIAL LIMITED
Revenue,Adult Services,Central Services,Central Services to the Public,5105649616,05.08.2020,AS Covid-19 (Adults),Agency staff,"10,350.00",CCM NEW HORIZONS LTD
Revenue,Resources,Central Services,Support Services,5105651309,26.08.2020,ICT Contracts,Computer Software Licencing,"-1,890.00",CENTERPRISE INTERNATIONAL LTD
Revenue,Resources,Central Services,Support Services,5105647133,26.08.2020,ICT Contracts,Computer Software Licencing,"-1,890.00",CENTERPRISE INTERNATIONAL LTD
Revenue,Resources,Central Services,Support Services,5105649951,07.08.2020,ICT Contracts,Computer Software Licencing,"1,890.00",CENTERPRISE INTERNATIONAL LTD
Capital,Place,Capital,Capital,5105651361,26.08.2020,Fire Capital Projects,"Plant, Equipment & Furniture - Capital","16,440.00",CENTERPRISE INTERNATIONAL LTD
Capital,Place,Capital,Capital,5105651310,26.08.2020,Fire Capital Projects,"Plant, Equipment & Furniture - Capital",171.00,CENTERPRISE INTERNATIONAL LTD
Capital,Place,Capital,Capital,5105651310,26.08.2020,Fire Capital Projects,"Plant, Equipment & Furniture - Capital",76.00,CENTERPRISE INTERNATIONAL LTD
Capital,Place,Capital,Capital,5105651310,26.08.2020,Fire Capital Projects,"Plant, Equipment & Furniture - Capital",76.00,CENTERPRISE INTERNATIONAL LTD
Revenue,Resources,Central Services,Support Services,5105649953,07.08.2020,ICT Contracts,Computer Software Licencing,"1,196.10",CENTERPRISE INTERNATIONAL LTD
Revenue,Adult Services,Adult Social Care,Assistive Equipment & Technology,5105651095,21.08.2020,Community Equipment Store,Operational Equipment,"15,000.00",CENTRAL GARAGE (NEWPORT) LTD
Revenue,Resources,Highways and Transport Services,Public Transport,5105651095,21.08.2020,Transport Fleet Administration,Operational Equipment,"2,363.86",CENTRAL GARAGE (NEWPORT) LTD
Revenue,Resources,Highways and Transport Services,Public Transport,5105651095,21.08.2020,Transport Fleet Administration,Operational Equipment,320.00,CENTRAL GARAGE (NEWPORT) LTD
Revenue,Resources,Highways and Transport Services,Public Transport,5105650075,12.08.2020,Transport Fleet Administration,Vehicle Maintenance Costs,11.50,CHAMELEON CODEWING LTD
Revenue,Neighbourhoods,Cultural and Related Services,Recreation and Sport,5105650075,12.08.2020,Commercial Sales Team,Vehicle Maintenance Costs,11.50,CHAMELEON CODEWING LTD
Revenue,Neighbourhoods,Highways and Transport Services,Parking Services,5105650075,12.08.2020,Off-Street Parking Operations,Vehicle Maintenance Costs,11.50,CHAMELEON CODEWING LTD
Revenue,Neighbourhoods,Environmental & Regulatory Services,Service Management and Support Services,5105650075,12.08.2020,Environment officers,Vehicle Maintenance Costs,11.50,CHAMELEON CODEWING LTD
Revenue,Neighbourhoods,Cultural and Related Services,Open Spaces,5105650075,12.08.2020,Client Management Unit - Grounds Maintenance,Vehicle Maintenance Costs,11.50,CHAMELEON CODEWING LTD
Revenue,Resources,Highways and Transport Services,Public Transport,5105650075,12.08.2020,Transport Fleet Administration,Vehicle Maintenance Costs,11.50,CHAMELEON CODEWING LTD
Revenue,Neighbourhoods,Highways and Transport Services,"Airports, Harbours & Toll Facilities",5105650075,12.08.2020,Newport Harbour Account,Vehicle Maintenance Costs,11.50,CHAMELEON CODEWING LTD
Revenue,Resources,Highways and Transport Services,Public Transport,5105650075,12.08.2020,Transport Fleet Administration,Vehicle Maintenance Costs,11.50,CHAMELEON CODEWING LTD
Revenue,Resources,Highways and Transport Services,Public Transport,5105650075,12.08.2020,Transport Fleet Administration,Vehicle Maintenance Costs,11.50,CHAMELEON CODEWING LTD
Revenue,Neighbourhoods,Highways and Transport Services,Management and Support Services,5105650075,12.08.2020,Highways PFI Project,Vehicle Maintenance Costs,11.50,CHAMELEON CODEWING LTD
Revenue,Neighbourhoods,Highways and Transport Services,Parking Services,5105650075,12.08.2020,Off-Street Parking Operations,Vehicle Maintenance Costs,11.50,CHAMELEON CODEWING LTD
Revenue,Adult Services,Adult Social Care,Central Codes (to be reallocated),5105650075,12.08.2020,Onwards Care & Independence,Vehicle Maintenance Costs,11.50,CHAMELEON CODEWING LTD
Revenue,Adult Services,Adult Social Care,Central Codes (to be reallocated),5105650075,12.08.2020,Community Reablement,Vehicle Maintenance Costs,11.50,CHAMELEON CODEWING LTD
Revenue,Adult Services,Adult Social Care,Central Codes (to be reallocated),5105650075,12.08.2020,Community Reablement,Vehicle Maintenance Costs,11.50,CHAMELEON CODEWING LTD
Revenue,Neighbourhoods,Cultural and Related Services,Open Spaces,5105650075,12.08.2020,Rights of Way Operations,Vehicle Maintenance Costs,11.50,CHAMELEON CODEWING LTD
Revenue,Resources,Highways and Transport Services,Public Transport,5105650075,12.08.2020,Transport Fleet Administration,Vehicle Maintenance Costs,11.50,CHAMELEON CODEWING LTD
Revenue,Adult Services,Housing Services,Homelessness,5105651325,26.08.2020,B&B Properties,Accommodation Costs - Bed & Breakfast,630.00,CHANNEL VIEW HOTEL
Revenue,Adult Services,Housing Services,Homelessness,5105651324,26.08.2020,B&B Properties,Accommodation Costs - Bed & Breakfast,"1,350.00",CHANNEL VIEW HOTEL
Revenue,Neighbourhoods,Cultural and Related Services,Recreation and Sport,5105649654,07.08.2020,Beach Safety & Inspection / Beach Awards,Property Services - Planned Maintenance,80.00,CHANT LOCK & SECURITY SERVICE
Revenue,Neighbourhoods,Cultural and Related Services,Recreation and Sport,5105649654,07.08.2020,Beach Safety & Inspection / Beach Awards,Operational Equipment,47.50,CHANT LOCK & SECURITY SERVICE
Revenue,Neighbourhoods,Cultural and Related Services,Open Spaces,5105649653,07.08.2020,Ventnor Botanic Garden,Property Services - Day to day Maintenance,16.00,CHANT LOCK & SECURITY SERVICE
Revenue,Neighbourhoods,Cultural and Related Services,Recreation and Sport,5105650526,19.08.2020,Beach Safety & Inspection / Beach Awards,Operational Equipment,95.78,CHANT LOCK & SECURITY SERVICE
Revenue,Childrens Services,Children's & Education Services,Other Education and Community Budget,5105650532,19.08.2020,Ex All Saints Primary School site,Security of Buildings,151.30,CHANT LOCK & SECURITY SERVICE
Revenue,Adult Services,Adult Social Care,Learning Disab Supp (to be reallocated),5105650935,21.08.2020,Plean Dene,Catering Purchases,51.30,CHAPEL NURSERIES
Revenue,Adult Services,Adult Social Care,Learning Disab Supp (to be reallocated),5105650936,21.08.2020,Plean Dene,Catering Purchases,45.60,CHAPEL NURSERIES
Revenue,Adult Services,Adult Social Care,Learning Disab Supp (to be reallocated),5105650938,21.08.2020,Plean Dene,Catering Purchases,44.50,CHAPEL NURSERIES
Revenue,Adult Services,Adult Social Care,Learning Disab Supp (to be reallocated),5105650939,21.08.2020,Plean Dene,Catering Purchases,53.80,CHAPEL NURSERIES
Revenue,Adult Services,Adult Social Care,Learning Disab Supp (to be reallocated),5105650940,21.08.2020,Plean Dene,Catering Purchases,55.00,CHAPEL NURSERIES
Revenue,Adult Services,Adult Social Care,Learning Disab Supp (to be reallocated),5105650941,21.08.2020,Plean Dene,Catering Purchases,47.61,CHAPEL NURSERIES
Revenue,Adult Services,Adult Social Care,Learning Disab Supp (to be reallocated),5105650945,21.08.2020,Plean Dene,Catering Purchases,48.10,CHAPEL NURSERIES
Revenue,Adult Services,Adult Social Care,Learning Disab Supp (to be reallocated),5105650946,21.08.2020,Plean Dene,Catering Purchases,54.00,CHAPEL NURSERIES
Revenue,Adult Services,Adult Social Care,Learning Disab Supp (to be reallocated),5105650947,21.08.2020,Plean Dene,Catering Purchases,53.50,CHAPEL NURSERIES
Revenue,Adult Services,Adult Social Care,Learning Disab Supp (to be reallocated),5105650951,21.08.2020,Plean Dene,Catering Purchases,45.80,CHAPEL NURSERIES
Revenue,Adult Services,Adult Social Care,Learning Disab Supp (to be reallocated),5105650952,21.08.2020,Plean Dene,Catering Purchases,49.20,CHAPEL NURSERIES
Revenue,Adult Services,Adult Social Care,Learning Disab Supp (to be reallocated),5105650953,21.08.2020,Plean Dene,Catering Purchases,58.70,CHAPEL NURSERIES
Revenue,Adult Services,Adult Social Care,Learning Disab Supp (to be reallocated),5105650942,21.08.2020,Plean Dene,Catering Purchases,46.40,CHAPEL NURSERIES
Revenue,Adult Services,Adult Social Care,Learning Disab Supp (to be reallocated),5105650943,21.08.2020,Plean Dene,Catering Purchases,45.20,CHAPEL NURSERIES
Revenue,Adult Services,Adult Social Care,Learning Disab Supp (to be reallocated),5105650944,21.08.2020,Plean Dene,Catering Purchases,45.60,CHAPEL NURSERIES
Revenue,Adult Services,Adult Social Care,Learning Disab Supp (to be reallocated),5105650955,21.08.2020,Plean Dene,Catering Purchases,44.60,CHAPEL NURSERIES
Revenue,Adult Services,Adult Social Care,Learning Disab Supp (to be reallocated),5105650956,21.08.2020,Plean Dene,Catering Purchases,52.50,CHAPEL NURSERIES
Revenue,Adult Services,Adult Social Care,Learning Disab Supp (to be reallocated),5105650957,21.08.2020,Plean Dene,Catering Purchases,41.20,CHAPEL NURSERIES
Revenue,Adult Services,Adult Social Care,Learning Disab Supp (to be reallocated),5105650948,21.08.2020,Plean Dene,Catering Purchases,50.50,CHAPEL NURSERIES
Revenue,Adult Services,Adult Social Care,Learning Disab Supp (to be reallocated),5105650949,21.08.2020,Plean Dene,Catering Purchases,58.80,CHAPEL NURSERIES
Revenue,Adult Services,Adult Social Care,Learning Disab Supp (to be reallocated),5105650950,21.08.2020,Plean Dene,Catering Purchases,47.60,CHAPEL NURSERIES
Revenue,Adult Services,Adult Social Care,Learning Disab Supp (to be reallocated),5105650961,21.08.2020,Saxonbury,Catering Purchases,27.00,CHAPEL NURSERIES
Revenue,Adult Services,Adult Social Care,Learning Disab Supp (to be reallocated),5105650962,21.08.2020,Saxonbury,Catering Purchases,42.80,CHAPEL NURSERIES
Revenue,Adult Services,Adult Social Care,Learning Disab Supp (to be reallocated),5105650963,21.08.2020,Saxonbury,Catering Purchases,38.10,CHAPEL NURSERIES
Revenue,Adult Services,Adult Social Care,Learning Disab Supp (to be reallocated),5105650964,21.08.2020,Saxonbury,Catering Purchases,33.30,CHAPEL NURSERIES
Revenue,Adult Services,Adult Social Care,Learning Disab Supp (to be reallocated),5105650965,21.08.2020,Saxonbury,Catering Purchases,23.90,CHAPEL NURSERIES
Revenue,Adult Services,Adult Social Care,Learning Disab Supp (to be reallocated),5105650966,21.08.2020,Saxonbury,Catering Purchases,28.70,CHAPEL NURSERIES
Revenue,Adult Services,Adult Social Care,Learning Disab Supp (to be reallocated),5105650989,21.08.2020,Saxonbury,Catering Purchases,37.00,CHAPEL NURSERIES
Revenue,Adult Services,Adult Social Care,Learning Disab Supp (to be reallocated),5105650993,21.08.2020,Saxonbury,Catering Purchases,46.00,CHAPEL NURSERIES
Revenue,Adult Services,Adult Social Care,Learning Disab Supp (to be reallocated),5105650995,21.08.2020,Saxonbury,Catering Purchases,52.70,CHAPEL NURSERIES
Revenue,Adult Services,Adult Social Care,Learning Disab Supp (to be reallocated),5105650998,21.08.2020,Saxonbury,Catering Purchases,43.30,CHAPEL NURSERIES
Revenue,Adult Services,Adult Social Care,Learning Disab Supp (to be reallocated),5105651000,21.08.2020,Saxonbury,Catering Purchases,45.60,CHAPEL NURSERIES
Revenue,Adult Services,Adult Social Care,Learning Disab Supp (to be reallocated),5400002775,28.08.2020,Saxonbury,Catering Purchases,27.00,CHAPEL NURSERIES
Revenue,Adult Services,Adult Social Care,Central Codes (to be reallocated),5105649626,07.08.2020,Gouldings Resource Centre,Catering Purchases,75.60,CHAPEL NURSERIES
Revenue,Adult Services,Adult Social Care,Central Codes (to be reallocated),5105650489,19.08.2020,Gouldings Resource Centre,Catering Purchases,55.80,CHAPEL NURSERIES
Revenue,Adult Services,Adult Social Care,Central Codes (to be reallocated),5105650513,19.08.2020,Gouldings Resource Centre,Catering Purchases,43.10,CHAPEL NURSERIES
Revenue,Adult Services,Adult Social Care,Central Codes (to be reallocated),5105651641,28.08.2020,Gouldings Resource Centre,Catering Purchases,47.40,CHAPEL NURSERIES
Revenue,Resources,Central Services,Support Services,5105651079,21.08.2020,Litigation Costs,Legal Fees - Other Parties,400.00,COLLEGE CHAMBERS BARRISTERS
Revenue,Childrens Services,Children's & Education Services,Children Looked After,5105649601,05.08.2020,Support for Looked After Children,Support Children,783.00,CHATTERBOX NURSERY LTD
Revenue,Resources,Central Services,Support Services,5105651155,26.08.2020,Staff Benefits,Payment to Private Contractors,124.00,CHATTERBOX NURSERY LTD
Revenue,Adult Services,Adult Social Care,Support - Memory /Cognition-older people (65+),5105649452,05.08.2020,Memory & Cognition Residential 65+,Charges from Independent Providers,"3,000.20",CHD CARE LTD
Revenue,Adult Services,Adult Social Care,Support - Memory /Cognition-older people (65+),5105651790,28.08.2020,Memory & Cognition Residential 65+,Charges from Independent Providers,"3,000.20",CHD CARE LTD
Revenue,Adult Services,Adult Social Care,Support - Memory /Cognition-older people (65+),5105651790,28.08.2020,Memory & Cognition Residential 65+,Charges from Independent Providers,405.16,CHD CARE LTD
Revenue,Adult Services,Adult Social Care,Support - Memory /Cognition-older people (65+),5105649452,05.08.2020,Memory & Cognition Residential 65+,Charges from Independent Providers,405.16,CHD CARE LTD
Revenue,Resources,Central Services,Support Services,5105651144,26.08.2020,Staff Benefits,Payment to Private Contractors,5.00,CHEEKY CHIMPS CHILDCARE
Revenue,Childrens Services,Children's & Education Services,Children Looked After,5105649844,07.08.2020,Children placed with Family&Friends,Boarding Out Allowances,244.47,REDACTED PERSONAL DATA
Revenue,Childrens Services,Children's & Education Services,Children Looked After,5105650351,14.08.2020,Children placed with Family&Friends,Boarding Out Allowances,244.47,REDACTED PERSONAL DATA
Revenue,Childrens Services,Children's & Education Services,Children Looked After,5105650897,21.08.2020,Children placed with Family&Friends,Boarding Out Allowances,244.47,REDACTED PERSONAL DATA
Revenue,Childrens Services,Children's & Education Services,Children Looked After,5105651559,28.08.2020,Children placed with Family&Friends,Boarding Out Allowances,244.47,REDACTED PERSONAL DATA
Revenue,Adult Services,Adult Social Care,Physical Support - older people (65+),5105649388,05.08.2020,Physical Support Residential 65+,Charges from Independent Providers,"2,028.32",CHERRY TREES I.W. LTD
Revenue,Adult Services,Adult Social Care,Physical Support - older people (65+),5105651726,28.08.2020,Physical Support Residential 65+,Charges from Independent Providers,"2,028.32",CHERRY TREES I.W. LTD
Revenue,Adult Services,Adult Social Care,Physical Support - older people (65+),5105649388,05.08.2020,Physical Support Residential 65+,Charges from Independent Providers,"2,124.08",CHERRY TREES I.W. LTD
Revenue,Adult Services,Adult Social Care,Physical Support - older people (65+),5105651726,28.08.2020,Physical Support Residential 65+,Charges from Independent Providers,"2,124.08",CHERRY TREES I.W. LTD
Revenue,Adult Services,Adult Social Care,Physical Support - older people (65+),5105649388,05.08.2020,Physical Support Residential 65+,Charges from Independent Providers,"2,028.32",CHERRY TREES I.W. LTD
Revenue,Adult Services,Adult Social Care,Physical Support - older people (65+),5105651726,28.08.2020,Physical Support Residential 65+,Charges from Independent Providers,"2,028.32",CHERRY TREES I.W. LTD
Revenue,Adult Services,Adult Social Care,Physical Support - older people (65+),5105649388,05.08.2020,Physical Support Residential 65+,Charges from Independent Providers,"2,028.32",CHERRY TREES I.W. LTD
Revenue,Adult Services,Adult Social Care,Physical Support - older people (65+),5105651726,28.08.2020,Physical Support Residential 65+,Charges from Independent Providers,"2,028.32",CHERRY TREES I.W. LTD
Revenue,Adult Services,Adult Social Care,Physical Support - older people (65+),5105649388,05.08.2020,Physical Support Residential 65+,Charges from Independent Providers,"2,124.08",CHERRY TREES I.W. LTD
Revenue,Adult Services,Adult Social Care,Physical Support - older people (65+),5105651726,28.08.2020,Physical Support Residential 65+,Charges from Independent Providers,"2,124.08",CHERRY TREES I.W. LTD
Revenue,Adult Services,Adult Social Care,Physical Support - older people (65+),5105650451,14.08.2020,Physical Support Residential 65+,Charges from Independent Providers,"3,839.32",CHERRY TREES I.W. LTD
